Ref No,Fund Type,Dept,Cost Centre Description    ,Description    ,Creditor Name    ,GL Code Net Amount,Payment date        
2,Revenue,CAHD,Central - Commissioned Services,Permanent Residential,1 St Georges House,13333.52, 10-Jan-2023
3,Revenue,CAHD,Central - Commissioned Services,Fees & Charges Income - General,1 St Georges House,-438.80, 10-Jan-2023
4,Revenue,CAHD,CSC - Care Leavers Support Costs,"Provisions (Food, etc)",1625 Independent People,1334.52, 24-Jan-2023
5,Revenue,CAHD,CSC - Care Leavers Support Costs,"Provisions (Food, etc)",1625 Independent People,3526.95, 24-Jan-2023
6,Revenue,CAHD,CSC - LAC Housing Support Grants,Grants to Voluntary Bodies,1625 Independent People,3343.00, 17-Jan-2023
7,Revenue,CAHD,CSC - UASC Housing Support,Grants to Voluntary Bodies,1625 Independent People,9174.25, 13-Jan-2023
8,Revenue,CAHD,CSC - LAC Housing Support Grants,Grants to Voluntary Bodies,1625 Independent People,12082.50, 13-Jan-2023
9,Revenue,CAHD,CSC - Asylum Seekers - Unaccompanied,"Provisions (Food, etc)",1625 Independent People,896.14, 20-Jan-2023
10,Revenue,CAHD,CSC - Asylum Seekers - Unaccompanied,"Provisions (Food, etc)",1625 Independent People,2432.38, 20-Jan-2023
11,Revenue,CAHD,CSC - Asylum Seekers - Unaccompanied,"Provisions (Food, etc)",1625 Independent People,1261.91, 20-Jan-2023
12,Revenue,CAHD,Supporting People Programme,Grants to Voluntary Bodies,1625 Independent People,15622.00, 04-Jan-2023
13,Revenue,CAHD,Supporting People Programme,Grants to Voluntary Bodies,1625 Independent People,15629.08, 04-Jan-2023
14,Revenue,CAHD,CSC - Asylum Seekers - Unaccompanied,Leaving Care,16Pluscare Support Solutions,1260.00, 19-Jan-2023
15,Revenue,CAHD,CSC - Asylum Seekers - Unaccompanied,Independent Living,16Pluscare Support Solutions,18883.34, 10-Jan-2023
16,Revenue,CAHD,CSC - Care Leavers Independent Living,Independent Living,16Pluscare Support Solutions,10327.34, 10-Jan-2023
17,Revenue,CAHD,South - Commissioned Services,Permanent Residential,2Nd Floor Building,5630.76, 10-Jan-2023
18,Revenue,CAHD,South - Commissioned Services,Fees & Charges Income - General,2Nd Floor Building,-438.80, 10-Jan-2023
19,Revenue,CAHD,Central - Commissioned Services,Other Small Contracts,3 Trees Community Support Limited,151.20, 23-Jan-2023
20,Revenue,CAHD,Central - Commissioned Services,Supported Living,3 Trees Community Support Limited,3024.00, 23-Jan-2023
21,Revenue,CAHD,Central - Commissioned Services,Supported Living,3 Trees Community Support Limited,3024.00, 23-Jan-2023
22,Revenue,CAHD,Central - Commissioned Services,Supported Living,3 Trees Community Support Limited,3024.00, 23-Jan-2023
23,Revenue,CAHD,South - Commissioned Services,Supported Living,3 Trees Community Support Limited,2866.24, 23-Jan-2023
24,Revenue,CAHD,Central - Commissioned Services,Supported Living,3 Trees Community Support Limited,3024.00, 05-Jan-2023
25,Revenue,CAHD,Central - Commissioned Services,Supported Living,3 Trees Community Support Limited,3024.00, 05-Jan-2023
26,Revenue,CAHD,Central - Commissioned Services,Supported Living,3 Trees Community Support Limited,3024.00, 05-Jan-2023
27,Revenue,CAHD,South - Commissioned Services,Supported Living,3 Trees Community Support Limited,3086.72, 05-Jan-2023
28,Revenue,CAHD,Central - Commissioned Services,Supported Living,3 Trees Community Support Limited,6048.00, 16-Jan-2023
29,Revenue,CAHD,Central - Commissioned Services,Supported Living,3 Trees Community Support Limited,6048.00, 16-Jan-2023
30,Revenue,CAHD,Central - Commissioned Services,Supported Living,3 Trees Community Support Limited,6048.00, 16-Jan-2023
31,Revenue,CAHD,South - Commissioned Services,Supported Living,3 Trees Community Support Limited,6173.44, 16-Jan-2023
32,Revenue,CAHD,Central - Commissioned Services,Supported Living,3 Trees Community Support Limited,3024.00, 27-Jan-2023
33,Revenue,CAHD,Central - Commissioned Services,Supported Living,3 Trees Community Support Limited,3024.00, 27-Jan-2023
34,Revenue,CAHD,Central - Commissioned Services,Supported Living,3 Trees Community Support Limited,3024.00, 27-Jan-2023
35,Revenue,CAHD,South - Commissioned Services,Supported Living,3 Trees Community Support Limited,3086.72, 27-Jan-2023
36,Revenue,CAHD,South - Commissioned Services,Permanent Residential,5Th Floor Harlech Court,17913.24, 10-Jan-2023
37,Revenue,CAHD,South - Commissioned Services,Permanent Residential,5Th Floor Harlech Court,18839.56, 10-Jan-2023
38,Revenue,CAHD,South - Commissioned Services,Fees & Charges Income - General,5Th Floor Harlech Court,-438.80, 10-Jan-2023
39,Revenue,CAHD,South - Commissioned Services,Fees & Charges Income - General,5Th Floor Harlech Court,-418.80, 10-Jan-2023
40,Revenue,CAHD,S28A cases,Permanent Residential,5Th Floor Harlech Court,11719.96, 10-Jan-2023
41,Revenue,CAHD,S28A cases,Fees & Charges Income - General,5Th Floor Harlech Court,-399.80, 10-Jan-2023
42,Revenue,CAHD,North - Community based support,Permanent Residential,5Th Floor Harlech Court,12498.56, 10-Jan-2023
43,Revenue,CAHD,North - Community based support,Fees & Charges Income - General,5Th Floor Harlech Court,-450.80, 10-Jan-2023
44,Revenue,CAHD,Central - Commissioned Services,Permanent Residential,5Th Floor Harlech Court,15338.12, 10-Jan-2023
45,Revenue,CAHD,Central - Commissioned Services,Fees & Charges Income - General,5Th Floor Harlech Court,-438.80, 10-Jan-2023
46,Revenue,CAHD,North - Community based support,Permanent Residential,5Th Floor Harlech Court,9615.40, 10-Jan-2023
47,Revenue,CAHD,North - Community based support,Permanent Residential,5Th Floor Harlech Court,10853.36, 10-Jan-2023
48,Revenue,CAHD,North - Community based support,Fees & Charges Income - General,5Th Floor Harlech Court,-438.80, 10-Jan-2023
49,Revenue,CAHD,North - Community based support,Fees & Charges Income - General,5Th Floor Harlech Court,-438.80, 10-Jan-2023
50,Revenue,CAHD,CSC - Section 17 0-25,Preventative Assistance,A+bility Ltd,750.00, 13-Jan-2023
51,Revenue,CAHD,CSC - Section 17 0-25,Preventative Assistance,A+bility Ltd,750.00, 13-Jan-2023
52,Revenue,CAHD,Central - Commissioned Services,Non Residential Care Income,A4E Management Ltd,-112.74, 06-Jan-2023
53,Revenue,CAHD,Central - Commissioned Services,Non Residential Care Income,A4E Management Ltd,-112.74, 20-Jan-2023
54,Revenue,CAHD,CSC - Vinney Green Secure Unit,Service Contracts (Premises),Abbey Fire Protection Limited,1250.96, 03-Jan-2023
55,Revenue,CAHD,Social Lettings Agency,Rent,Individual,850.00, 12-Jan-2023
56,Revenue,CAHD,Social Lettings Agency,Fees & Charges Income - General,Individual,-106.25, 12-Jan-2023
57,Revenue,CAHD,Central - Commissioned Services,Permanent Nursing,ABI Development Limited,12959.40, 10-Jan-2023
58,Revenue,CAHD,Central - Commissioned Services,Fees & Charges Income - General,ABI Development Limited,-511.80, 10-Jan-2023
59,Revenue,CAHD,CSC - Asylum Seekers - Unaccompanied,Independent Living,Ability Supported Living Limited,6700.42, 13-Jan-2023
60,Revenue,CAHD,South - Commissioned Services,Other Small Contracts,About Me Care and Support Limited,2865.00, 16-Jan-2023
61,Revenue,CAHD,South - Commissioned Services,Other Small Contracts,About Me Care and Support Limited,905.34, 27-Jan-2023
62,Revenue,CAHD,South - Commissioned Services,Permanent Nursing,Acacia House,3085.88, 10-Jan-2023
63,Revenue,CAHD,South - Commissioned Services,Fees & Charges Income - General,Acacia House,-1074.60, 10-Jan-2023
64,Revenue,CAHD,Central - Commissioned Services,Permanent Nursing,Acacia House,3777.92, 10-Jan-2023
65,Revenue,CAHD,Home Care Monitoring (CM2000),Other Supplies & Services,Access UK Limited,15275.41, 13-Jan-2023
66,Revenue,CAHD,Central - Commissioned Services,Permanent Residential,Acer House Care Home.,4028.00, 10-Jan-2023
67,Revenue,CAHD,Central - Commissioned Services,Fees & Charges Income - General,Acer House Care Home.,-1093.68, 10-Jan-2023
68,Revenue,CAHD,MH Purchasing - Younger,Permanent Residential,Acorn Care Providers,6920.56, 10-Jan-2023
69,Revenue,CAHD,MH Purchasing - Younger,Permanent Residential,Acorn Care Providers,6795.68, 10-Jan-2023
70,Revenue,CAHD,North - S117,Permanent Residential,Acorn Care Providers,4311.40, 10-Jan-2023
71,Revenue,CAHD,Section 117 Placements MH Younger,Permanent Residential,Acorn Care Providers,5941.40, 10-Jan-2023
72,Revenue,CAHD,Jointly Funded H&SC Packages,Permanent Residential,Acorn Care Providers,3515.52, 10-Jan-2023
73,Revenue,CAHD,Jointly Funded H&SC Packages,Permanent Residential,Acorn Care Providers,2366.36, 10-Jan-2023
74,Revenue,CAHD,Jointly Funded H&SC Packages,Permanent Residential,Acorn Care Providers,2193.40, 10-Jan-2023
75,Revenue,CAHD,Independent Special Placements - Post 16,Other Private Contractors,Action for Children,54980.00, 31-Jan-2023
76,Revenue,CAHD,Learning Difficulties PSL,Prop.Serv. General Repairs,Admiral Property Maintenance Limited,1448.12, 30-Jan-2023
77,Revenue,CAHD,CSC - Asylum Seekers - Unaccompanied,Independent Living,Adolescent Support Home Services Ltd,6711.18, 23-Jan-2023
78,Revenue,CAHD,CSC - Asylum Seekers - Unaccompanied,Independent Living,Adolescent Support Home Services Ltd,6711.18, 19-Jan-2023
79,Revenue,CAHD,South - Commissioned Services,Other Small Contracts,Advantedge Commercial Finance Limited,2297.72, 27-Jan-2023
80,Revenue,CAHD,South - Commissioned Services,Other Small Contracts,Advantedge Commercial Finance Limited,3836.56, 27-Jan-2023
81,Revenue,CAHD,South - Commissioned Services,Other Small Contracts,Advantedge Commercial Finance Limited,295.12, 27-Jan-2023
82,Revenue,CAHD,South - Commissioned Services,Other Small Contracts,Advantedge Commercial Finance Limited,737.80, 27-Jan-2023
83,Revenue,CAHD,South - Commissioned Services,Other Small Contracts,Advantedge Commercial Finance Limited,969.68, 27-Jan-2023
84,Revenue,CAHD,South - Commissioned Services,Other Small Contracts,Advantedge Commercial Finance Limited,2656.08, 27-Jan-2023
85,Revenue,CAHD,South - Commissioned Services,Other Small Contracts,Advantedge Commercial Finance Limited,1180.48, 27-Jan-2023
86,Revenue,CAHD,South - Commissioned Services,Day Care / Social Activities,Age UK - Grace Court,226.48, 10-Jan-2023
87,Revenue,CAHD,South - Commissioned Services,Day Care / Social Activities,Age UK - Grace Court,288.08, 10-Jan-2023
88,Revenue,CAHD,South - Commissioned Services,Day Care / Social Activities,Age UK - Grace Court,288.08, 10-Jan-2023
89,Revenue,CAHD,South - Commissioned Services,Day Care / Social Activities,Age UK - Grace Court,-216.06, 10-Jan-2023
90,Revenue,CAHD,South - Commissioned Services,Day Care / Social Activities,Age UK - Grace Court,288.08, 10-Jan-2023
91,Revenue,CAHD,South - Commissioned Services,Day Care / Social Activities,Age UK - Grace Court,226.48, 10-Jan-2023
92,Revenue,CAHD,South - Commissioned Services,Day Care / Social Activities,Age UK - Grace Court,341.04, 10-Jan-2023
93,Revenue,CAHD,South - Commissioned Services,Day Care / Social Activities,Age UK - Grace Court,288.08, 10-Jan-2023
94,Revenue,CAHD,North - Community based support,Day Care / Social Activities,Age UK - Grace Court,439.88, 10-Jan-2023
95,Revenue,CAHD,North - Community based support,Day Care / Social Activities,Age UK - Grace Court,340.80, 10-Jan-2023
96,Revenue,CAHD,North - Community based support,Day Care / Social Activities,Age UK - Grace Court,288.08, 10-Jan-2023
97,Revenue,CAHD,Extra Care Housing,Private & Voluntary Home Care,Agincare UK Limited,32712.59, 04-Jan-2023
98,Revenue,CAHD,Extra Care Housing,Private & Voluntary Home Care,Agincare UK Limited,26182.00, 11-Jan-2023
99,Revenue,CAHD,Prison Assessments & Costs,Other Supplies & Services,Agincare UK Limited,4664.00, 17-Jan-2023
100,Revenue,CAHD,Prison Assessments & Costs,Other Supplies & Services,Agincare UK Limited,4664.00, 24-Jan-2023
101,Revenue,CAHD,Ukranian Refugees,Other Small Contracts,Individual,632.00, 13-Jan-2023
102,Revenue,CAHD,South - Commissioned Services,Other Small Contracts,AliMo Care Ltd,576.09, 16-Jan-2023
103,Revenue,CAHD,South - Commissioned Services,Other Small Contracts,AliMo Care Ltd,923.82, 16-Jan-2023
104,Revenue,CAHD,North - Community based support,Other Small Contracts,AliMo Care Ltd,487.86, 16-Jan-2023
105,Revenue,CAHD,Reset and Recovery,Other Supplies & Services,Individual,500.00, 13-Jan-2023
106,Revenue,CAHD,CSC - Age Related Allowances,Foster Parent Allowances,Individual,363.00, 06-Jan-2023
107,Revenue,CAHD,CSC - Professional Fees Foster Carers,Band 3 Foster Care,Individual,486.00, 06-Jan-2023
108,Revenue,CAHD,CSC - Age Related Allowances,Foster Parent Allowances,Individual,363.00, 13-Jan-2023
109,Revenue,CAHD,CSC - Age Related Allowances,Day Care / Social Activities,Individual,56.00, 13-Jan-2023
110,Revenue,CAHD,CSC - Professional Fees Foster Carers,Band 3 Foster Care,Individual,486.00, 13-Jan-2023
111,Revenue,CAHD,CSC - CLA Placements,Client Transport,Individual,178.20, 20-Jan-2023
112,Revenue,CAHD,CSC - Age Related Allowances,Foster Parent Allowances,Individual,363.00, 20-Jan-2023
113,Revenue,CAHD,CSC - Professional Fees Foster Carers,Band 3 Foster Care,Individual,486.00, 20-Jan-2023
114,Revenue,CAHD,CSC - Age Related Allowances,Foster Parent Allowances,Individual,363.00, 27-Jan-2023
115,Revenue,CAHD,CSC - Professional Fees Foster Carers,Band 3 Foster Care,Individual,486.00, 27-Jan-2023
116,Revenue,CAHD,South - Commissioned Services,Permanent Nursing,Allambie Court,2734.44, 10-Jan-2023
117,Revenue,CAHD,South - Commissioned Services,Fees & Charges Income - General,Allambie Court,-823.52, 10-Jan-2023
118,Revenue,CAHD,CSC - Residential Placements,Permanent Residential,Ambito Care and Education,19920.87, 03-Jan-2023
119,Revenue,CAHD,CSC - Residential Placements,Permanent Residential,Ambito Care and Education,19930.88, 03-Jan-2023
120,Revenue,CAHD,CSC - Residential Placements,Permanent Residential,Ambito Care and Education,19920.87, 31-Jan-2023
121,Revenue,CAHD,CSC - Residential Placements,Permanent Residential,Ambito Care and Education,19930.88, 31-Jan-2023
122,Revenue,CAHD,Early Years High Needs Support,Other Private Contractors,Ambourne House Day Nursery,850.29, 20-Jan-2023
123,Revenue,CAHD,Early Years High Needs Support,Other Private Contractors,Ambourne House Day Nursery,850.29, 20-Jan-2023
124,Revenue,CAHD,CSC - Vinney Green Secure Unit,R & M by Departments,Ames Timber Solutions,1620.00, 06-Jan-2023
125,Revenue,CAHD,Preparing for Adulthood Team,Interpreting & Translation,Individual,504.00, 04-Jan-2023
126,Revenue,CAHD,Supporting People Programme,Grants to Voluntary Bodies,Anchor Hanover Group,1070.50, 04-Jan-2023
127,Revenue,CAHD,Supporting People Programme,Grants to Voluntary Bodies,Anchor Hanover Group,873.08, 04-Jan-2023
128,Revenue,CAHD,CSC - South LAC Placements,Client Transport,Individual,102.60, 27-Jan-2023
129,Revenue,CAHD,CSC - Age Related Allowances,Other L.A.s - General,Individual,120.86, 27-Jan-2023
130,Revenue,CAHD,CSC - Age Related Allowances,Foster Parent Allowances,Individual,156.00, 27-Jan-2023
131,Revenue,CAHD,CSC - Professional Fees Foster Carers,Other L.A.s - General,Individual,291.43, 27-Jan-2023
132,Revenue,CAHD,CSC - Professional Fees Foster Carers,Band 1 Foster Care,Individual,170.00, 27-Jan-2023
133,Revenue,CAHD,Community Support - South,Preventative Assistance,Angel Care Support Limited,12971.00, 05-Jan-2023
134,Revenue,CAHD,South - Commissioned Services,Non Residential Care Income,Individual,11.89, 20-Jan-2023
135,Revenue,CAHD,Schools Specific Grant Income,Other Public Bodies,Anthem Schools Trust  Oxford Spires,550.00, 12-Jan-2023
136,Revenue,CAHD,Social Lettings Agency,Rent,Individual,822.73, 20-Jan-2023
137,Revenue,CAHD,Social Lettings Agency,Fees & Charges Income - General,Individual,-65.82, 20-Jan-2023
138,Revenue,CAHD,Other Alternative Provision Services,Other Private Contractors,Apricot Online Limited,3080.00, 09-Jan-2023
139,Revenue,CAHD,Other Alternative Provision Services,Other Private Contractors,Apricot Online Limited,770.00, 12-Jan-2023
140,Revenue,CAHD,Other Alternative Provision Services,Other Private Contractors,Apricot Online Limited,1320.00, 17-Jan-2023
141,Revenue,CAHD,Other Alternative Provision Services,Other Private Contractors,Apricot Online Limited,2585.00, 23-Jan-2023
142,Revenue,CAHD,Other Alternative Provision Services,Other Private Contractors,Apricot Online Limited,4650.00, 17-Jan-2023
143,Revenue,CAHD,Alexandra Way,Premises Maintenance by Contractor,Aquarius Waste Management Limited,540.00, 16-Jan-2023
144,Revenue,CAHD,North - Community based support,Permanent Nursing,Arbour Walk,3947.24, 10-Jan-2023
145,Revenue,CAHD,North - Community based support,Fees & Charges Income - General,Arbour Walk,-1276.96, 10-Jan-2023
146,Revenue,CAHD,North - S117,Permanent Nursing,Arbour Walk,5400.00, 10-Jan-2023
147,Revenue,CAHD,CSC - Residential Placements,Permanent Residential,ARC HD Services Ltd,22667.33, 23-Jan-2023
148,Revenue,CAHD,Schools Specific Grant Income,Other Public Bodies,Archbishop McGrath Catholic High School,550.00, 12-Jan-2023
149,Revenue,CAHD,South - S117,Supported Living,Archcare Rehab Limited,2062.52, 10-Jan-2023
150,Revenue,CAHD,Younger MH non-res purchasing,Respite Care,Archcare Rehab Limited,0.00, 10-Jan-2023
151,Revenue,CAHD,North - Community based support,One-off Planned Direct Payment,Individual,155.95, 20-Jan-2023
152,Revenue,CAHD,Cardio Vascular Disease - Risks,Other Small Contracts,Asda Stores Limited,1118.88, 23-Jan-2023
153,Revenue,CAHD,South - Commissioned Services,Permanent Residential,Ash Lea House,5885.04, 10-Jan-2023
154,Revenue,CAHD,South - Commissioned Services,Fees & Charges Income - General,Ash Lea House,-438.80, 10-Jan-2023
155,Revenue,CAHD,North - Community based support,Permanent Residential,Ash View House,7525.48, 10-Jan-2023
156,Revenue,CAHD,North - Community based support,Permanent Residential,Ash View House,7547.20, 10-Jan-2023
157,Revenue,CAHD,North - Community based support,Fees & Charges Income - General,Ash View House,-438.80, 10-Jan-2023
158,Revenue,CAHD,North - Community based support,Fees & Charges Income - General,Ash View House,-438.80, 10-Jan-2023
159,Revenue,CAHD,South - Commissioned Services,Permanent Residential,Ash View House,7317.24, 10-Jan-2023
160,Revenue,CAHD,South - Commissioned Services,Permanent Residential,Ash View House,5994.80, 10-Jan-2023
161,Revenue,CAHD,South - Commissioned Services,Fees & Charges Income - General,Ash View House,-438.80, 10-Jan-2023
162,Revenue,CAHD,South - Commissioned Services,Fees & Charges Income - General,Ash View House,-387.80, 10-Jan-2023
163,Revenue,CAHD,South - S117,Permanent Residential,Ash View House,7402.64, 10-Jan-2023
164,Revenue,CAHD,Section 117 Placements MH Younger,Permanent Residential,Ash View House,5444.12, 10-Jan-2023
165,Revenue,CAHD,Jointly Funded H&SC Packages,Permanent Residential,Ash View House,1160.84, 10-Jan-2023
166,Revenue,CAHD,Jointly Funded H&SC Packages,Permanent Residential,Ash View House,2204.28, 10-Jan-2023
167,Revenue,CAHD,S117 Placements PCT,Permanent Residential,Ash View House,8357.80, 10-Jan-2023
168,Revenue,CAHD,Supporting People Programme,Grants to Voluntary Bodies,Aspects and Milestones Trust,3544.83, 04-Jan-2023
169,Revenue,CAHD,Supporting People Programme,Grants to Voluntary Bodies,Aspects and Milestones Trust,1777.17, 04-Jan-2023
170,Revenue,CAHD,18-25 Year Olds,Other Small Contracts,Aspirations,124.56, 05-Jan-2023
171,Revenue,CAHD,18-25 Year Olds,Other Small Contracts,Aspirations,124.56, 05-Jan-2023
172,Revenue,CAHD,18-25 Year Olds,Other Small Contracts,Aspirations,83.04, 05-Jan-2023
173,Revenue,CAHD,18-25 Year Olds,Other Small Contracts,Aspirations,124.56, 05-Jan-2023
174,Revenue,CAHD,18-25 Year Olds,Other Small Contracts,Aspirations,145.32, 05-Jan-2023
175,Revenue,CAHD,18-25 Year Olds,Supported Living,Aspirations,736.98, 05-Jan-2023
176,Revenue,CAHD,18-25 Year Olds,Supported Living,Aspirations,871.92, 05-Jan-2023
177,Revenue,CAHD,Central - Commissioned Services,Other Small Contracts,Aspirations,50.88, 05-Jan-2023
178,Revenue,CAHD,Central - Commissioned Services,Other Small Contracts,Aspirations,539.76, 05-Jan-2023
179,Revenue,CAHD,Central - Commissioned Services,Other Small Contracts,Aspirations,228.36, 05-Jan-2023
180,Revenue,CAHD,South - Commissioned Services,Other Small Contracts,Aspirations,1822.59, 05-Jan-2023
181,Revenue,CAHD,South - Commissioned Services,Other Small Contracts,Aspirations,166.08, 05-Jan-2023
182,Revenue,CAHD,South - Commissioned Services,Other Small Contracts,Aspirations,269.88, 05-Jan-2023
183,Revenue,CAHD,South - Commissioned Services,Supported Living,Aspirations,373.68, 05-Jan-2023
184,Revenue,CAHD,South - Commissioned Services,Supported Living,Aspirations,584.64, 05-Jan-2023
185,Revenue,CAHD,South - Commissioned Services,Supported Living,Aspirations,332.16, 05-Jan-2023
186,Revenue,CAHD,South - Commissioned Services,Supported Living,Aspirations,1598.52, 05-Jan-2023
187,Revenue,CAHD,South - Commissioned Services,Supported Living,Aspirations,249.12, 05-Jan-2023
188,Revenue,CAHD,South - Commissioned Services,Supported Living,Aspirations,352.92, 05-Jan-2023
189,Revenue,CAHD,South - Commissioned Services,Supported Living,Aspirations,766.80, 05-Jan-2023
190,Revenue,CAHD,South - Commissioned Services,Supported Living,Aspirations,972.00, 05-Jan-2023
191,Revenue,CAHD,South - Commissioned Services,Supported Living,Aspirations,259.50, 05-Jan-2023
192,Revenue,CAHD,South - Commissioned Services,Supported Living,Aspirations,114.18, 05-Jan-2023
193,Revenue,CAHD,South - Commissioned Services,Supported Living,Aspirations,2790.39, 05-Jan-2023
194,Revenue,CAHD,South - Commissioned Services,Supported Living,Aspirations,134.94, 05-Jan-2023
195,Revenue,CAHD,South - Commissioned Services,Supported Living,Aspirations,166.08, 05-Jan-2023
196,Revenue,CAHD,South - Commissioned Services,Supported Living,Aspirations,83.04, 05-Jan-2023
197,Revenue,CAHD,South - Commissioned Services,Supported Living,Aspirations,1442.82, 05-Jan-2023
198,Revenue,CAHD,South - Commissioned Services,Supported Living,Aspirations,477.48, 05-Jan-2023
199,Revenue,CAHD,South - Commissioned Services,Supported Living,Aspirations,2899.38, 05-Jan-2023
200,Revenue,CAHD,South - Commissioned Services,Supported Living,Aspirations,3116.51, 05-Jan-2023
201,Revenue,CAHD,South - Commissioned Services,Supported Living,Aspirations,1930.68, 05-Jan-2023
202,Revenue,CAHD,South - Commissioned Services,Supported Living,Aspirations,498.24, 05-Jan-2023
203,Revenue,CAHD,South - Commissioned Services,Mentoring,Aspirations,101.76, 05-Jan-2023
204,Revenue,CAHD,South - Commissioned Services,Mentoring,Aspirations,50.88, 05-Jan-2023
205,Revenue,CAHD,North - Community based support,Other Small Contracts,Aspirations,584.64, 05-Jan-2023
206,Revenue,CAHD,North - Community based support,Other Small Contracts,Aspirations,332.16, 05-Jan-2023
207,Revenue,CAHD,North - Community based support,Supported Living,Aspirations,2075.52, 05-Jan-2023
208,Revenue,CAHD,18-25 Year Olds,Other Small Contracts,Aspirations,166.08, 16-Jan-2023
209,Revenue,CAHD,18-25 Year Olds,Other Small Contracts,Aspirations,207.60, 16-Jan-2023
210,Revenue,CAHD,18-25 Year Olds,Other Small Contracts,Aspirations,62.28, 16-Jan-2023
211,Revenue,CAHD,18-25 Year Olds,Other Small Contracts,Aspirations,72.66, 16-Jan-2023
212,Revenue,CAHD,18-25 Year Olds,Supported Living,Aspirations,1152.18, 16-Jan-2023
213,Revenue,CAHD,18-25 Year Olds,Supported Living,Aspirations,1245.60, 16-Jan-2023
214,Revenue,CAHD,Central - Commissioned Services,Other Small Contracts,Aspirations,101.76, 16-Jan-2023
215,Revenue,CAHD,Central - Commissioned Services,Other Small Contracts,Aspirations,290.64, 16-Jan-2023
216,Revenue,CAHD,Central - Commissioned Services,Other Small Contracts,Aspirations,176.46, 16-Jan-2023
217,Revenue,CAHD,South - Commissioned Services,Other Small Contracts,Aspirations,3650.40, 16-Jan-2023
218,Revenue,CAHD,South - Commissioned Services,Other Small Contracts,Aspirations,166.08, 16-Jan-2023
219,Revenue,CAHD,South - Commissioned Services,Other Small Contracts,Aspirations,178.08, 16-Jan-2023
220,Revenue,CAHD,South - Commissioned Services,Other Small Contracts,Aspirations,404.82, 16-Jan-2023
221,Revenue,CAHD,South - Commissioned Services,Supported Living,Aspirations,373.68, 16-Jan-2023
222,Revenue,CAHD,South - Commissioned Services,Supported Living,Aspirations,1169.28, 16-Jan-2023
223,Revenue,CAHD,South - Commissioned Services,Supported Living,Aspirations,550.14, 16-Jan-2023
224,Revenue,CAHD,South - Commissioned Services,Supported Living,Aspirations,2657.28, 16-Jan-2023
225,Revenue,CAHD,South - Commissioned Services,Supported Living,Aspirations,373.68, 16-Jan-2023
226,Revenue,CAHD,South - Commissioned Services,Supported Living,Aspirations,352.92, 16-Jan-2023
227,Revenue,CAHD,South - Commissioned Services,Supported Living,Aspirations,1177.20, 16-Jan-2023
228,Revenue,CAHD,South - Commissioned Services,Supported Living,Aspirations,1101.60, 16-Jan-2023
229,Revenue,CAHD,South - Commissioned Services,Supported Living,Aspirations,342.54, 16-Jan-2023
230,Revenue,CAHD,South - Commissioned Services,Supported Living,Aspirations,5705.34, 16-Jan-2023
231,Revenue,CAHD,South - Commissioned Services,Supported Living,Aspirations,103.80, 16-Jan-2023
232,Revenue,CAHD,South - Commissioned Services,Supported Living,Aspirations,145.32, 16-Jan-2023
233,Revenue,CAHD,South - Commissioned Services,Supported Living,Aspirations,269.88, 16-Jan-2023
234,Revenue,CAHD,South - Commissioned Services,Supported Living,Aspirations,1889.16, 16-Jan-2023
235,Revenue,CAHD,South - Commissioned Services,Supported Living,Aspirations,903.06, 16-Jan-2023
236,Revenue,CAHD,South - Commissioned Services,Supported Living,Aspirations,5809.11, 16-Jan-2023
237,Revenue,CAHD,South - Commissioned Services,Supported Living,Aspirations,6332.79, 16-Jan-2023
238,Revenue,CAHD,South - Commissioned Services,Supported Living,Aspirations,3352.74, 16-Jan-2023
239,Revenue,CAHD,South - Commissioned Services,Supported Living,Aspirations,498.24, 16-Jan-2023
240,Revenue,CAHD,South - Commissioned Services,Mentoring,Aspirations,203.52, 16-Jan-2023
241,Revenue,CAHD,South - Commissioned Services,Mentoring,Aspirations,76.32, 16-Jan-2023
242,Revenue,CAHD,North - Community based support,Other Small Contracts,Aspirations,584.64, 16-Jan-2023
243,Revenue,CAHD,North - Community based support,Other Small Contracts,Aspirations,560.52, 16-Jan-2023
244,Revenue,CAHD,North - Community based support,Supported Living,Aspirations,1660.32, 16-Jan-2023
245,Revenue,CAHD,18-25 Year Olds,Other Small Contracts,Aspirations,124.56, 23-Jan-2023
246,Revenue,CAHD,18-25 Year Olds,Other Small Contracts,Aspirations,124.56, 23-Jan-2023
247,Revenue,CAHD,18-25 Year Olds,Other Small Contracts,Aspirations,41.52, 23-Jan-2023
248,Revenue,CAHD,18-25 Year Olds,Other Small Contracts,Aspirations,124.56, 23-Jan-2023
249,Revenue,CAHD,18-25 Year Olds,Other Small Contracts,Aspirations,72.66, 23-Jan-2023
250,Revenue,CAHD,18-25 Year Olds,Supported Living,Aspirations,711.03, 23-Jan-2023
251,Revenue,CAHD,18-25 Year Olds,Supported Living,Aspirations,871.92, 23-Jan-2023
252,Revenue,CAHD,Central - Commissioned Services,Other Small Contracts,Aspirations,50.88, 23-Jan-2023
253,Revenue,CAHD,Central - Commissioned Services,Other Small Contracts,Aspirations,290.64, 23-Jan-2023
254,Revenue,CAHD,Central - Commissioned Services,Other Small Contracts,Aspirations,155.70, 23-Jan-2023
255,Revenue,CAHD,South - Commissioned Services,Other Small Contracts,Aspirations,1825.20, 23-Jan-2023
256,Revenue,CAHD,South - Commissioned Services,Other Small Contracts,Aspirations,166.08, 23-Jan-2023
257,Revenue,CAHD,South - Commissioned Services,Other Small Contracts,Aspirations,89.04, 23-Jan-2023
258,Revenue,CAHD,South - Commissioned Services,Other Small Contracts,Aspirations,228.36, 23-Jan-2023
259,Revenue,CAHD,South - Commissioned Services,Supported Living,Aspirations,373.68, 23-Jan-2023
260,Revenue,CAHD,South - Commissioned Services,Supported Living,Aspirations,584.64, 23-Jan-2023
261,Revenue,CAHD,South - Commissioned Services,Supported Living,Aspirations,332.16, 23-Jan-2023
262,Revenue,CAHD,South - Commissioned Services,Supported Living,Aspirations,1390.92, 23-Jan-2023
263,Revenue,CAHD,South - Commissioned Services,Supported Living,Aspirations,238.74, 23-Jan-2023
264,Revenue,CAHD,South - Commissioned Services,Supported Living,Aspirations,228.36, 23-Jan-2023
265,Revenue,CAHD,South - Commissioned Services,Supported Living,Aspirations,766.80, 23-Jan-2023
266,Revenue,CAHD,South - Commissioned Services,Supported Living,Aspirations,864.00, 23-Jan-2023
267,Revenue,CAHD,South - Commissioned Services,Supported Living,Aspirations,259.50, 23-Jan-2023
268,Revenue,CAHD,South - Commissioned Services,Supported Living,Aspirations,228.36, 23-Jan-2023
269,Revenue,CAHD,South - Commissioned Services,Supported Living,Aspirations,2665.83, 23-Jan-2023
270,Revenue,CAHD,South - Commissioned Services,Supported Living,Aspirations,93.42, 23-Jan-2023
271,Revenue,CAHD,South - Commissioned Services,Supported Living,Aspirations,145.32, 23-Jan-2023
272,Revenue,CAHD,South - Commissioned Services,Supported Living,Aspirations,145.32, 23-Jan-2023
273,Revenue,CAHD,South - Commissioned Services,Supported Living,Aspirations,1255.98, 23-Jan-2023
274,Revenue,CAHD,South - Commissioned Services,Supported Living,Aspirations,415.20, 23-Jan-2023
275,Revenue,CAHD,South - Commissioned Services,Supported Living,Aspirations,2904.57, 23-Jan-2023
276,Revenue,CAHD,South - Commissioned Services,Supported Living,Aspirations,3278.25, 23-Jan-2023
277,Revenue,CAHD,South - Commissioned Services,Supported Living,Aspirations,1629.66, 23-Jan-2023
278,Revenue,CAHD,South - Commissioned Services,Supported Living,Aspirations,498.24, 23-Jan-2023
279,Revenue,CAHD,South - Commissioned Services,Mentoring,Aspirations,101.76, 23-Jan-2023
280,Revenue,CAHD,South - Commissioned Services,Mentoring,Aspirations,50.88, 23-Jan-2023
281,Revenue,CAHD,North - Community based support,Other Small Contracts,Aspirations,584.64, 23-Jan-2023
282,Revenue,CAHD,North - Community based support,Other Small Contracts,Aspirations,311.40, 23-Jan-2023
283,Revenue,CAHD,North - Community based support,Supported Living,Aspirations,2325.12, 23-Jan-2023
284,Revenue,CAHD,18-25 Year Olds,Other Small Contracts,Aspirations,124.56, 27-Jan-2023
285,Revenue,CAHD,18-25 Year Olds,Other Small Contracts,Aspirations,124.56, 27-Jan-2023
286,Revenue,CAHD,18-25 Year Olds,Other Small Contracts,Aspirations,83.04, 27-Jan-2023
287,Revenue,CAHD,18-25 Year Olds,Other Small Contracts,Aspirations,124.56, 27-Jan-2023
288,Revenue,CAHD,18-25 Year Olds,Other Small Contracts,Aspirations,145.32, 27-Jan-2023
289,Revenue,CAHD,18-25 Year Olds,Supported Living,Aspirations,726.60, 27-Jan-2023
290,Revenue,CAHD,18-25 Year Olds,Supported Living,Aspirations,871.92, 27-Jan-2023
291,Revenue,CAHD,Central - Commissioned Services,Other Small Contracts,Aspirations,50.88, 27-Jan-2023
292,Revenue,CAHD,Central - Commissioned Services,Other Small Contracts,Aspirations,435.96, 27-Jan-2023
293,Revenue,CAHD,Central - Commissioned Services,Other Small Contracts,Aspirations,228.36, 27-Jan-2023
294,Revenue,CAHD,South - Commissioned Services,Other Small Contracts,Aspirations,1825.20, 27-Jan-2023
295,Revenue,CAHD,South - Commissioned Services,Other Small Contracts,Aspirations,166.08, 27-Jan-2023
296,Revenue,CAHD,South - Commissioned Services,Other Small Contracts,Aspirations,134.94, 27-Jan-2023
297,Revenue,CAHD,South - Commissioned Services,Supported Living,Aspirations,373.68, 27-Jan-2023
298,Revenue,CAHD,South - Commissioned Services,Supported Living,Aspirations,584.64, 27-Jan-2023
299,Revenue,CAHD,South - Commissioned Services,Supported Living,Aspirations,332.16, 27-Jan-2023
300,Revenue,CAHD,South - Commissioned Services,Supported Living,Aspirations,1598.52, 27-Jan-2023
301,Revenue,CAHD,South - Commissioned Services,Supported Living,Aspirations,249.12, 27-Jan-2023
302,Revenue,CAHD,South - Commissioned Services,Supported Living,Aspirations,321.78, 27-Jan-2023
303,Revenue,CAHD,South - Commissioned Services,Supported Living,Aspirations,745.20, 27-Jan-2023
304,Revenue,CAHD,South - Commissioned Services,Supported Living,Aspirations,712.80, 27-Jan-2023
305,Revenue,CAHD,South - Commissioned Services,Supported Living,Aspirations,259.50, 27-Jan-2023
306,Revenue,CAHD,South - Commissioned Services,Supported Living,Aspirations,228.36, 27-Jan-2023
307,Revenue,CAHD,South - Commissioned Services,Supported Living,Aspirations,2795.58, 27-Jan-2023
308,Revenue,CAHD,South - Commissioned Services,Supported Living,Aspirations,93.42, 27-Jan-2023
309,Revenue,CAHD,South - Commissioned Services,Supported Living,Aspirations,166.08, 27-Jan-2023
310,Revenue,CAHD,South - Commissioned Services,Supported Living,Aspirations,124.56, 27-Jan-2023
311,Revenue,CAHD,South - Commissioned Services,Supported Living,Aspirations,1307.88, 27-Jan-2023
312,Revenue,CAHD,South - Commissioned Services,Supported Living,Aspirations,477.48, 27-Jan-2023
313,Revenue,CAHD,South - Commissioned Services,Supported Living,Aspirations,2904.57, 27-Jan-2023
314,Revenue,CAHD,South - Commissioned Services,Supported Living,Aspirations,3227.34, 27-Jan-2023
315,Revenue,CAHD,South - Commissioned Services,Supported Living,Aspirations,1930.68, 27-Jan-2023
316,Revenue,CAHD,South - Commissioned Services,Supported Living,Aspirations,498.24, 27-Jan-2023
317,Revenue,CAHD,South - Commissioned Services,Mentoring,Aspirations,101.76, 27-Jan-2023
318,Revenue,CAHD,South - Commissioned Services,Mentoring,Aspirations,50.88, 27-Jan-2023
319,Revenue,CAHD,North - Community based support,Other Small Contracts,Aspirations,584.64, 27-Jan-2023
320,Revenue,CAHD,North - Community based support,Other Small Contracts,Aspirations,228.36, 27-Jan-2023
321,Revenue,CAHD,North - Community based support,Supported Living,Aspirations,2325.12, 27-Jan-2023
322,Revenue,CAHD,CSC - Care Leavers Independent Living,Adults - Family Support,Aspirations Support Bristol Limited,13759.68, 10-Jan-2023
323,Revenue,CAHD,Independent Special Placements - Pre 16,Other Private Contractors,Aspris Childrens Services  Queenswood School,75201.55, 06-Jan-2023
324,Revenue,CAHD,Independent Special Placements - Pre 16,Other Private Contractors,Aspris Childrens Services Hurworth House,27766.05, 12-Jan-2023
325,Revenue,CAHD,Independent Special Placements - Pre 16,Other Private Contractors,Aspris Childrens Services Hurworth House,75201.55, 10-Jan-2023
326,Revenue,CAHD,Independent Special Placements - Pre 16,Other Private Contractors,Aspris Childrens Services North Hill House,26917.11, 12-Jan-2023
327,Revenue,CAHD,Independent Special Placements - Pre 16,Other Private Contractors,Aspris Childrens Services North Hill House,34089.91, 12-Jan-2023
328,Revenue,CAHD,Independent Special Placements - Pre 16,Other Private Contractors,Aspris Childrens Services North Hill House,26917.11, 12-Jan-2023
329,Revenue,CAHD,Independent Special Placements - Pre 16,Other Private Contractors,Aspris Childrens Services North Hill House,27484.75, 12-Jan-2023
330,Revenue,CAHD,Independent Special Placements - Post 16,Other Private Contractors,Aspris Childrens Services North Hill House,27260.35, 12-Jan-2023
331,Revenue,CAHD,Independent Special Placements - Pre 16,Other Private Contractors,Aspris Childrens Services North Hill House,18226.20, 12-Jan-2023
332,Revenue,CAHD,Independent Special Placements - Post 16,Other Private Contractors,Aspris Childrens Services Sedgemoor Manor,22246.46, 12-Jan-2023
333,Revenue,CAHD,Psychology Traded,Advertising for Recruitment,Association of Educational Psychologists,1400.00, 17-Jan-2023
334,Revenue,CAHD,Shared Lives,Other Supplies & Services,Ategi Limited,52857.00, 03-Jan-2023
335,Revenue,CAHD,18-25 Year Olds,Adults - Family Support,Ategi Limited,2806.24, 10-Jan-2023
336,Revenue,CAHD,18-25 Year Olds,Adults - Family Support,Ategi Limited,1695.36, 10-Jan-2023
337,Revenue,CAHD,18-25 Year Olds,Respite Care,Ategi Limited,0.00, 10-Jan-2023
338,Revenue,CAHD,18-25 Year Olds,Respite Care,Ategi Limited,0.00, 10-Jan-2023
339,Revenue,CAHD,18-25 Year Olds,Respite Care,Ategi Limited,0.00, 10-Jan-2023
340,Revenue,CAHD,Central - Commissioned Services,Adults - Family Support,Ategi Limited,352.00, 10-Jan-2023
341,Revenue,CAHD,Central - Commissioned Services,Adults - Family Support,Ategi Limited,1048.32, 10-Jan-2023
342,Revenue,CAHD,South - Commissioned Services,Adults - Family Support,Ategi Limited,1695.36, 10-Jan-2023
343,Revenue,CAHD,South - Commissioned Services,Adults - Family Support,Ategi Limited,2424.64, 10-Jan-2023
344,Revenue,CAHD,South - Commissioned Services,Adults - Family Support,Ategi Limited,528.00, 10-Jan-2023
345,Revenue,CAHD,South - Commissioned Services,Adults - Family Support,Ategi Limited,2424.64, 10-Jan-2023
346,Revenue,CAHD,South - Commissioned Services,Adults - Family Support,Ategi Limited,2743.68, 10-Jan-2023
347,Revenue,CAHD,South - Commissioned Services,Adults - Family Support,Ategi Limited,1056.00, 10-Jan-2023
348,Revenue,CAHD,South - Commissioned Services,Respite Care,Ategi Limited,0.00, 10-Jan-2023
349,Revenue,CAHD,South - Commissioned Services,Respite Care,Ategi Limited,0.00, 10-Jan-2023
350,Revenue,CAHD,South - Commissioned Services,Respite Care,Ategi Limited,0.00, 10-Jan-2023
351,Revenue,CAHD,North - Community based support,Adults - Family Support,Ategi Limited,1695.36, 10-Jan-2023
352,Revenue,CAHD,North - Community based support,Adults - Family Support,Ategi Limited,1695.36, 10-Jan-2023
353,Revenue,CAHD,North - Community based support,Respite Care,Ategi Limited,0.00, 10-Jan-2023
354,Revenue,CAHD,North - Community based support,Respite Care,Ategi Limited,0.00, 10-Jan-2023
355,Revenue,CAHD,Homes For Ukraine School Support,Other Public Bodies,Athelstan Trust,1850.00, 24-Jan-2023
356,Revenue,CAHD,Homes For Ukraine School Support,Other Public Bodies,Athelstan Trust,1387.50, 24-Jan-2023
357,Revenue,CAHD,LAC Teaching Staff,Other Public Bodies,Athelstan Trust,800.00, 24-Jan-2023
358,Revenue,CAHD,Schools Specific Grant Income,Other Public Bodies,Athelstan Trust,550.00, 24-Jan-2023
359,Revenue,CAHD,Schools Specific Grant Income,Other Public Bodies,Athelstan Trust,550.00, 24-Jan-2023
360,Revenue,CAHD,Statemented Support Academies,Other Public Bodies,Athelstan Trust,740.00, 24-Jan-2023
361,Revenue,CAHD,Statemented Support Academies,Other Public Bodies,Athelstan Trust,740.00, 24-Jan-2023
362,Revenue,CAHD,Statemented Support Academies,Other Public Bodies,Athelstan Trust,1012.67, 24-Jan-2023
363,Revenue,CAHD,Statemented Support Academies,Other Public Bodies,Athelstan Trust,1012.67, 24-Jan-2023
364,Revenue,CAHD,Statemented Support Academies,Other Public Bodies,Athelstan Trust,740.00, 24-Jan-2023
365,Revenue,CAHD,Statemented Support Academies,Other Public Bodies,Athelstan Trust,740.00, 24-Jan-2023
366,Revenue,CAHD,Statemented Support Academies,Other Public Bodies,Athelstan Trust,740.00, 24-Jan-2023
367,Revenue,CAHD,Statemented Support Academies,Other Public Bodies,Athelstan Trust,740.00, 24-Jan-2023
368,Revenue,CAHD,Statemented Support Academies,Other Public Bodies,Athelstan Trust,740.00, 24-Jan-2023
369,Revenue,CAHD,Statemented Support Academies,Other Public Bodies,Athelstan Trust,740.00, 24-Jan-2023
370,Revenue,CAHD,Statemented Support Academies,Other Public Bodies,Athelstan Trust,740.00, 24-Jan-2023
371,Revenue,CAHD,Statemented Support Academies,Other Public Bodies,Athelstan Trust,740.00, 24-Jan-2023
372,Revenue,CAHD,Statemented Support Academies,Other Public Bodies,Athelstan Trust,740.00, 24-Jan-2023
373,Revenue,CAHD,Statemented Support Academies,Other Public Bodies,Athelstan Trust,740.00, 24-Jan-2023
374,Revenue,CAHD,Academy Resource Base Funding,Other Public Bodies,Athelstan Trust,1698.64, 24-Jan-2023
375,Revenue,CAHD,Academy Resource Base Funding,Other Public Bodies,Athelstan Trust,1698.64, 24-Jan-2023
376,Revenue,CAHD,Academy Resource Base Funding,Other Public Bodies,Athelstan Trust,1423.61, 24-Jan-2023
377,Revenue,CAHD,Academy Resource Base Funding,Other Public Bodies,Athelstan Trust,1186.23, 24-Jan-2023
378,Revenue,CAHD,Academy Resource Base Funding,Other Public Bodies,Athelstan Trust,1186.23, 24-Jan-2023
379,Revenue,CAHD,Academy Resource Base Funding,Other Public Bodies,Athelstan Trust,1186.23, 24-Jan-2023
380,Revenue,CAHD,Academy Resource Base Funding,Other Public Bodies,Athelstan Trust,1423.61, 24-Jan-2023
381,Revenue,CAHD,Academy Resource Base Funding,Other Public Bodies,Athelstan Trust,1423.61, 24-Jan-2023
382,Revenue,CAHD,Academy Resource Base Funding,Other Public Bodies,Athelstan Trust,1423.61, 24-Jan-2023
383,Revenue,CAHD,Academy Resource Base Funding,Other Public Bodies,Athelstan Trust,1423.61, 24-Jan-2023
384,Revenue,CAHD,Academy Resource Base Funding,Other Public Bodies,Athelstan Trust,1186.23, 24-Jan-2023
385,Revenue,CAHD,Academy Resource Base Funding,Other Public Bodies,Athelstan Trust,1423.61, 24-Jan-2023
386,Revenue,CAHD,Academy Resource Base Funding,Other Public Bodies,Athelstan Trust,1423.61, 24-Jan-2023
387,Revenue,CAHD,Academy Resource Base Funding,Other Public Bodies,Athelstan Trust,1186.23, 24-Jan-2023
388,Revenue,CAHD,Academy Resource Base Funding,Other Public Bodies,Athelstan Trust,1423.61, 24-Jan-2023
389,Revenue,CAHD,Academy Resource Base Funding,Other Public Bodies,Athelstan Trust,1186.24, 24-Jan-2023
390,Revenue,CAHD,Academy Resource Base Funding,Other Public Bodies,Athelstan Trust,1186.24, 24-Jan-2023
391,Revenue,CAHD,Academy Resource Base Funding,Other Public Bodies,Athelstan Trust,1186.24, 24-Jan-2023
392,Revenue,CAHD,Academy Resource Base Funding,Other Public Bodies,Athelstan Trust,1423.61, 24-Jan-2023
393,Revenue,CAHD,Academy Resource Base Funding,Other Public Bodies,Athelstan Trust,1423.61, 24-Jan-2023
394,Revenue,CAHD,Academy Resource Base Funding,Other Public Bodies,Athelstan Trust,1423.61, 24-Jan-2023
395,Revenue,CAHD,Academy Resource Base Funding,Other Public Bodies,Athelstan Trust,1423.61, 24-Jan-2023
396,Revenue,CAHD,Academy Resource Base Funding,Other Public Bodies,Athelstan Trust,1186.24, 24-Jan-2023
397,Revenue,CAHD,Academy Resource Base Funding,Other Public Bodies,Athelstan Trust,1423.61, 24-Jan-2023
398,Revenue,CAHD,Academy Resource Base Funding,Other Public Bodies,Athelstan Trust,1423.61, 24-Jan-2023
399,Revenue,CAHD,Academy Resource Base Funding,Other Public Bodies,Athelstan Trust,1186.24, 24-Jan-2023
400,Revenue,CAHD,Academy Resource Base Funding,Other Public Bodies,Athelstan Trust,1147.97, 24-Jan-2023
401,Revenue,CAHD,Academy Resource Base Funding,Other Public Bodies,Athelstan Trust,1147.97, 24-Jan-2023
402,Revenue,CAHD,Academy Resource Base Funding,Other Public Bodies,Athelstan Trust,51446.58, 24-Jan-2023
403,Revenue,CAHD,Academy Resource Base Funding,Other Public Bodies,Athelstan Trust,12158.17, 24-Jan-2023
404,Revenue,CAHD,South Glos Alternative Provision,Fees & Charges Income - General,Athelstan Trust,4147.45, 24-Jan-2023
405,Revenue,CAHD,Independent Special Placements - Pre 16,Other Private Contractors,Aurora Hedgeway School,26843.34, 17-Jan-2023
406,Revenue,CAHD,Independent Special Placements - Pre 16,Other Private Contractors,Aurora Hedgeway School,17830.45, 17-Jan-2023
407,Revenue,CAHD,Independent Special Placements - Pre 16,Other Private Contractors,Aurora Severnside School,4467.25, 26-Jan-2023
408,Revenue,CAHD,South - Commissioned Services,Permanent Residential,Autism Specialised Care Homes,6506.88, 10-Jan-2023
409,Revenue,CAHD,South - Commissioned Services,Fees & Charges Income - General,Autism Specialised Care Homes,-438.80, 10-Jan-2023
410,Revenue,CAHD,Younger Adult Mental Health,Health Services (Third Party Payments),Avon & Wiltshire Mental Health,1700.00, 20-Jan-2023
411,Revenue,CAHD,South Glos Users in South Glos Homes,Permanent Nursing,Avon Lodge Care Centre,836.76, 10-Jan-2023
412,Revenue,CAHD,South Glos Users in South Glos Homes,Permanent Nursing,Avon Lodge Care Centre,836.76, 10-Jan-2023
413,Revenue,CAHD,South Glos Users in South Glos Homes,Permanent Nursing,Avon Lodge Care Centre,836.76, 10-Jan-2023
414,Revenue,CAHD,South Glos Users in South Glos Homes,Permanent Nursing,Avon Lodge Care Centre,836.76, 10-Jan-2023
415,Revenue,CAHD,South Glos Users in South Glos Homes,Permanent Nursing,Avon Lodge Care Centre,836.76, 10-Jan-2023
416,Revenue,CAHD,South Glos Users in South Glos Homes,Permanent Nursing,Avon Lodge Care Centre,836.76, 10-Jan-2023
417,Revenue,CAHD,South Glos Users in South Glos Homes,Permanent Nursing,Avon Lodge Care Centre,836.76, 10-Jan-2023
418,Revenue,CAHD,South Glos Users in South Glos Homes,Permanent Nursing,Avon Lodge Care Centre,836.76, 10-Jan-2023
419,Revenue,CAHD,South Glos Users in South Glos Homes,Permanent Nursing,Avon Lodge Care Centre,836.76, 10-Jan-2023
420,Revenue,CAHD,South Glos Users in South Glos Homes,Permanent Nursing,Avon Lodge Care Centre,836.76, 10-Jan-2023
421,Revenue,CAHD,South Glos Users in South Glos Homes,Permanent Nursing,Avon Lodge Care Centre,836.76, 10-Jan-2023
422,Revenue,CAHD,South Glos Users in South Glos Homes,Permanent Nursing,Avon Lodge Care Centre,836.76, 10-Jan-2023
423,Revenue,CAHD,South Glos Users in South Glos Homes,Permanent Nursing,Avon Lodge Care Centre,836.76, 10-Jan-2023
424,Revenue,CAHD,South Glos Users in South Glos Homes,Permanent Nursing,Avon Lodge Care Centre,836.76, 10-Jan-2023
425,Revenue,CAHD,South Glos Users in South Glos Homes,Permanent Nursing,Avon Lodge Care Centre,836.76, 10-Jan-2023
426,Revenue,CAHD,South Glos Users in South Glos Homes,Permanent Nursing,Avon Lodge Care Centre,836.76, 10-Jan-2023
427,Revenue,CAHD,South Glos Users in South Glos Homes,Permanent Nursing,Avon Lodge Care Centre,836.76, 10-Jan-2023
428,Revenue,CAHD,South Glos Users in South Glos Homes,Permanent Nursing,Avon Lodge Care Centre,836.76, 10-Jan-2023
429,Revenue,CAHD,South Glos Users in South Glos Homes,Permanent Nursing,Avon Lodge Care Centre,836.76, 10-Jan-2023
430,Revenue,CAHD,South Glos Users in South Glos Homes,Permanent Nursing,Avon Lodge Care Centre,836.76, 10-Jan-2023
431,Revenue,CAHD,South Glos Users in South Glos Homes,Permanent Nursing,Avon Lodge Care Centre,836.76, 10-Jan-2023
432,Revenue,CAHD,South Glos Users in South Glos Homes,Permanent Nursing,Avon Lodge Care Centre,836.76, 10-Jan-2023
433,Revenue,CAHD,South Glos Users in South Glos Homes,Permanent Nursing,Avon Lodge Care Centre,836.76, 10-Jan-2023
434,Revenue,CAHD,South Glos Users in South Glos Homes,Permanent Nursing,Avon Lodge Care Centre,836.76, 10-Jan-2023
435,Revenue,CAHD,South Glos Users in South Glos Homes,Permanent Nursing,Avon Lodge Care Centre,836.76, 10-Jan-2023
436,Revenue,CAHD,Central - Commissioned Services,Respite Care,Avon Lodge Care Centre,0.00, 10-Jan-2023
437,Revenue,CAHD,Central - Commissioned Services,Permanent Nursing,Avon Lodge Care Centre,4120.64, 10-Jan-2023
438,Revenue,CAHD,Central - Commissioned Services,Permanent Nursing,Avon Lodge Care Centre,6137.83, 10-Jan-2023
439,Revenue,CAHD,Central - Commissioned Services,Respite Planned - Nursing,Avon Lodge Care Centre,4296.48, 10-Jan-2023
440,Revenue,CAHD,Central - Commissioned Services,Fees & Charges Income - General,Avon Lodge Care Centre,-671.08, 10-Jan-2023
441,Revenue,CAHD,Central - Commissioned Services,Fees & Charges Income - General,Avon Lodge Care Centre,-956.96, 10-Jan-2023
442,Revenue,CAHD,Central - Commissioned Services,Fees & Charges Income - General,Avon Lodge Care Centre,-896.86, 10-Jan-2023
443,Revenue,CAHD,South - Commissioned Services,Respite Care,Avon Lodge Care Centre,0.00, 10-Jan-2023
444,Revenue,CAHD,South - Commissioned Services,Respite Care,Avon Lodge Care Centre,0.00, 10-Jan-2023
445,Revenue,CAHD,South - Commissioned Services,Respite Care,Avon Lodge Care Centre,0.00, 10-Jan-2023
446,Revenue,CAHD,South - Commissioned Services,Respite Care,Avon Lodge Care Centre,0.00, 10-Jan-2023
447,Revenue,CAHD,South - Commissioned Services,Permanent Residential,Avon Lodge Care Centre,4296.48, 10-Jan-2023
448,Revenue,CAHD,South - Commissioned Services,Permanent Residential,Avon Lodge Care Centre,3318.24, 10-Jan-2023
449,Revenue,CAHD,South - Commissioned Services,Permanent Residential,Avon Lodge Care Centre,3800.00, 10-Jan-2023
450,Revenue,CAHD,South - Commissioned Services,Permanent Residential,Avon Lodge Care Centre,3816.00, 10-Jan-2023
451,Revenue,CAHD,South - Commissioned Services,Permanent Residential,Avon Lodge Care Centre,4296.00, 10-Jan-2023
452,Revenue,CAHD,South - Commissioned Services,Permanent Residential,Avon Lodge Care Centre,10280.86, 10-Jan-2023
453,Revenue,CAHD,South - Commissioned Services,Permanent Residential,Avon Lodge Care Centre,3667.60, 10-Jan-2023
454,Revenue,CAHD,South - Commissioned Services,Respite Planned - Residential,Avon Lodge Care Centre,3222.36, 10-Jan-2023
455,Revenue,CAHD,South - Commissioned Services,Respite Planned - Residential,Avon Lodge Care Centre,4316.00, 10-Jan-2023
456,Revenue,CAHD,South - Commissioned Services,Permanent Nursing,Avon Lodge Care Centre,4296.48, 10-Jan-2023
457,Revenue,CAHD,South - Commissioned Services,Permanent Nursing,Avon Lodge Care Centre,4028.00, 10-Jan-2023
458,Revenue,CAHD,South - Commissioned Services,Permanent Nursing,Avon Lodge Care Centre,4296.48, 10-Jan-2023
459,Revenue,CAHD,South - Commissioned Services,Permanent Nursing,Avon Lodge Care Centre,5349.68, 10-Jan-2023
460,Revenue,CAHD,South - Commissioned Services,Permanent Nursing,Avon Lodge Care Centre,3539.44, 10-Jan-2023
461,Revenue,CAHD,South - Commissioned Services,Permanent Nursing,Avon Lodge Care Centre,3751.96, 10-Jan-2023
462,Revenue,CAHD,South - Commissioned Services,Permanent Nursing,Avon Lodge Care Centre,4210.12, 10-Jan-2023
463,Revenue,CAHD,South - Commissioned Services,Permanent Nursing,Avon Lodge Care Centre,4714.76, 10-Jan-2023
464,Revenue,CAHD,South - Commissioned Services,Permanent Nursing,Avon Lodge Care Centre,4775.44, 10-Jan-2023
465,Revenue,CAHD,South - Commissioned Services,Permanent Nursing,Avon Lodge Care Centre,4674.92, 10-Jan-2023
466,Revenue,CAHD,South - Commissioned Services,Permanent Nursing,Avon Lodge Care Centre,4664.00, 10-Jan-2023
467,Revenue,CAHD,South - Commissioned Services,Permanent Nursing,Avon Lodge Care Centre,4554.28, 10-Jan-2023
468,Revenue,CAHD,South - Commissioned Services,Permanent Nursing,Avon Lodge Care Centre,8592.96, 10-Jan-2023
469,Revenue,CAHD,South - Commissioned Services,Permanent Nursing,Avon Lodge Care Centre,4296.48, 10-Jan-2023
470,Revenue,CAHD,South - Commissioned Services,Respite Planned - Nursing,Avon Lodge Care Centre,-2455.14, 10-Jan-2023
471,Revenue,CAHD,South - Commissioned Services,Respite Planned - Nursing,Avon Lodge Care Centre,2301.69, 10-Jan-2023
472,Revenue,CAHD,South - Commissioned Services,Respite Planned - Nursing,Avon Lodge Care Centre,4296.48, 10-Jan-2023
473,Revenue,CAHD,South - Commissioned Services,Fees & Charges Income - General,Avon Lodge Care Centre,-1468.52, 10-Jan-2023
474,Revenue,CAHD,South - Commissioned Services,Fees & Charges Income - General,Avon Lodge Care Centre,-679.80, 10-Jan-2023
475,Revenue,CAHD,South - Commissioned Services,Fees & Charges Income - General,Avon Lodge Care Centre,-1332.24, 10-Jan-2023
476,Revenue,CAHD,South - Commissioned Services,Fees & Charges Income - General,Avon Lodge Care Centre,-725.24, 10-Jan-2023
477,Revenue,CAHD,South - Commissioned Services,Fees & Charges Income - General,Avon Lodge Care Centre,-1066.12, 10-Jan-2023
478,Revenue,CAHD,South - Commissioned Services,Fees & Charges Income - General,Avon Lodge Care Centre,-1393.76, 10-Jan-2023
479,Revenue,CAHD,South - Commissioned Services,Fees & Charges Income - General,Avon Lodge Care Centre,-1525.00, 10-Jan-2023
480,Revenue,CAHD,South - Commissioned Services,Fees & Charges Income - General,Avon Lodge Care Centre,-438.80, 10-Jan-2023
481,Revenue,CAHD,South - Commissioned Services,Fees & Charges Income - General,Avon Lodge Care Centre,-1280.20, 10-Jan-2023
482,Revenue,CAHD,South - Commissioned Services,Fees & Charges Income - General,Avon Lodge Care Centre,-811.68, 10-Jan-2023
483,Revenue,CAHD,South - Commissioned Services,Fees & Charges Income - General,Avon Lodge Care Centre,-1017.44, 10-Jan-2023
484,Revenue,CAHD,South - Commissioned Services,Fees & Charges Income - General,Avon Lodge Care Centre,-852.32, 10-Jan-2023
485,Revenue,CAHD,South - Commissioned Services,Fees & Charges Income - General,Avon Lodge Care Centre,-1056.84, 10-Jan-2023
486,Revenue,CAHD,South - Commissioned Services,Fees & Charges Income - General,Avon Lodge Care Centre,-1889.12, 10-Jan-2023
487,Revenue,CAHD,South - Commissioned Services,Fees & Charges Income - General,Avon Lodge Care Centre,-627.80, 10-Jan-2023
488,Revenue,CAHD,South - Commissioned Services,Fees & Charges Income - General,Avon Lodge Care Centre,-1255.60, 10-Jan-2023
489,Revenue,CAHD,South - Commissioned Services,Fees & Charges Income - General,Avon Lodge Care Centre,-627.80, 10-Jan-2023
490,Revenue,CAHD,North - Community based support,Respite Care,Avon Lodge Care Centre,0.00, 10-Jan-2023
491,Revenue,CAHD,North - Community based support,Permanent Residential,Avon Lodge Care Centre,4296.00, 10-Jan-2023
492,Revenue,CAHD,North - Community based support,Permanent Residential,Avon Lodge Care Centre,3751.96, 10-Jan-2023
493,Revenue,CAHD,North - Community based support,Permanent Nursing,Avon Lodge Care Centre,4553.76, 10-Jan-2023
494,Revenue,CAHD,North - Community based support,Permanent Nursing,Avon Lodge Care Centre,4296.48, 10-Jan-2023
495,Revenue,CAHD,North - Community based support,Permanent Nursing,Avon Lodge Care Centre,4120.64, 10-Jan-2023
496,Revenue,CAHD,North - Community based support,Fees & Charges Income - General,Avon Lodge Care Centre,-627.80, 10-Jan-2023
497,Revenue,CAHD,North - Community based support,Fees & Charges Income - General,Avon Lodge Care Centre,-1123.32, 10-Jan-2023
498,Revenue,CAHD,North - Community based support,Fees & Charges Income - General,Avon Lodge Care Centre,-1493.16, 10-Jan-2023
499,Revenue,CAHD,North - Community based support,Fees & Charges Income - General,Avon Lodge Care Centre,-794.36, 10-Jan-2023
500,Revenue,CAHD,South - Commissioned Services,Permanent Residential,Avon Valley Care Home,4526.20, 10-Jan-2023
501,Revenue,CAHD,South - Commissioned Services,Permanent Residential,Avon Valley Care Home,4294.16, 10-Jan-2023
502,Revenue,CAHD,South - Commissioned Services,Permanent Residential,Avon Valley Care Home,4483.80, 10-Jan-2023
503,Revenue,CAHD,South - Commissioned Services,Permanent Residential,Avon Valley Care Home,4294.16, 10-Jan-2023
504,Revenue,CAHD,South - Commissioned Services,Permanent Residential,Avon Valley Care Home,4526.20, 10-Jan-2023
505,Revenue,CAHD,South - Commissioned Services,Permanent Residential,Avon Valley Care Home,3214.08, 10-Jan-2023
506,Revenue,CAHD,South - Commissioned Services,Permanent Residential,Avon Valley Care Home,4483.80, 10-Jan-2023
507,Revenue,CAHD,South - Commissioned Services,Permanent Residential,Avon Valley Care Home,5190.00, 10-Jan-2023
508,Revenue,CAHD,South - Commissioned Services,Permanent Residential,Avon Valley Care Home,4570.00, 10-Jan-2023
509,Revenue,CAHD,South - Commissioned Services,Permanent Residential,Avon Valley Care Home,4728.28, 10-Jan-2023
510,Revenue,CAHD,South - Commissioned Services,Permanent Residential,Avon Valley Care Home,3860.40, 10-Jan-2023
511,Revenue,CAHD,South - Commissioned Services,Permanent Residential,Avon Valley Care Home,3980.00, 10-Jan-2023
512,Revenue,CAHD,South - Commissioned Services,Permanent Residential,Avon Valley Care Home,4483.80, 10-Jan-2023
513,Revenue,CAHD,South - Commissioned Services,Permanent Residential,Avon Valley Care Home,3980.00, 10-Jan-2023
514,Revenue,CAHD,South - Commissioned Services,Permanent Residential,Avon Valley Care Home,4400.00, 10-Jan-2023
515,Revenue,CAHD,South - Commissioned Services,Permanent Residential,Avon Valley Care Home,4712.00, 10-Jan-2023
516,Revenue,CAHD,South - Commissioned Services,Fees & Charges Income - General,Avon Valley Care Home,-1009.24, 10-Jan-2023
517,Revenue,CAHD,South - Commissioned Services,Fees & Charges Income - General,Avon Valley Care Home,-1285.52, 10-Jan-2023
518,Revenue,CAHD,South - Commissioned Services,Fees & Charges Income - General,Avon Valley Care Home,-1040.32, 10-Jan-2023
519,Revenue,CAHD,South - Commissioned Services,Fees & Charges Income - General,Avon Valley Care Home,0.00, 10-Jan-2023
520,Revenue,CAHD,South - Commissioned Services,Fees & Charges Income - General,Avon Valley Care Home,-1666.84, 10-Jan-2023
521,Revenue,CAHD,South - Commissioned Services,Fees & Charges Income - General,Avon Valley Care Home,-1972.56, 10-Jan-2023
522,Revenue,CAHD,South - Commissioned Services,Fees & Charges Income - General,Avon Valley Care Home,-663.80, 10-Jan-2023
523,Revenue,CAHD,South - Commissioned Services,Fees & Charges Income - General,Avon Valley Care Home,-1202.56, 10-Jan-2023
524,Revenue,CAHD,South - Commissioned Services,Fees & Charges Income - General,Avon Valley Care Home,-627.80, 10-Jan-2023
525,Revenue,CAHD,South - Commissioned Services,Fees & Charges Income - General,Avon Valley Care Home,-1175.92, 10-Jan-2023
526,Revenue,CAHD,South - Commissioned Services,Fees & Charges Income - General,Avon Valley Care Home,-793.84, 10-Jan-2023
527,Revenue,CAHD,South - Commissioned Services,Fees & Charges Income - General,Avon Valley Care Home,-1874.20, 10-Jan-2023
528,Revenue,CAHD,South - Commissioned Services,Fees & Charges Income - General,Avon Valley Care Home,-1557.16, 10-Jan-2023
529,Revenue,CAHD,North - Community based support,Permanent Residential,Avon Valley Care Home,4400.00, 10-Jan-2023
530,Revenue,CAHD,North - Community based support,Fees & Charges Income - General,Avon Valley Care Home,-895.20, 10-Jan-2023
531,Revenue,CAHD,South - S117,Permanent Residential,Avon Valley Care Home,4337.52, 10-Jan-2023
532,Revenue,CAHD,Central - Commissioned Services,Respite Care,Avonmere Care Home,0.00, 10-Jan-2023
533,Revenue,CAHD,Central - Commissioned Services,Permanent Residential,Avonmere Care Home,-9167.14, 10-Jan-2023
534,Revenue,CAHD,Central - Commissioned Services,Respite Planned - Residential,Avonmere Care Home,3252.85, 10-Jan-2023
535,Revenue,CAHD,Central - Commissioned Services,Fees & Charges Income - General,Avonmere Care Home,1390.13, 10-Jan-2023
536,Revenue,CAHD,South - Commissioned Services,Permanent Residential,Avonmere Care Home,3980.00, 10-Jan-2023
537,Revenue,CAHD,South - Commissioned Services,Fees & Charges Income - General,Avonmere Care Home,-992.44, 10-Jan-2023
538,Revenue,CAHD,North - Community based support,Permanent Residential,Avonmere Care Home,4140.00, 10-Jan-2023
539,Revenue,CAHD,North - Community based support,Permanent Residential,Avonmere Care Home,5618.57, 10-Jan-2023
540,Revenue,CAHD,North - Community based support,Permanent Residential,Avonmere Care Home,4960.80, 10-Jan-2023
541,Revenue,CAHD,North - Community based support,Permanent Residential,Avonmere Care Home,4793.00, 10-Jan-2023
542,Revenue,CAHD,North - Community based support,Permanent Residential,Avonmere Care Home,4876.00, 10-Jan-2023
543,Revenue,CAHD,North - Community based support,Permanent Residential,Avonmere Care Home,15286.29, 10-Jan-2023
544,Revenue,CAHD,North - Community based support,Permanent Residential,Avonmere Care Home,4140.00, 10-Jan-2023
545,Revenue,CAHD,North - Community based support,Permanent Residential,Avonmere Care Home,4140.00, 10-Jan-2023
546,Revenue,CAHD,North - Community based support,Fees & Charges Income - General,Avonmere Care Home,-1045.44, 10-Jan-2023
547,Revenue,CAHD,North - Community based support,Fees & Charges Income - General,Avonmere Care Home,-852.01, 10-Jan-2023
548,Revenue,CAHD,North - Community based support,Fees & Charges Income - General,Avonmere Care Home,-1090.32, 10-Jan-2023
549,Revenue,CAHD,North - Community based support,Fees & Charges Income - General,Avonmere Care Home,-1002.96, 10-Jan-2023
550,Revenue,CAHD,North - Community based support,Fees & Charges Income - General,Avonmere Care Home,-1111.72, 10-Jan-2023
551,Revenue,CAHD,North - Community based support,Fees & Charges Income - General,Avonmere Care Home,-3325.25, 10-Jan-2023
552,Revenue,CAHD,North - Community based support,Fees & Charges Income - General,Avonmere Care Home,-1070.64, 10-Jan-2023
553,Revenue,CAHD,North - Community based support,Fees & Charges Income - General,Avonmere Care Home,-997.40, 10-Jan-2023
554,Revenue,CAHD,South Glos Users in South Glos Homes,Permanent Nursing,Badminton Place,836.76, 10-Jan-2023
555,Revenue,CAHD,South Glos Users in South Glos Homes,Permanent Nursing,Badminton Place,836.76, 10-Jan-2023
556,Revenue,CAHD,South Glos Users in South Glos Homes,Permanent Nursing,Badminton Place,836.76, 10-Jan-2023
557,Revenue,CAHD,South Glos Users in South Glos Homes,Permanent Nursing,Badminton Place,836.76, 10-Jan-2023
558,Revenue,CAHD,South Glos Users in South Glos Homes,Permanent Nursing,Badminton Place,836.76, 10-Jan-2023
559,Revenue,CAHD,South Glos Users in South Glos Homes,Permanent Nursing,Badminton Place,836.76, 10-Jan-2023
560,Revenue,CAHD,South Glos Users in South Glos Homes,Permanent Nursing,Badminton Place,836.76, 10-Jan-2023
561,Revenue,CAHD,Central - Commissioned Services,Permanent Residential,Badminton Place,8000.00, 10-Jan-2023
562,Revenue,CAHD,Central - Commissioned Services,Fees & Charges Income - General,Badminton Place,-438.80, 10-Jan-2023
563,Revenue,CAHD,South - Commissioned Services,Permanent Residential,Badminton Place,3136.52, 10-Jan-2023
564,Revenue,CAHD,South - Commissioned Services,Fees & Charges Income - General,Badminton Place,-1502.80, 10-Jan-2023
565,Revenue,CAHD,North - Community based support,Permanent Residential,Badminton Place,4480.00, 10-Jan-2023
566,Revenue,CAHD,North - Community based support,Permanent Nursing,Badminton Place,5156.16, 10-Jan-2023
567,Revenue,CAHD,North - Community based support,Fees & Charges Income - General,Badminton Place,-689.68, 10-Jan-2023
568,Revenue,CAHD,North - Community based support,Fees & Charges Income - General,Badminton Place,-991.64, 10-Jan-2023
569,Revenue,CAHD,North - Community based support,Permanent Nursing,Bamfield Lodge,5200.00, 10-Jan-2023
570,Revenue,CAHD,North - Community based support,Fees & Charges Income - General,Bamfield Lodge,-1168.04, 10-Jan-2023
571,Revenue,CAHD,Pensions - Non DSG,Unfunded Annual Pension,Bath & North East Somerset Council,96922.08, 03-Jan-2023
572,Revenue,CAHD,Pensions - Non DSG,Unfunded Annual Pension,Bath & North East Somerset Council,96298.16, 30-Jan-2023
573,Revenue,CAHD,CSC - Adoption Support Fund,Post Adoption,Individual,735.00, 05-Jan-2023
574,Revenue,CAHD,South Glos Users in South Glos Homes,Permanent Nursing,Beaufort Grange Care Home,836.76, 10-Jan-2023
575,Revenue,CAHD,South Glos Users in South Glos Homes,Permanent Nursing,Beaufort Grange Care Home,836.76, 10-Jan-2023
576,Revenue,CAHD,South Glos Users in South Glos Homes,Permanent Nursing,Beaufort Grange Care Home,836.76, 10-Jan-2023
577,Revenue,CAHD,South Glos Users in South Glos Homes,Permanent Nursing,Beaufort Grange Care Home,836.76, 10-Jan-2023
578,Revenue,CAHD,South Glos Users in South Glos Homes,Permanent Nursing,Beaufort Grange Care Home,836.76, 10-Jan-2023
579,Revenue,CAHD,South Glos Users in South Glos Homes,Permanent Nursing,Beaufort Grange Care Home,836.76, 10-Jan-2023
580,Revenue,CAHD,South Glos Users in South Glos Homes,Permanent Nursing,Beaufort Grange Care Home,836.76, 10-Jan-2023
581,Revenue,CAHD,South Glos Users in South Glos Homes,Permanent Nursing,Beaufort Grange Care Home,836.76, 10-Jan-2023
582,Revenue,CAHD,South Glos Users in South Glos Homes,Permanent Nursing,Beaufort Grange Care Home,836.76, 10-Jan-2023
583,Revenue,CAHD,South Glos Users in South Glos Homes,Permanent Nursing,Beaufort Grange Care Home,836.76, 10-Jan-2023
584,Revenue,CAHD,South Glos Users in South Glos Homes,Permanent Nursing,Beaufort Grange Care Home,836.76, 10-Jan-2023
585,Revenue,CAHD,South Glos Users in South Glos Homes,Permanent Nursing,Beaufort Grange Care Home,836.76, 10-Jan-2023
586,Revenue,CAHD,South Glos Users in South Glos Homes,Permanent Nursing,Beaufort Grange Care Home,836.76, 10-Jan-2023
587,Revenue,CAHD,South Glos Users in South Glos Homes,Permanent Nursing,Beaufort Grange Care Home,836.76, 10-Jan-2023
588,Revenue,CAHD,South Glos Users in South Glos Homes,Permanent Nursing,Beaufort Grange Care Home,836.76, 10-Jan-2023
589,Revenue,CAHD,South Glos Users in South Glos Homes,Permanent Nursing,Beaufort Grange Care Home,836.76, 10-Jan-2023
590,Revenue,CAHD,South Glos Users in South Glos Homes,Permanent Nursing,Beaufort Grange Care Home,836.76, 10-Jan-2023
591,Revenue,CAHD,South Glos Users in South Glos Homes,Permanent Nursing,Beaufort Grange Care Home,836.76, 10-Jan-2023
592,Revenue,CAHD,South Glos Users in South Glos Homes,Permanent Nursing,Beaufort Grange Care Home,836.76, 10-Jan-2023
593,Revenue,CAHD,South Glos Users in South Glos Homes,Permanent Nursing,Beaufort Grange Care Home,836.76, 10-Jan-2023
594,Revenue,CAHD,South Glos Users in South Glos Homes,Permanent Nursing,Beaufort Grange Care Home,836.76, 10-Jan-2023
595,Revenue,CAHD,South Glos Users in South Glos Homes,Permanent Nursing,Beaufort Grange Care Home,836.76, 10-Jan-2023
596,Revenue,CAHD,South Glos Users in South Glos Homes,Permanent Nursing,Beaufort Grange Care Home,836.76, 10-Jan-2023
597,Revenue,CAHD,South Glos Users in South Glos Homes,Permanent Nursing,Beaufort Grange Care Home,836.76, 10-Jan-2023
598,Revenue,CAHD,South Glos Users in South Glos Homes,Permanent Nursing,Beaufort Grange Care Home,836.76, 10-Jan-2023
599,Revenue,CAHD,South Glos Users in South Glos Homes,Permanent Nursing,Beaufort Grange Care Home,836.76, 10-Jan-2023
600,Revenue,CAHD,South Glos Users in South Glos Homes,Permanent Nursing,Beaufort Grange Care Home,836.76, 10-Jan-2023
601,Revenue,CAHD,South Glos Users in South Glos Homes,Permanent Nursing,Beaufort Grange Care Home,836.76, 10-Jan-2023
602,Revenue,CAHD,South Glos Users in South Glos Homes,Permanent Nursing,Beaufort Grange Care Home,836.76, 10-Jan-2023
603,Revenue,CAHD,South Glos Users in South Glos Homes,Permanent Nursing,Beaufort Grange Care Home,836.76, 10-Jan-2023
604,Revenue,CAHD,South Glos Users in South Glos Homes,Permanent Nursing,Beaufort Grange Care Home,836.76, 10-Jan-2023
605,Revenue,CAHD,South Glos Users in South Glos Homes,Permanent Nursing,Beaufort Grange Care Home,836.76, 10-Jan-2023
606,Revenue,CAHD,South Glos Users in South Glos Homes,Permanent Nursing,Beaufort Grange Care Home,836.76, 10-Jan-2023
607,Revenue,CAHD,South Glos Users in South Glos Homes,Permanent Nursing,Beaufort Grange Care Home,836.76, 10-Jan-2023
608,Revenue,CAHD,South Glos Users in South Glos Homes,Permanent Nursing,Beaufort Grange Care Home,836.76, 10-Jan-2023
609,Revenue,CAHD,South Glos Users in South Glos Homes,Permanent Nursing,Beaufort Grange Care Home,836.76, 10-Jan-2023
610,Revenue,CAHD,South Glos Users in South Glos Homes,Permanent Nursing,Beaufort Grange Care Home,836.76, 10-Jan-2023
611,Revenue,CAHD,Central - Commissioned Services,Permanent Residential,Beaufort Grange Care Home,7200.00, 10-Jan-2023
612,Revenue,CAHD,Central - Commissioned Services,Permanent Nursing,Beaufort Grange Care Home,5500.00, 10-Jan-2023
613,Revenue,CAHD,Central - Commissioned Services,Permanent Nursing,Beaufort Grange Care Home,6600.00, 10-Jan-2023
614,Revenue,CAHD,Central - Commissioned Services,Permanent Nursing,Beaufort Grange Care Home,5400.00, 10-Jan-2023
615,Revenue,CAHD,Central - Commissioned Services,Permanent Nursing,Beaufort Grange Care Home,5500.00, 10-Jan-2023
616,Revenue,CAHD,Central - Commissioned Services,Permanent Nursing,Beaufort Grange Care Home,5449.60, 10-Jan-2023
617,Revenue,CAHD,Central - Commissioned Services,Permanent Nursing,Beaufort Grange Care Home,6100.00, 10-Jan-2023
618,Revenue,CAHD,Central - Commissioned Services,Fees & Charges Income - General,Beaufort Grange Care Home,-607.80, 10-Jan-2023
619,Revenue,CAHD,Central - Commissioned Services,Fees & Charges Income - General,Beaufort Grange Care Home,-894.80, 10-Jan-2023
620,Revenue,CAHD,Central - Commissioned Services,Fees & Charges Income - General,Beaufort Grange Care Home,-1002.00, 10-Jan-2023
621,Revenue,CAHD,South - Commissioned Services,Permanent Nursing,Beaufort Grange Care Home,6600.00, 10-Jan-2023
622,Revenue,CAHD,South - Commissioned Services,Permanent Nursing,Beaufort Grange Care Home,6400.00, 10-Jan-2023
623,Revenue,CAHD,North - Community based support,Permanent Residential,Beaufort Grange Care Home,8400.00, 10-Jan-2023
624,Revenue,CAHD,North - Community based support,Permanent Nursing,Beaufort Grange Care Home,4369.60, 10-Jan-2023
625,Revenue,CAHD,North - Community based support,Permanent Nursing,Beaufort Grange Care Home,10620.00, 10-Jan-2023
626,Revenue,CAHD,North - Community based support,Fees & Charges Income - General,Beaufort Grange Care Home,-627.80, 10-Jan-2023
627,Revenue,CAHD,North - Community based support,Fees & Charges Income - General,Beaufort Grange Care Home,-438.80, 10-Jan-2023
628,Revenue,CAHD,Central Team - S117,Permanent Nursing,Beaufort Grange Care Home,5849.60, 10-Jan-2023
629,Revenue,CAHD,Central - Commissioned Services,Permanent Residential,Beaufort House,3171.36, 10-Jan-2023
630,Revenue,CAHD,Central - Commissioned Services,Permanent Residential,Beaufort House,4028.00, 10-Jan-2023
631,Revenue,CAHD,Central - Commissioned Services,Permanent Residential,Beaufort House,3582.80, 10-Jan-2023
632,Revenue,CAHD,Central - Commissioned Services,Permanent Residential,Beaufort House,4000.00, 10-Jan-2023
633,Revenue,CAHD,Central - Commissioned Services,Permanent Residential,Beaufort House,3392.00, 10-Jan-2023
634,Revenue,CAHD,Central - Commissioned Services,Permanent Residential,Beaufort House,4240.00, 10-Jan-2023
635,Revenue,CAHD,Central - Commissioned Services,Permanent Residential,Beaufort House,3816.00, 10-Jan-2023
636,Revenue,CAHD,Central - Commissioned Services,Permanent Residential,Beaufort House,3816.00, 10-Jan-2023
637,Revenue,CAHD,Central - Commissioned Services,Permanent Residential,Beaufort House,4000.00, 10-Jan-2023
638,Revenue,CAHD,Central - Commissioned Services,Fees & Charges Income - General,Beaufort House,-821.12, 10-Jan-2023
639,Revenue,CAHD,Central - Commissioned Services,Fees & Charges Income - General,Beaufort House,-731.44, 10-Jan-2023
640,Revenue,CAHD,Central - Commissioned Services,Fees & Charges Income - General,Beaufort House,-1448.48, 10-Jan-2023
641,Revenue,CAHD,Central - Commissioned Services,Fees & Charges Income - General,Beaufort House,-1540.88, 10-Jan-2023
642,Revenue,CAHD,Central - Commissioned Services,Fees & Charges Income - General,Beaufort House,-751.32, 10-Jan-2023
643,Revenue,CAHD,Central - Commissioned Services,Fees & Charges Income - General,Beaufort House,-627.80, 10-Jan-2023
644,Revenue,CAHD,Central - Commissioned Services,Fees & Charges Income - General,Beaufort House,-1125.36, 10-Jan-2023
645,Revenue,CAHD,North - Community based support,Permanent Residential,Beaufort House,4240.00, 10-Jan-2023
646,Revenue,CAHD,North - Community based support,Permanent Residential,Beaufort House,2986.32, 10-Jan-2023
647,Revenue,CAHD,North - Community based support,Permanent Residential,Beaufort House,4240.00, 10-Jan-2023
648,Revenue,CAHD,North - Community based support,Fees & Charges Income - General,Beaufort House,-1166.52, 10-Jan-2023
649,Revenue,CAHD,North - Community based support,Fees & Charges Income - General,Beaufort House,-627.80, 10-Jan-2023
650,Revenue,CAHD,North - Community based support,Fees & Charges Income - General,Beaufort House,-663.80, 10-Jan-2023
651,Revenue,CAHD,South Glos Users in South Glos Homes,Permanent Nursing,Beech House,836.76, 10-Jan-2023
652,Revenue,CAHD,South Glos Users in South Glos Homes,Permanent Nursing,Beech House,5588.36, 10-Jan-2023
653,Revenue,CAHD,South Glos Users in South Glos Homes,Permanent Nursing,Beech House,836.76, 10-Jan-2023
654,Revenue,CAHD,South Glos Users in South Glos Homes,Permanent Nursing,Beech House,836.76, 10-Jan-2023
655,Revenue,CAHD,South Glos Users in South Glos Homes,Permanent Nursing,Beech House,7471.07, 10-Jan-2023
656,Revenue,CAHD,South Glos Users in South Glos Homes,Permanent Nursing,Beech House,836.76, 10-Jan-2023
657,Revenue,CAHD,South Glos Users in South Glos Homes,Permanent Nursing,Beech House,836.76, 10-Jan-2023
658,Revenue,CAHD,South Glos Users in South Glos Homes,Permanent Nursing,Beech House,836.76, 10-Jan-2023
659,Revenue,CAHD,South Glos Users in South Glos Homes,Permanent Nursing,Beech House,836.76, 10-Jan-2023
660,Revenue,CAHD,South Glos Users in South Glos Homes,Permanent Nursing,Beech House,836.76, 10-Jan-2023
661,Revenue,CAHD,South Glos Users in South Glos Homes,Permanent Nursing,Beech House,836.76, 10-Jan-2023
662,Revenue,CAHD,South Glos Users in South Glos Homes,Permanent Nursing,Beech House,836.76, 10-Jan-2023
663,Revenue,CAHD,South Glos Users in South Glos Homes,Permanent Nursing,Beech House,836.76, 10-Jan-2023
664,Revenue,CAHD,South Glos Users in South Glos Homes,Permanent Nursing,Beech House,836.76, 10-Jan-2023
665,Revenue,CAHD,South Glos Users in South Glos Homes,Permanent Nursing,Beech House,836.76, 10-Jan-2023
666,Revenue,CAHD,South Glos Users in South Glos Homes,Permanent Nursing,Beech House,836.76, 10-Jan-2023
667,Revenue,CAHD,South Glos Users in South Glos Homes,Permanent Nursing,Beech House,836.76, 10-Jan-2023
668,Revenue,CAHD,South Glos Users in South Glos Homes,Permanent Nursing,Beech House,836.76, 10-Jan-2023
669,Revenue,CAHD,South Glos Users in South Glos Homes,Permanent Nursing,Beech House,5169.98, 10-Jan-2023
670,Revenue,CAHD,South Glos Users in South Glos Homes,Permanent Nursing,Beech House,6933.15, 10-Jan-2023
671,Revenue,CAHD,South Glos Users in South Glos Homes,Permanent Nursing,Beech House,836.76, 10-Jan-2023
672,Revenue,CAHD,South Glos Users in South Glos Homes,Permanent Nursing,Beech House,836.76, 10-Jan-2023
673,Revenue,CAHD,South Glos Users in South Glos Homes,Permanent Nursing,Beech House,836.76, 10-Jan-2023
674,Revenue,CAHD,Central - Commissioned Services,Permanent Nursing,Beech House,836.76, 10-Jan-2023
675,Revenue,CAHD,South - Commissioned Services,Permanent Residential,Beech House,4748.80, 10-Jan-2023
676,Revenue,CAHD,South - Commissioned Services,Fees & Charges Income - General,Beech House,-789.36, 10-Jan-2023
677,Revenue,CAHD,North - Community based support,Permanent Residential,Beech House,4727.88, 10-Jan-2023
678,Revenue,CAHD,North - Community based support,Permanent Residential,Beech House,4748.80, 10-Jan-2023
679,Revenue,CAHD,North - Community based support,Permanent Residential,Beech House,4772.80, 10-Jan-2023
680,Revenue,CAHD,North - Community based support,Permanent Residential,Beech House,4748.80, 10-Jan-2023
681,Revenue,CAHD,North - Community based support,Permanent Residential,Beech House,4664.00, 10-Jan-2023
682,Revenue,CAHD,North - Community based support,Permanent Nursing,Beech House,4660.00, 10-Jan-2023
683,Revenue,CAHD,North - Community based support,Permanent Nursing,Beech House,4660.00, 10-Jan-2023
684,Revenue,CAHD,North - Community based support,Permanent Nursing,Beech House,836.76, 10-Jan-2023
685,Revenue,CAHD,North - Community based support,Permanent Nursing,Beech House,4760.00, 10-Jan-2023
686,Revenue,CAHD,North - Community based support,Permanent Nursing,Beech House,4641.16, 10-Jan-2023
687,Revenue,CAHD,North - Community based support,Permanent Nursing,Beech House,4671.56, 10-Jan-2023
688,Revenue,CAHD,North - Community based support,Permanent Nursing,Beech House,836.76, 10-Jan-2023
689,Revenue,CAHD,North - Community based support,Permanent Nursing,Beech House,4772.80, 10-Jan-2023
690,Revenue,CAHD,North - Community based support,Permanent Nursing,Beech House,5496.00, 10-Jan-2023
691,Revenue,CAHD,North - Community based support,Fees & Charges Income - General,Beech House,-627.80, 10-Jan-2023
692,Revenue,CAHD,North - Community based support,Fees & Charges Income - General,Beech House,-1904.60, 10-Jan-2023
693,Revenue,CAHD,North - Community based support,Fees & Charges Income - General,Beech House,-1649.80, 10-Jan-2023
694,Revenue,CAHD,North - Community based support,Fees & Charges Income - General,Beech House,-1356.72, 10-Jan-2023
695,Revenue,CAHD,North - Community based support,Fees & Charges Income - General,Beech House,-1822.16, 10-Jan-2023
696,Revenue,CAHD,North - Community based support,Fees & Charges Income - General,Beech House,-629.00, 10-Jan-2023
697,Revenue,CAHD,North - Community based support,Fees & Charges Income - General,Beech House,-1428.72, 10-Jan-2023
698,Revenue,CAHD,North - Community based support,Fees & Charges Income - General,Beech House,-1206.20, 10-Jan-2023
699,Revenue,CAHD,North - Community based support,Fees & Charges Income - General,Beech House,-840.16, 10-Jan-2023
700,Revenue,CAHD,North - Community based support,Fees & Charges Income - General,Beech House,-5863.78, 10-Jan-2023
701,Revenue,CAHD,North - Community based support,Fees & Charges Income - General,Beech House,-2575.72, 10-Jan-2023
702,Revenue,CAHD,18-25 Year Olds,Permanent Residential,Beechwood Court Ltd,15505.70, 20-Jan-2023
703,Revenue,CAHD,18-25 Year Olds,Permanent Residential,Beechwood Court Ltd,22328.35, 20-Jan-2023
704,Revenue,CAHD,Independent Special Placements - Pre 16,Other Private Contractors,Belgrave School,9044.20, 12-Jan-2023
705,Revenue,CAHD,Independent Special Placements - Pre 16,Other Private Contractors,Belgrave School,5112.00, 13-Jan-2023
706,Revenue,CAHD,Independent Special Placements - Pre 16,Other Private Contractors,Belgrave School,7175.00, 13-Jan-2023
707,Revenue,CAHD,Independent Special Placements - Pre 16,Other Private Contractors,Belgrave School,8548.35, 13-Jan-2023
708,Revenue,CAHD,Independent Special Placements - Pre 16,Other Private Contractors,Belgrave School,12825.00, 13-Jan-2023
709,Revenue,CAHD,South - S117,Permanent Residential,Bidna House,3774.24, 10-Jan-2023
710,Revenue,CAHD,Schools Specific Grant Income,Other Public Bodies,Birkenhead Park School,550.00, 12-Jan-2023
711,Revenue,CAHD,Placements OLA Special Schools and RB,Other L.A.s - General,Blaise High School,792.40, 20-Jan-2023
712,Revenue,CAHD,Placements OLA Special Schools and RB,Other L.A.s - General,Blaise High School,792.40, 20-Jan-2023
713,Revenue,CAHD,Statemented Support Payments to OLAs,Other L.A.s - General,Blaise High School,907.83, 20-Jan-2023
714,Revenue,CAHD,Placements OLA Special Schools and RB,Other L.A.s - General,Blaise High School,792.40, 20-Jan-2023
715,Revenue,CAHD,18-25 Year Olds,Other Small Contracts,Blakehill Healthcare Ltd,953.28, 09-Jan-2023
716,Revenue,CAHD,Central - Commissioned Services,Other Small Contracts,Blakehill Healthcare Ltd,423.68, 09-Jan-2023
717,Revenue,CAHD,Central - Commissioned Services,Other Small Contracts,Blakehill Healthcare Ltd,185.36, 09-Jan-2023
718,Revenue,CAHD,Central - Commissioned Services,Other Small Contracts,Blakehill Healthcare Ltd,509.74, 09-Jan-2023
719,Revenue,CAHD,Central - Commissioned Services,Other Small Contracts,Blakehill Healthcare Ltd,3311.28, 09-Jan-2023
720,Revenue,CAHD,Central - Commissioned Services,Other Small Contracts,Blakehill Healthcare Ltd,390.58, 09-Jan-2023
721,Revenue,CAHD,Central - Commissioned Services,Other Small Contracts,Blakehill Healthcare Ltd,2078.68, 09-Jan-2023
722,Revenue,CAHD,Central - Commissioned Services,Other Small Contracts,Blakehill Healthcare Ltd,1184.98, 09-Jan-2023
723,Revenue,CAHD,Central - Commissioned Services,Other Small Contracts,Blakehill Healthcare Ltd,377.34, 09-Jan-2023
724,Revenue,CAHD,Central - Commissioned Services,Other Small Contracts,Blakehill Healthcare Ltd,370.72, 09-Jan-2023
725,Revenue,CAHD,Central - Commissioned Services,Other Small Contracts,Blakehill Healthcare Ltd,1694.72, 09-Jan-2023
726,Revenue,CAHD,Central - Commissioned Services,Other Small Contracts,Blakehill Healthcare Ltd,119.16, 09-Jan-2023
727,Revenue,CAHD,Central - Commissioned Services,Other Small Contracts,Blakehill Healthcare Ltd,423.68, 09-Jan-2023
728,Revenue,CAHD,Central - Commissioned Services,Other Small Contracts,Blakehill Healthcare Ltd,410.44, 09-Jan-2023
729,Revenue,CAHD,Central - Commissioned Services,Other Small Contracts,Blakehill Healthcare Ltd,383.96, 09-Jan-2023
730,Revenue,CAHD,Central - Commissioned Services,Other Small Contracts,Blakehill Healthcare Ltd,648.76, 09-Jan-2023
731,Revenue,CAHD,Central - Commissioned Services,Other Small Contracts,Blakehill Healthcare Ltd,840.74, 09-Jan-2023
732,Revenue,CAHD,Central - Commissioned Services,Other Small Contracts,Blakehill Healthcare Ltd,1496.12, 09-Jan-2023
733,Revenue,CAHD,Central - Commissioned Services,Other Small Contracts,Blakehill Healthcare Ltd,364.10, 09-Jan-2023
734,Revenue,CAHD,South - Commissioned Services,Other Small Contracts,Blakehill Healthcare Ltd,668.62, 09-Jan-2023
735,Revenue,CAHD,South - Commissioned Services,Other Small Contracts,Blakehill Healthcare Ltd,370.72, 09-Jan-2023
736,Revenue,CAHD,South - Commissioned Services,Other Small Contracts,Blakehill Healthcare Ltd,1297.52, 09-Jan-2023
737,Revenue,CAHD,South - Commissioned Services,Other Small Contracts,Blakehill Healthcare Ltd,2933.28, 09-Jan-2023
738,Revenue,CAHD,South - Commissioned Services,Other Small Contracts,Blakehill Healthcare Ltd,1509.36, 09-Jan-2023
739,Revenue,CAHD,South - Commissioned Services,Other Small Contracts,Blakehill Healthcare Ltd,953.28, 09-Jan-2023
740,Revenue,CAHD,South - Commissioned Services,Other Small Contracts,Blakehill Healthcare Ltd,754.68, 09-Jan-2023
741,Revenue,CAHD,South - Commissioned Services,Other Small Contracts,Blakehill Healthcare Ltd,628.90, 09-Jan-2023
742,Revenue,CAHD,South - Commissioned Services,Mentoring,Blakehill Healthcare Ltd,79.44, 09-Jan-2023
743,Revenue,CAHD,North - Community based support,Other Small Contracts,Blakehill Healthcare Ltd,549.46, 09-Jan-2023
744,Revenue,CAHD,North - Community based support,Other Small Contracts,Blakehill Healthcare Ltd,4497.76, 09-Jan-2023
745,Revenue,CAHD,North - Community based support,Other Small Contracts,Blakehill Healthcare Ltd,695.10, 09-Jan-2023
746,Revenue,CAHD,North - Community based support,Other Small Contracts,Blakehill Healthcare Ltd,748.06, 09-Jan-2023
747,Revenue,CAHD,18-25 Year Olds,Other Small Contracts,Blakehill Healthcare Ltd,509.74, 05-Jan-2023
748,Revenue,CAHD,Central - Commissioned Services,Other Small Contracts,Blakehill Healthcare Ltd,211.84, 05-Jan-2023
749,Revenue,CAHD,Central - Commissioned Services,Other Small Contracts,Blakehill Healthcare Ltd,92.68, 05-Jan-2023
750,Revenue,CAHD,Central - Commissioned Services,Other Small Contracts,Blakehill Healthcare Ltd,278.04, 05-Jan-2023
751,Revenue,CAHD,Central - Commissioned Services,Other Small Contracts,Blakehill Healthcare Ltd,483.26, 05-Jan-2023
752,Revenue,CAHD,Central - Commissioned Services,Other Small Contracts,Blakehill Healthcare Ltd,185.36, 05-Jan-2023
753,Revenue,CAHD,Central - Commissioned Services,Other Small Contracts,Blakehill Healthcare Ltd,1012.86, 05-Jan-2023
754,Revenue,CAHD,Central - Commissioned Services,Other Small Contracts,Blakehill Healthcare Ltd,628.90, 05-Jan-2023
755,Revenue,CAHD,Central - Commissioned Services,Other Small Contracts,Blakehill Healthcare Ltd,185.36, 05-Jan-2023
756,Revenue,CAHD,Central - Commissioned Services,Other Small Contracts,Blakehill Healthcare Ltd,840.74, 05-Jan-2023
757,Revenue,CAHD,Central - Commissioned Services,Other Small Contracts,Blakehill Healthcare Ltd,211.84, 05-Jan-2023
758,Revenue,CAHD,Central - Commissioned Services,Other Small Contracts,Blakehill Healthcare Ltd,178.74, 05-Jan-2023
759,Revenue,CAHD,Central - Commissioned Services,Other Small Contracts,Blakehill Healthcare Ltd,191.98, 05-Jan-2023
760,Revenue,CAHD,Central - Commissioned Services,Other Small Contracts,Blakehill Healthcare Ltd,317.76, 05-Jan-2023
761,Revenue,CAHD,Central - Commissioned Services,Other Small Contracts,Blakehill Healthcare Ltd,443.54, 05-Jan-2023
762,Revenue,CAHD,Central - Commissioned Services,Other Small Contracts,Blakehill Healthcare Ltd,748.06, 05-Jan-2023
763,Revenue,CAHD,Central - Commissioned Services,Other Small Contracts,Blakehill Healthcare Ltd,191.98, 05-Jan-2023
764,Revenue,CAHD,South - Commissioned Services,Other Small Contracts,Blakehill Healthcare Ltd,337.62, 05-Jan-2023
765,Revenue,CAHD,South - Commissioned Services,Other Small Contracts,Blakehill Healthcare Ltd,185.36, 05-Jan-2023
766,Revenue,CAHD,South - Commissioned Services,Other Small Contracts,Blakehill Healthcare Ltd,635.52, 05-Jan-2023
767,Revenue,CAHD,South - Commissioned Services,Other Small Contracts,Blakehill Healthcare Ltd,1466.64, 05-Jan-2023
768,Revenue,CAHD,South - Commissioned Services,Other Small Contracts,Blakehill Healthcare Ltd,734.82, 05-Jan-2023
769,Revenue,CAHD,South - Commissioned Services,Other Small Contracts,Blakehill Healthcare Ltd,489.88, 05-Jan-2023
770,Revenue,CAHD,South - Commissioned Services,Other Small Contracts,Blakehill Healthcare Ltd,364.10, 05-Jan-2023
771,Revenue,CAHD,South - Commissioned Services,Other Small Contracts,Blakehill Healthcare Ltd,311.14, 05-Jan-2023
772,Revenue,CAHD,South - Commissioned Services,Mentoring,Blakehill Healthcare Ltd,79.44, 05-Jan-2023
773,Revenue,CAHD,North - Community based support,Other Small Contracts,Blakehill Healthcare Ltd,304.52, 05-Jan-2023
774,Revenue,CAHD,North - Community based support,Other Small Contracts,Blakehill Healthcare Ltd,1921.54, 05-Jan-2023
775,Revenue,CAHD,North - Community based support,Other Small Contracts,Blakehill Healthcare Ltd,562.70, 05-Jan-2023
776,Revenue,CAHD,North - Community based support,Other Small Contracts,Blakehill Healthcare Ltd,324.38, 05-Jan-2023
777,Revenue,CAHD,North - Community based support,Other Small Contracts,Blakehill Healthcare Ltd,370.72, 05-Jan-2023
778,Revenue,CAHD,18-25 Year Olds,Other Small Contracts,Blakehill Healthcare Ltd,483.26, 23-Jan-2023
779,Revenue,CAHD,Central - Commissioned Services,Other Small Contracts,Blakehill Healthcare Ltd,211.84, 23-Jan-2023
780,Revenue,CAHD,Central - Commissioned Services,Other Small Contracts,Blakehill Healthcare Ltd,92.68, 23-Jan-2023
781,Revenue,CAHD,Central - Commissioned Services,Other Small Contracts,Blakehill Healthcare Ltd,337.62, 23-Jan-2023
782,Revenue,CAHD,Central - Commissioned Services,Other Small Contracts,Blakehill Healthcare Ltd,2169.64, 23-Jan-2023
783,Revenue,CAHD,Central - Commissioned Services,Other Small Contracts,Blakehill Healthcare Ltd,185.36, 23-Jan-2023
784,Revenue,CAHD,Central - Commissioned Services,Other Small Contracts,Blakehill Healthcare Ltd,1026.10, 23-Jan-2023
785,Revenue,CAHD,Central - Commissioned Services,Other Small Contracts,Blakehill Healthcare Ltd,582.56, 23-Jan-2023
786,Revenue,CAHD,Central - Commissioned Services,Other Small Contracts,Blakehill Healthcare Ltd,231.70, 23-Jan-2023
787,Revenue,CAHD,Central - Commissioned Services,Other Small Contracts,Blakehill Healthcare Ltd,172.12, 23-Jan-2023
788,Revenue,CAHD,Central - Commissioned Services,Other Small Contracts,Blakehill Healthcare Ltd,105.92, 23-Jan-2023
789,Revenue,CAHD,Central - Commissioned Services,Other Small Contracts,Blakehill Healthcare Ltd,205.22, 23-Jan-2023
790,Revenue,CAHD,Central - Commissioned Services,Other Small Contracts,Blakehill Healthcare Ltd,211.84, 23-Jan-2023
791,Revenue,CAHD,Central - Commissioned Services,Other Small Contracts,Blakehill Healthcare Ltd,191.98, 23-Jan-2023
792,Revenue,CAHD,Central - Commissioned Services,Other Small Contracts,Blakehill Healthcare Ltd,185.36, 23-Jan-2023
793,Revenue,CAHD,Central - Commissioned Services,Other Small Contracts,Blakehill Healthcare Ltd,324.38, 23-Jan-2023
794,Revenue,CAHD,Central - Commissioned Services,Other Small Contracts,Blakehill Healthcare Ltd,423.68, 23-Jan-2023
795,Revenue,CAHD,Central - Commissioned Services,Other Small Contracts,Blakehill Healthcare Ltd,774.54, 23-Jan-2023
796,Revenue,CAHD,Central - Commissioned Services,Other Small Contracts,Blakehill Healthcare Ltd,185.36, 23-Jan-2023
797,Revenue,CAHD,South - Commissioned Services,Other Small Contracts,Blakehill Healthcare Ltd,324.38, 23-Jan-2023
798,Revenue,CAHD,South - Commissioned Services,Other Small Contracts,Blakehill Healthcare Ltd,191.98, 23-Jan-2023
799,Revenue,CAHD,South - Commissioned Services,Other Small Contracts,Blakehill Healthcare Ltd,615.66, 23-Jan-2023
800,Revenue,CAHD,South - Commissioned Services,Other Small Contracts,Blakehill Healthcare Ltd,1618.90, 23-Jan-2023
801,Revenue,CAHD,South - Commissioned Services,Other Small Contracts,Blakehill Healthcare Ltd,754.68, 23-Jan-2023
802,Revenue,CAHD,South - Commissioned Services,Other Small Contracts,Blakehill Healthcare Ltd,470.02, 23-Jan-2023
803,Revenue,CAHD,South - Commissioned Services,Other Small Contracts,Blakehill Healthcare Ltd,324.38, 23-Jan-2023
804,Revenue,CAHD,South - Commissioned Services,Mentoring,Blakehill Healthcare Ltd,172.12, 23-Jan-2023
805,Revenue,CAHD,North - Community based support,Other Small Contracts,Blakehill Healthcare Ltd,284.66, 23-Jan-2023
806,Revenue,CAHD,North - Community based support,Other Small Contracts,Blakehill Healthcare Ltd,2826.38, 23-Jan-2023
807,Revenue,CAHD,North - Community based support,Other Small Contracts,Blakehill Healthcare Ltd,344.24, 23-Jan-2023
808,Revenue,CAHD,North - Community based support,Other Small Contracts,Blakehill Healthcare Ltd,377.34, 23-Jan-2023
809,Revenue,CAHD,18-25 Year Olds,Other Small Contracts,Blakehill Healthcare Ltd,483.26, 23-Jan-2023
810,Revenue,CAHD,Central - Commissioned Services,Other Small Contracts,Blakehill Healthcare Ltd,218.46, 23-Jan-2023
811,Revenue,CAHD,Central - Commissioned Services,Other Small Contracts,Blakehill Healthcare Ltd,86.06, 23-Jan-2023
812,Revenue,CAHD,Central - Commissioned Services,Other Small Contracts,Blakehill Healthcare Ltd,377.34, 23-Jan-2023
813,Revenue,CAHD,Central - Commissioned Services,Other Small Contracts,Blakehill Healthcare Ltd,2129.55, 23-Jan-2023
814,Revenue,CAHD,Central - Commissioned Services,Other Small Contracts,Blakehill Healthcare Ltd,172.12, 23-Jan-2023
815,Revenue,CAHD,Central - Commissioned Services,Other Small Contracts,Blakehill Healthcare Ltd,1032.72, 23-Jan-2023
816,Revenue,CAHD,Central - Commissioned Services,Other Small Contracts,Blakehill Healthcare Ltd,549.46, 23-Jan-2023
817,Revenue,CAHD,Central - Commissioned Services,Other Small Contracts,Blakehill Healthcare Ltd,218.46, 23-Jan-2023
818,Revenue,CAHD,Central - Commissioned Services,Other Small Contracts,Blakehill Healthcare Ltd,205.22, 23-Jan-2023
819,Revenue,CAHD,Central - Commissioned Services,Other Small Contracts,Blakehill Healthcare Ltd,840.74, 23-Jan-2023
820,Revenue,CAHD,Central - Commissioned Services,Other Small Contracts,Blakehill Healthcare Ltd,185.36, 23-Jan-2023
821,Revenue,CAHD,Central - Commissioned Services,Other Small Contracts,Blakehill Healthcare Ltd,191.98, 23-Jan-2023
822,Revenue,CAHD,Central - Commissioned Services,Other Small Contracts,Blakehill Healthcare Ltd,185.36, 23-Jan-2023
823,Revenue,CAHD,Central - Commissioned Services,Other Small Contracts,Blakehill Healthcare Ltd,390.58, 23-Jan-2023
824,Revenue,CAHD,Central - Commissioned Services,Other Small Contracts,Blakehill Healthcare Ltd,417.06, 23-Jan-2023
825,Revenue,CAHD,Central - Commissioned Services,Other Small Contracts,Blakehill Healthcare Ltd,754.68, 23-Jan-2023
826,Revenue,CAHD,Central - Commissioned Services,Other Small Contracts,Blakehill Healthcare Ltd,152.26, 23-Jan-2023
827,Revenue,CAHD,South - Commissioned Services,Other Small Contracts,Blakehill Healthcare Ltd,331.00, 23-Jan-2023
828,Revenue,CAHD,South - Commissioned Services,Other Small Contracts,Blakehill Healthcare Ltd,185.36, 23-Jan-2023
829,Revenue,CAHD,South - Commissioned Services,Other Small Contracts,Blakehill Healthcare Ltd,642.14, 23-Jan-2023
830,Revenue,CAHD,South - Commissioned Services,Other Small Contracts,Blakehill Healthcare Ltd,1693.98, 23-Jan-2023
831,Revenue,CAHD,South - Commissioned Services,Other Small Contracts,Blakehill Healthcare Ltd,754.68, 23-Jan-2023
832,Revenue,CAHD,South - Commissioned Services,Other Small Contracts,Blakehill Healthcare Ltd,470.02, 23-Jan-2023
833,Revenue,CAHD,South - Commissioned Services,Other Small Contracts,Blakehill Healthcare Ltd,324.38, 23-Jan-2023
834,Revenue,CAHD,South - Commissioned Services,Mentoring,Blakehill Healthcare Ltd,79.44, 23-Jan-2023
835,Revenue,CAHD,North - Community based support,Other Small Contracts,Blakehill Healthcare Ltd,271.42, 23-Jan-2023
836,Revenue,CAHD,North - Community based support,Other Small Contracts,Blakehill Healthcare Ltd,1737.94, 23-Jan-2023
837,Revenue,CAHD,North - Community based support,Other Small Contracts,Blakehill Healthcare Ltd,317.76, 23-Jan-2023
838,Revenue,CAHD,North - Community based support,Other Small Contracts,Blakehill Healthcare Ltd,383.96, 23-Jan-2023
839,Revenue,CAHD,18-25 Year Olds,Other Small Contracts,Blakehill Healthcare Ltd,979.76, 27-Jan-2023
840,Revenue,CAHD,Central - Commissioned Services,Other Small Contracts,Blakehill Healthcare Ltd,430.30, 27-Jan-2023
841,Revenue,CAHD,Central - Commissioned Services,Other Small Contracts,Blakehill Healthcare Ltd,185.36, 27-Jan-2023
842,Revenue,CAHD,Central - Commissioned Services,Other Small Contracts,Blakehill Healthcare Ltd,701.72, 27-Jan-2023
843,Revenue,CAHD,Central - Commissioned Services,Other Small Contracts,Blakehill Healthcare Ltd,4391.05, 27-Jan-2023
844,Revenue,CAHD,Central - Commissioned Services,Other Small Contracts,Blakehill Healthcare Ltd,370.72, 27-Jan-2023
845,Revenue,CAHD,Central - Commissioned Services,Other Small Contracts,Blakehill Healthcare Ltd,2065.44, 27-Jan-2023
846,Revenue,CAHD,Central - Commissioned Services,Other Small Contracts,Blakehill Healthcare Ltd,1132.02, 27-Jan-2023
847,Revenue,CAHD,Central - Commissioned Services,Other Small Contracts,Blakehill Healthcare Ltd,456.78, 27-Jan-2023
848,Revenue,CAHD,Central - Commissioned Services,Other Small Contracts,Blakehill Healthcare Ltd,383.96, 27-Jan-2023
849,Revenue,CAHD,Central - Commissioned Services,Other Small Contracts,Blakehill Healthcare Ltd,1403.44, 27-Jan-2023
850,Revenue,CAHD,Central - Commissioned Services,Other Small Contracts,Blakehill Healthcare Ltd,403.82, 27-Jan-2023
851,Revenue,CAHD,Central - Commissioned Services,Other Small Contracts,Blakehill Healthcare Ltd,370.72, 27-Jan-2023
852,Revenue,CAHD,Central - Commissioned Services,Other Small Contracts,Blakehill Healthcare Ltd,383.96, 27-Jan-2023
853,Revenue,CAHD,Central - Commissioned Services,Other Small Contracts,Blakehill Healthcare Ltd,648.76, 27-Jan-2023
854,Revenue,CAHD,Central - Commissioned Services,Other Small Contracts,Blakehill Healthcare Ltd,834.12, 27-Jan-2023
855,Revenue,CAHD,Central - Commissioned Services,Other Small Contracts,Blakehill Healthcare Ltd,1482.88, 27-Jan-2023
856,Revenue,CAHD,Central - Commissioned Services,Other Small Contracts,Blakehill Healthcare Ltd,370.72, 27-Jan-2023
857,Revenue,CAHD,South - Commissioned Services,Other Small Contracts,Blakehill Healthcare Ltd,662.00, 27-Jan-2023
858,Revenue,CAHD,South - Commissioned Services,Other Small Contracts,Blakehill Healthcare Ltd,370.72, 27-Jan-2023
859,Revenue,CAHD,South - Commissioned Services,Other Small Contracts,Blakehill Healthcare Ltd,1343.86, 27-Jan-2023
860,Revenue,CAHD,South - Commissioned Services,Other Small Contracts,Blakehill Healthcare Ltd,3409.92, 27-Jan-2023
861,Revenue,CAHD,South - Commissioned Services,Other Small Contracts,Blakehill Healthcare Ltd,1509.36, 27-Jan-2023
862,Revenue,CAHD,South - Commissioned Services,Other Small Contracts,Blakehill Healthcare Ltd,953.28, 27-Jan-2023
863,Revenue,CAHD,South - Commissioned Services,Other Small Contracts,Blakehill Healthcare Ltd,642.14, 27-Jan-2023
864,Revenue,CAHD,South - Commissioned Services,Mentoring,Blakehill Healthcare Ltd,317.76, 27-Jan-2023
865,Revenue,CAHD,North - Community based support,Other Small Contracts,Blakehill Healthcare Ltd,562.70, 27-Jan-2023
866,Revenue,CAHD,North - Community based support,Other Small Contracts,Blakehill Healthcare Ltd,4549.74, 27-Jan-2023
867,Revenue,CAHD,North - Community based support,Other Small Contracts,Blakehill Healthcare Ltd,662.00, 27-Jan-2023
868,Revenue,CAHD,North - Community based support,Other Small Contracts,Blakehill Healthcare Ltd,582.56, 27-Jan-2023
869,Revenue,CAHD,Holiday Activities & Food Grant,Other Supplies & Services,Bloodhound Education Limited,2700.00, 06-Jan-2023
870,Revenue,CAHD,South Glos Users in South Glos Homes,Permanent Nursing,Blossom Fields Nursing Home,836.76, 10-Jan-2023
871,Revenue,CAHD,South Glos Users in South Glos Homes,Permanent Nursing,Blossom Fields Nursing Home,836.76, 10-Jan-2023
872,Revenue,CAHD,South Glos Users in South Glos Homes,Permanent Nursing,Blossom Fields Nursing Home,836.76, 10-Jan-2023
873,Revenue,CAHD,South Glos Users in South Glos Homes,Permanent Nursing,Blossom Fields Nursing Home,836.76, 10-Jan-2023
874,Revenue,CAHD,South Glos Users in South Glos Homes,Permanent Nursing,Blossom Fields Nursing Home,836.76, 10-Jan-2023
875,Revenue,CAHD,South Glos Users in South Glos Homes,Permanent Nursing,Blossom Fields Nursing Home,836.76, 10-Jan-2023
876,Revenue,CAHD,South Glos Users in South Glos Homes,Permanent Nursing,Blossom Fields Nursing Home,836.76, 10-Jan-2023
877,Revenue,CAHD,South Glos Users in South Glos Homes,Permanent Nursing,Blossom Fields Nursing Home,836.76, 10-Jan-2023
878,Revenue,CAHD,South Glos Users in South Glos Homes,Permanent Nursing,Blossom Fields Nursing Home,836.76, 10-Jan-2023
879,Revenue,CAHD,South Glos Users in South Glos Homes,Permanent Nursing,Blossom Fields Nursing Home,836.76, 10-Jan-2023
880,Revenue,CAHD,South Glos Users in South Glos Homes,Permanent Nursing,Blossom Fields Nursing Home,836.76, 10-Jan-2023
881,Revenue,CAHD,South Glos Users in South Glos Homes,Permanent Nursing,Blossom Fields Nursing Home,836.76, 10-Jan-2023
882,Revenue,CAHD,South Glos Users in South Glos Homes,Permanent Nursing,Blossom Fields Nursing Home,836.76, 10-Jan-2023
883,Revenue,CAHD,South Glos Users in South Glos Homes,Permanent Nursing,Blossom Fields Nursing Home,836.76, 10-Jan-2023
884,Revenue,CAHD,South Glos Users in South Glos Homes,Permanent Nursing,Blossom Fields Nursing Home,836.76, 10-Jan-2023
885,Revenue,CAHD,South Glos Users in South Glos Homes,Permanent Nursing,Blossom Fields Nursing Home,836.76, 10-Jan-2023
886,Revenue,CAHD,South Glos Users in South Glos Homes,Permanent Nursing,Blossom Fields Nursing Home,836.76, 10-Jan-2023
887,Revenue,CAHD,South Glos Users in South Glos Homes,Permanent Nursing,Blossom Fields Nursing Home,836.76, 10-Jan-2023
888,Revenue,CAHD,South Glos Users in South Glos Homes,Permanent Nursing,Blossom Fields Nursing Home,836.76, 10-Jan-2023
889,Revenue,CAHD,South Glos Users in South Glos Homes,Permanent Nursing,Blossom Fields Nursing Home,836.76, 10-Jan-2023
890,Revenue,CAHD,South Glos Users in South Glos Homes,Permanent Nursing,Blossom Fields Nursing Home,836.76, 10-Jan-2023
891,Revenue,CAHD,South Glos Users in South Glos Homes,Permanent Nursing,Blossom Fields Nursing Home,836.76, 10-Jan-2023
892,Revenue,CAHD,South Glos Users in South Glos Homes,Permanent Nursing,Blossom Fields Nursing Home,836.76, 10-Jan-2023
893,Revenue,CAHD,South Glos Users in South Glos Homes,Permanent Nursing,Blossom Fields Nursing Home,836.76, 10-Jan-2023
894,Revenue,CAHD,South Glos Users in South Glos Homes,Permanent Nursing,Blossom Fields Nursing Home,836.76, 10-Jan-2023
895,Revenue,CAHD,South Glos Users in South Glos Homes,Permanent Nursing,Blossom Fields Nursing Home,836.76, 10-Jan-2023
896,Revenue,CAHD,Central - Commissioned Services,Respite Care,Blossom Fields Nursing Home,0.00, 10-Jan-2023
897,Revenue,CAHD,Central - Commissioned Services,Respite Planned - Residential,Blossom Fields Nursing Home,3085.72, 10-Jan-2023
898,Revenue,CAHD,Central - Commissioned Services,Permanent Nursing,Blossom Fields Nursing Home,4800.00, 10-Jan-2023
899,Revenue,CAHD,Central - Commissioned Services,Respite Planned - Nursing,Blossom Fields Nursing Home,11122.90, 10-Jan-2023
900,Revenue,CAHD,Central - Commissioned Services,Fees & Charges Income - General,Blossom Fields Nursing Home,-627.80, 10-Jan-2023
901,Revenue,CAHD,South - Commissioned Services,Permanent Nursing,Blossom Fields Nursing Home,5088.00, 10-Jan-2023
902,Revenue,CAHD,South - Commissioned Services,Permanent Nursing,Blossom Fields Nursing Home,4664.00, 10-Jan-2023
903,Revenue,CAHD,South - Commissioned Services,Permanent Nursing,Blossom Fields Nursing Home,4337.08, 10-Jan-2023
904,Revenue,CAHD,South - Commissioned Services,Fees & Charges Income - General,Blossom Fields Nursing Home,-1482.92, 10-Jan-2023
905,Revenue,CAHD,South - Commissioned Services,Fees & Charges Income - General,Blossom Fields Nursing Home,-997.40, 10-Jan-2023
906,Revenue,CAHD,South - Commissioned Services,Fees & Charges Income - General,Blossom Fields Nursing Home,-750.52, 10-Jan-2023
907,Revenue,CAHD,North - Community based support,Respite Care,Blossom Fields Nursing Home,0.00, 10-Jan-2023
908,Revenue,CAHD,North - Community based support,Permanent Nursing,Blossom Fields Nursing Home,5204.88, 10-Jan-2023
909,Revenue,CAHD,North - Community based support,Permanent Nursing,Blossom Fields Nursing Home,6548.76, 10-Jan-2023
910,Revenue,CAHD,North - Community based support,Permanent Nursing,Blossom Fields Nursing Home,4664.00, 10-Jan-2023
911,Revenue,CAHD,North - Community based support,Permanent Nursing,Blossom Fields Nursing Home,4380.04, 10-Jan-2023
912,Revenue,CAHD,North - Community based support,Permanent Nursing,Blossom Fields Nursing Home,4379.92, 10-Jan-2023
913,Revenue,CAHD,North - Community based support,Permanent Nursing,Blossom Fields Nursing Home,4380.04, 10-Jan-2023
914,Revenue,CAHD,North - Community based support,Permanent Nursing,Blossom Fields Nursing Home,4800.00, 10-Jan-2023
915,Revenue,CAHD,North - Community based support,Respite Planned - Nursing,Blossom Fields Nursing Home,5319.65, 10-Jan-2023
916,Revenue,CAHD,North - Community based support,Fees & Charges Income - General,Blossom Fields Nursing Home,-627.80, 10-Jan-2023
917,Revenue,CAHD,North - Community based support,Fees & Charges Income - General,Blossom Fields Nursing Home,-533.56, 10-Jan-2023
918,Revenue,CAHD,North - Community based support,Fees & Charges Income - General,Blossom Fields Nursing Home,-663.80, 10-Jan-2023
919,Revenue,CAHD,North - Community based support,Fees & Charges Income - General,Blossom Fields Nursing Home,-784.24, 10-Jan-2023
920,Revenue,CAHD,North - Community based support,Fees & Charges Income - General,Blossom Fields Nursing Home,-1742.72, 10-Jan-2023
921,Revenue,CAHD,South Glos Users in South Glos Homes,Permanent Nursing,Blossom Fields Nursing Home,836.76, 10-Jan-2023
922,Revenue,CAHD,South Glos Users in South Glos Homes,Permanent Nursing,Blossom Fields Nursing Home,836.76, 10-Jan-2023
923,Revenue,CAHD,South Glos Users in South Glos Homes,Permanent Nursing,Blossom Fields Nursing Home,836.76, 10-Jan-2023
924,Revenue,CAHD,South Glos Users in South Glos Homes,Permanent Nursing,Blossom Fields Nursing Home,836.76, 10-Jan-2023
925,Revenue,CAHD,South Glos Users in South Glos Homes,Permanent Nursing,Blossom Fields Nursing Home,836.76, 10-Jan-2023
926,Revenue,CAHD,South Glos Users in South Glos Homes,Permanent Nursing,Blossom Fields Nursing Home,836.76, 10-Jan-2023
927,Revenue,CAHD,South Glos Users in South Glos Homes,Permanent Nursing,Blossom Fields Nursing Home,836.76, 10-Jan-2023
928,Revenue,CAHD,South Glos Users in South Glos Homes,Permanent Nursing,Blossom Fields Nursing Home,836.76, 10-Jan-2023
929,Revenue,CAHD,South Glos Users in South Glos Homes,Permanent Nursing,Blossom Fields Nursing Home,836.76, 10-Jan-2023
930,Revenue,CAHD,South Glos Users in South Glos Homes,Permanent Nursing,Blossom Fields Nursing Home,836.76, 10-Jan-2023
931,Revenue,CAHD,South Glos Users in South Glos Homes,Permanent Nursing,Blossom Fields Nursing Home,836.76, 10-Jan-2023
932,Revenue,CAHD,South Glos Users in South Glos Homes,Permanent Nursing,Blossom Fields Nursing Home,836.76, 10-Jan-2023
933,Revenue,CAHD,South Glos Users in South Glos Homes,Permanent Nursing,Blossom Fields Nursing Home,836.76, 10-Jan-2023
934,Revenue,CAHD,South Glos Users in South Glos Homes,Permanent Nursing,Blossom Fields Nursing Home,836.76, 10-Jan-2023
935,Revenue,CAHD,South Glos Users in South Glos Homes,Permanent Nursing,Blossom Fields Nursing Home,836.76, 10-Jan-2023
936,Revenue,CAHD,South Glos Users in South Glos Homes,Permanent Nursing,Blossom Fields Nursing Home,836.76, 10-Jan-2023
937,Revenue,CAHD,South Glos Users in South Glos Homes,Permanent Nursing,Blossom Fields Nursing Home,836.76, 10-Jan-2023
938,Revenue,CAHD,South Glos Users in South Glos Homes,Permanent Nursing,Blossom Fields Nursing Home,836.76, 10-Jan-2023
939,Revenue,CAHD,South Glos Users in South Glos Homes,Permanent Nursing,Blossom Fields Nursing Home,836.76, 10-Jan-2023
940,Revenue,CAHD,South Glos Users in South Glos Homes,Permanent Nursing,Blossom Fields Nursing Home,836.76, 10-Jan-2023
941,Revenue,CAHD,South Glos Users in South Glos Homes,Permanent Nursing,Blossom Fields Nursing Home,836.76, 10-Jan-2023
942,Revenue,CAHD,South Glos Users in South Glos Homes,Permanent Nursing,Blossom Fields Nursing Home,836.76, 10-Jan-2023
943,Revenue,CAHD,South Glos Users in South Glos Homes,Permanent Nursing,Blossom Fields Nursing Home,836.76, 10-Jan-2023
944,Revenue,CAHD,South Glos Users in South Glos Homes,Permanent Nursing,Blossom Fields Nursing Home,836.76, 10-Jan-2023
945,Revenue,CAHD,South Glos Users in South Glos Homes,Permanent Nursing,Blossom Fields Nursing Home,836.76, 10-Jan-2023
946,Revenue,CAHD,South Glos Users in South Glos Homes,Permanent Nursing,Blossom Fields Nursing Home,836.76, 10-Jan-2023
947,Revenue,CAHD,South Glos Users in South Glos Homes,Permanent Nursing,Blossom Fields Nursing Home,836.76, 10-Jan-2023
948,Revenue,CAHD,South Glos Users in South Glos Homes,Permanent Nursing,Blossom Fields Nursing Home,836.76, 10-Jan-2023
949,Revenue,CAHD,South Glos Users in South Glos Homes,Permanent Nursing,Blossom Fields Nursing Home,836.76, 10-Jan-2023
950,Revenue,CAHD,South Glos Users in South Glos Homes,Permanent Nursing,Blossom Fields Nursing Home,836.76, 10-Jan-2023
951,Revenue,CAHD,South Glos Users in South Glos Homes,Permanent Nursing,Blossom Fields Nursing Home,836.76, 10-Jan-2023
952,Revenue,CAHD,South Glos Users in South Glos Homes,Permanent Nursing,Blossom Fields Nursing Home,836.76, 10-Jan-2023
953,Revenue,CAHD,South Glos Users in South Glos Homes,Permanent Nursing,Blossom Fields Nursing Home,836.76, 10-Jan-2023
954,Revenue,CAHD,South Glos Users in South Glos Homes,Permanent Nursing,Blossom Fields Nursing Home,836.76, 10-Jan-2023
955,Revenue,CAHD,South Glos Users in South Glos Homes,Permanent Nursing,Blossom Fields Nursing Home,836.76, 10-Jan-2023
956,Revenue,CAHD,South Glos Users in South Glos Homes,Permanent Nursing,Blossom Fields Nursing Home,836.76, 10-Jan-2023
957,Revenue,CAHD,South Glos Users in South Glos Homes,Permanent Nursing,Blossom Fields Nursing Home,836.76, 10-Jan-2023
958,Revenue,CAHD,South Glos Users in South Glos Homes,Permanent Nursing,Blossom Fields Nursing Home,836.76, 10-Jan-2023
959,Revenue,CAHD,South Glos Users in South Glos Homes,Permanent Nursing,Blossom Fields Nursing Home,836.76, 10-Jan-2023
960,Revenue,CAHD,South Glos Users in South Glos Homes,Permanent Nursing,Blossom Fields Nursing Home,836.76, 10-Jan-2023
961,Revenue,CAHD,South Glos Users in South Glos Homes,Permanent Nursing,Blossom Fields Nursing Home,836.76, 10-Jan-2023
962,Revenue,CAHD,South Glos Users in South Glos Homes,Permanent Nursing,Blossom Fields Nursing Home,836.76, 10-Jan-2023
963,Revenue,CAHD,South Glos Users in South Glos Homes,Permanent Nursing,Blossom Fields Nursing Home,836.76, 10-Jan-2023
964,Revenue,CAHD,South Glos Users in South Glos Homes,Permanent Nursing,Blossom Fields Nursing Home,836.76, 10-Jan-2023
965,Revenue,CAHD,South Glos Users in South Glos Homes,Permanent Nursing,Blossom Fields Nursing Home,836.76, 10-Jan-2023
966,Revenue,CAHD,South Glos Users in South Glos Homes,Permanent Nursing,Blossom Fields Nursing Home,836.76, 10-Jan-2023
967,Revenue,CAHD,South Glos Users in South Glos Homes,Permanent Nursing,Blossom Fields Nursing Home,836.76, 10-Jan-2023
968,Revenue,CAHD,Central - Commissioned Services,Respite Care,Blossom Fields Nursing Home,0.00, 10-Jan-2023
969,Revenue,CAHD,Central - Commissioned Services,Permanent Residential,Blossom Fields Nursing Home,4028.00, 10-Jan-2023
970,Revenue,CAHD,Central - Commissioned Services,Permanent Residential,Blossom Fields Nursing Home,3816.00, 10-Jan-2023
971,Revenue,CAHD,Central - Commissioned Services,Permanent Nursing,Blossom Fields Nursing Home,5431.24, 10-Jan-2023
972,Revenue,CAHD,Central - Commissioned Services,Permanent Nursing,Blossom Fields Nursing Home,4380.04, 10-Jan-2023
973,Revenue,CAHD,Central - Commissioned Services,Permanent Nursing,Blossom Fields Nursing Home,4380.04, 10-Jan-2023
974,Revenue,CAHD,Central - Commissioned Services,Permanent Nursing,Blossom Fields Nursing Home,5078.20, 10-Jan-2023
975,Revenue,CAHD,Central - Commissioned Services,Permanent Nursing,Blossom Fields Nursing Home,5107.84, 10-Jan-2023
976,Revenue,CAHD,Central - Commissioned Services,Permanent Nursing,Blossom Fields Nursing Home,4380.04, 10-Jan-2023
977,Revenue,CAHD,Central - Commissioned Services,Permanent Nursing,Blossom Fields Nursing Home,4600.00, 10-Jan-2023
978,Revenue,CAHD,Central - Commissioned Services,Permanent Nursing,Blossom Fields Nursing Home,4600.00, 10-Jan-2023
979,Revenue,CAHD,Central - Commissioned Services,Permanent Nursing,Blossom Fields Nursing Home,5421.92, 10-Jan-2023
980,Revenue,CAHD,Central - Commissioned Services,Permanent Nursing,Blossom Fields Nursing Home,4876.00, 10-Jan-2023
981,Revenue,CAHD,Central - Commissioned Services,Permanent Nursing,Blossom Fields Nursing Home,4600.00, 10-Jan-2023
982,Revenue,CAHD,Central - Commissioned Services,Respite Planned - Nursing,Blossom Fields Nursing Home,4600.00, 10-Jan-2023
983,Revenue,CAHD,Central - Commissioned Services,Fees & Charges Income - General,Blossom Fields Nursing Home,-978.56, 10-Jan-2023
984,Revenue,CAHD,Central - Commissioned Services,Fees & Charges Income - General,Blossom Fields Nursing Home,-627.80, 10-Jan-2023
985,Revenue,CAHD,Central - Commissioned Services,Fees & Charges Income - General,Blossom Fields Nursing Home,-1241.76, 10-Jan-2023
986,Revenue,CAHD,Central - Commissioned Services,Fees & Charges Income - General,Blossom Fields Nursing Home,-2103.80, 10-Jan-2023
987,Revenue,CAHD,Central - Commissioned Services,Fees & Charges Income - General,Blossom Fields Nursing Home,-486.88, 10-Jan-2023
988,Revenue,CAHD,Central - Commissioned Services,Fees & Charges Income - General,Blossom Fields Nursing Home,-1207.64, 10-Jan-2023
989,Revenue,CAHD,Central - Commissioned Services,Fees & Charges Income - General,Blossom Fields Nursing Home,-1186.12, 10-Jan-2023
990,Revenue,CAHD,Central - Commissioned Services,Fees & Charges Income - General,Blossom Fields Nursing Home,195.04, 10-Jan-2023
991,Revenue,CAHD,Central - Commissioned Services,Fees & Charges Income - General,Blossom Fields Nursing Home,-866.68, 10-Jan-2023
992,Revenue,CAHD,South - Commissioned Services,Permanent Nursing,Blossom Fields Nursing Home,4179.64, 10-Jan-2023
993,Revenue,CAHD,South - Commissioned Services,Permanent Nursing,Blossom Fields Nursing Home,4381.20, 10-Jan-2023
994,Revenue,CAHD,South - Commissioned Services,Permanent Nursing,Blossom Fields Nursing Home,4600.00, 10-Jan-2023
995,Revenue,CAHD,South - Commissioned Services,Permanent Nursing,Blossom Fields Nursing Home,5300.00, 10-Jan-2023
996,Revenue,CAHD,South - Commissioned Services,Permanent Nursing,Blossom Fields Nursing Home,3816.00, 10-Jan-2023
997,Revenue,CAHD,South - Commissioned Services,Fees & Charges Income - General,Blossom Fields Nursing Home,-1146.60, 10-Jan-2023
998,Revenue,CAHD,South - Commissioned Services,Fees & Charges Income - General,Blossom Fields Nursing Home,-928.60, 10-Jan-2023
999,Revenue,CAHD,South - Commissioned Services,Fees & Charges Income - General,Blossom Fields Nursing Home,-635.48, 10-Jan-2023
1000,Revenue,CAHD,North - Community based support,Respite Care,Blossom Fields Nursing Home,0.00, 10-Jan-2023
1001,Revenue,CAHD,North - Community based support,Permanent Nursing,Blossom Fields Nursing Home,4381.20, 10-Jan-2023
1002,Revenue,CAHD,North - Community based support,Respite Planned - Nursing,Blossom Fields Nursing Home,5350.40, 10-Jan-2023
1003,Revenue,CAHD,North - Community based support,Fees & Charges Income - General,Blossom Fields Nursing Home,-627.80, 10-Jan-2023
1004,Revenue,CAHD,North - S117,Permanent Residential,Blossom Fields Nursing Home,5205.04, 10-Jan-2023
1005,Revenue,CAHD,Statemented Support Payments to OLAs,Other L.A.s - General,Blue Coat CE VA Primary School,1292.50, 20-Jan-2023
1006,Revenue,CAHD,Central - Commissioned Services,Other Small Contracts,Bluebird Care (South Gloucestershire),732.35, 16-Jan-2023
1007,Revenue,CAHD,Central - Commissioned Services,Other Small Contracts,Bluebird Care (South Gloucestershire),135.90, 16-Jan-2023
1008,Revenue,CAHD,Central - Commissioned Services,Other Small Contracts,Bluebird Care (South Gloucestershire),22.65, 16-Jan-2023
1009,Revenue,CAHD,Central - Commissioned Services,Other Small Contracts,Bluebird Care (South Gloucestershire),1857.30, 16-Jan-2023
1010,Revenue,CAHD,Central - Commissioned Services,Other Small Contracts,Bluebird Care (South Gloucestershire),143.45, 16-Jan-2023
1011,Revenue,CAHD,Central - Commissioned Services,Other Small Contracts,Bluebird Care (South Gloucestershire),264.25, 16-Jan-2023
1012,Revenue,CAHD,Central - Commissioned Services,Other Small Contracts,Bluebird Care (South Gloucestershire),22.65, 16-Jan-2023
1013,Revenue,CAHD,Central - Commissioned Services,Other Small Contracts,Bluebird Care (South Gloucestershire),249.15, 16-Jan-2023
1014,Revenue,CAHD,Central - Commissioned Services,Other Small Contracts,Bluebird Care (South Gloucestershire),611.55, 16-Jan-2023
1015,Revenue,CAHD,Central - Commissioned Services,Other Small Contracts,Bluebird Care (South Gloucestershire),158.55, 16-Jan-2023
1016,Revenue,CAHD,Central - Commissioned Services,Other Small Contracts,Bluebird Care (South Gloucestershire),105.70, 16-Jan-2023
1017,Revenue,CAHD,Central - Commissioned Services,Other Small Contracts,Bluebird Care (South Gloucestershire),921.10, 16-Jan-2023
1018,Revenue,CAHD,Central - Commissioned Services,Other Small Contracts,Bluebird Care (South Gloucestershire),30.20, 16-Jan-2023
1019,Revenue,CAHD,Central - Commissioned Services,Other Small Contracts,Bluebird Care (South Gloucestershire),37.75, 16-Jan-2023
1020,Revenue,CAHD,Central - Commissioned Services,Other Small Contracts,Bluebird Care (South Gloucestershire),188.75, 16-Jan-2023
1021,Revenue,CAHD,Central - Commissioned Services,Other Small Contracts,Bluebird Care (South Gloucestershire),1318.80, 16-Jan-2023
1022,Revenue,CAHD,Central - Commissioned Services,Other Small Contracts,Bluebird Care (South Gloucestershire),128.35, 16-Jan-2023
1023,Revenue,CAHD,Central - Commissioned Services,Other Small Contracts,Bluebird Care (South Gloucestershire),332.20, 16-Jan-2023
1024,Revenue,CAHD,Central - Commissioned Services,Other Small Contracts,Bluebird Care (South Gloucestershire),505.85, 16-Jan-2023
1025,Revenue,CAHD,Central - Commissioned Services,Other Small Contracts,Bluebird Care (South Gloucestershire),173.65, 16-Jan-2023
1026,Revenue,CAHD,Central - Commissioned Services,Other Small Contracts,Bluebird Care (South Gloucestershire),619.10, 16-Jan-2023
1027,Revenue,CAHD,Central - Commissioned Services,Other Small Contracts,Bluebird Care (South Gloucestershire),120.80, 16-Jan-2023
1028,Revenue,CAHD,Central - Commissioned Services,Other Small Contracts,Bluebird Care (South Gloucestershire),637.00, 16-Jan-2023
1029,Revenue,CAHD,Central - Commissioned Services,Other Small Contracts,Bluebird Care (South Gloucestershire),98.15, 16-Jan-2023
1030,Revenue,CAHD,Central - Commissioned Services,Other Small Contracts,Bluebird Care (South Gloucestershire),98.15, 16-Jan-2023
1031,Revenue,CAHD,Central - Commissioned Services,Other Small Contracts,Bluebird Care (South Gloucestershire),332.20, 16-Jan-2023
1032,Revenue,CAHD,Central - Commissioned Services,Other Small Contracts,Bluebird Care (South Gloucestershire),75.50, 16-Jan-2023
1033,Revenue,CAHD,South - Commissioned Services,Other Small Contracts,Bluebird Care (South Gloucestershire),453.00, 16-Jan-2023
1034,Revenue,CAHD,South - Commissioned Services,Other Small Contracts,Bluebird Care (South Gloucestershire),120.80, 16-Jan-2023
1035,Revenue,CAHD,South - Commissioned Services,Other Small Contracts,Bluebird Care (South Gloucestershire),445.45, 16-Jan-2023
1036,Revenue,CAHD,South - Commissioned Services,Other Small Contracts,Bluebird Care (South Gloucestershire),249.15, 16-Jan-2023
1037,Revenue,CAHD,South - Commissioned Services,Other Small Contracts,Bluebird Care (South Gloucestershire),271.80, 16-Jan-2023
1038,Revenue,CAHD,South - Commissioned Services,Other Small Contracts,Bluebird Care (South Gloucestershire),256.70, 16-Jan-2023
1039,Revenue,CAHD,South - Commissioned Services,Other Small Contracts,Bluebird Care (South Gloucestershire),1318.80, 16-Jan-2023
1040,Revenue,CAHD,South - Commissioned Services,Other Small Contracts,Bluebird Care (South Gloucestershire),60.40, 16-Jan-2023
1041,Revenue,CAHD,South - Commissioned Services,Other Small Contracts,Bluebird Care (South Gloucestershire),83.05, 16-Jan-2023
1042,Revenue,CAHD,South - Commissioned Services,Other Small Contracts,Bluebird Care (South Gloucestershire),113.25, 16-Jan-2023
1043,Revenue,CAHD,South - Commissioned Services,Other Small Contracts,Bluebird Care (South Gloucestershire),362.40, 16-Jan-2023
1044,Revenue,CAHD,North - Community based support,Other Small Contracts,Bluebird Care (South Gloucestershire),338.80, 16-Jan-2023
1045,Revenue,CAHD,North - Community based support,Other Small Contracts,Bluebird Care (South Gloucestershire),188.75, 16-Jan-2023
1046,Revenue,CAHD,North - Community based support,Other Small Contracts,Bluebird Care (South Gloucestershire),52.85, 16-Jan-2023
1047,Revenue,CAHD,North - Community based support,Other Small Contracts,Bluebird Care (South Gloucestershire),60.40, 16-Jan-2023
1048,Revenue,CAHD,North - Community based support,Other Small Contracts,Bluebird Care (South Gloucestershire),128.35, 16-Jan-2023
1049,Revenue,CAHD,North - Community based support,Other Small Contracts,Bluebird Care (South Gloucestershire),294.45, 16-Jan-2023
1050,Revenue,CAHD,North - Community based support,Other Small Contracts,Bluebird Care (South Gloucestershire),60.40, 16-Jan-2023
1051,Revenue,CAHD,North - Community based support,Other Small Contracts,Bluebird Care (South Gloucestershire),128.35, 16-Jan-2023
1052,Revenue,CAHD,North - Community based support,Other Small Contracts,Bluebird Care (South Gloucestershire),1701.00, 16-Jan-2023
1053,Revenue,CAHD,Central - Commissioned Services,Other Small Contracts,Bluebird Care (South Gloucestershire),755.00, 16-Jan-2023
1054,Revenue,CAHD,Central - Commissioned Services,Other Small Contracts,Bluebird Care (South Gloucestershire),135.90, 16-Jan-2023
1055,Revenue,CAHD,Central - Commissioned Services,Other Small Contracts,Bluebird Care (South Gloucestershire),30.20, 16-Jan-2023
1056,Revenue,CAHD,Central - Commissioned Services,Other Small Contracts,Bluebird Care (South Gloucestershire),1819.55, 16-Jan-2023
1057,Revenue,CAHD,Central - Commissioned Services,Other Small Contracts,Bluebird Care (South Gloucestershire),151.00, 16-Jan-2023
1058,Revenue,CAHD,Central - Commissioned Services,Other Small Contracts,Bluebird Care (South Gloucestershire),264.25, 16-Jan-2023
1059,Revenue,CAHD,Central - Commissioned Services,Other Small Contracts,Bluebird Care (South Gloucestershire),30.20, 16-Jan-2023
1060,Revenue,CAHD,Central - Commissioned Services,Other Small Contracts,Bluebird Care (South Gloucestershire),211.40, 16-Jan-2023
1061,Revenue,CAHD,Central - Commissioned Services,Other Small Contracts,Bluebird Care (South Gloucestershire),656.85, 16-Jan-2023
1062,Revenue,CAHD,Central - Commissioned Services,Other Small Contracts,Bluebird Care (South Gloucestershire),158.55, 16-Jan-2023
1063,Revenue,CAHD,Central - Commissioned Services,Other Small Contracts,Bluebird Care (South Gloucestershire),128.35, 16-Jan-2023
1064,Revenue,CAHD,Central - Commissioned Services,Other Small Contracts,Bluebird Care (South Gloucestershire),913.55, 16-Jan-2023
1065,Revenue,CAHD,Central - Commissioned Services,Other Small Contracts,Bluebird Care (South Gloucestershire),45.30, 16-Jan-2023
1066,Revenue,CAHD,Central - Commissioned Services,Other Small Contracts,Bluebird Care (South Gloucestershire),37.75, 16-Jan-2023
1067,Revenue,CAHD,Central - Commissioned Services,Other Small Contracts,Bluebird Care (South Gloucestershire),196.30, 16-Jan-2023
1068,Revenue,CAHD,Central - Commissioned Services,Other Small Contracts,Bluebird Care (South Gloucestershire),1318.80, 16-Jan-2023
1069,Revenue,CAHD,Central - Commissioned Services,Other Small Contracts,Bluebird Care (South Gloucestershire),113.25, 16-Jan-2023
1070,Revenue,CAHD,Central - Commissioned Services,Other Small Contracts,Bluebird Care (South Gloucestershire),309.55, 16-Jan-2023
1071,Revenue,CAHD,Central - Commissioned Services,Other Small Contracts,Bluebird Care (South Gloucestershire),453.00, 16-Jan-2023
1072,Revenue,CAHD,Central - Commissioned Services,Other Small Contracts,Bluebird Care (South Gloucestershire),181.20, 16-Jan-2023
1073,Revenue,CAHD,Central - Commissioned Services,Other Small Contracts,Bluebird Care (South Gloucestershire),604.00, 16-Jan-2023
1074,Revenue,CAHD,Central - Commissioned Services,Other Small Contracts,Bluebird Care (South Gloucestershire),120.80, 16-Jan-2023
1075,Revenue,CAHD,Central - Commissioned Services,Other Small Contracts,Bluebird Care (South Gloucestershire),629.45, 16-Jan-2023
1076,Revenue,CAHD,Central - Commissioned Services,Other Small Contracts,Bluebird Care (South Gloucestershire),83.05, 16-Jan-2023
1077,Revenue,CAHD,Central - Commissioned Services,Other Small Contracts,Bluebird Care (South Gloucestershire),105.70, 16-Jan-2023
1078,Revenue,CAHD,Central - Commissioned Services,Other Small Contracts,Bluebird Care (South Gloucestershire),362.40, 16-Jan-2023
1079,Revenue,CAHD,South - Commissioned Services,Other Small Contracts,Bluebird Care (South Gloucestershire),422.80, 16-Jan-2023
1080,Revenue,CAHD,South - Commissioned Services,Other Small Contracts,Bluebird Care (South Gloucestershire),120.80, 16-Jan-2023
1081,Revenue,CAHD,South - Commissioned Services,Other Small Contracts,Bluebird Care (South Gloucestershire),415.25, 16-Jan-2023
1082,Revenue,CAHD,South - Commissioned Services,Other Small Contracts,Bluebird Care (South Gloucestershire),218.95, 16-Jan-2023
1083,Revenue,CAHD,South - Commissioned Services,Other Small Contracts,Bluebird Care (South Gloucestershire),286.90, 16-Jan-2023
1084,Revenue,CAHD,South - Commissioned Services,Other Small Contracts,Bluebird Care (South Gloucestershire),256.70, 16-Jan-2023
1085,Revenue,CAHD,South - Commissioned Services,Other Small Contracts,Bluebird Care (South Gloucestershire),1318.80, 16-Jan-2023
1086,Revenue,CAHD,South - Commissioned Services,Other Small Contracts,Bluebird Care (South Gloucestershire),60.40, 16-Jan-2023
1087,Revenue,CAHD,South - Commissioned Services,Other Small Contracts,Bluebird Care (South Gloucestershire),83.05, 16-Jan-2023
1088,Revenue,CAHD,South - Commissioned Services,Other Small Contracts,Bluebird Care (South Gloucestershire),120.80, 16-Jan-2023
1089,Revenue,CAHD,South - Commissioned Services,Other Small Contracts,Bluebird Care (South Gloucestershire),362.40, 16-Jan-2023
1090,Revenue,CAHD,North - Community based support,Other Small Contracts,Bluebird Care (South Gloucestershire),331.10, 16-Jan-2023
1091,Revenue,CAHD,North - Community based support,Other Small Contracts,Bluebird Care (South Gloucestershire),211.40, 16-Jan-2023
1092,Revenue,CAHD,North - Community based support,Other Small Contracts,Bluebird Care (South Gloucestershire),60.40, 16-Jan-2023
1093,Revenue,CAHD,North - Community based support,Other Small Contracts,Bluebird Care (South Gloucestershire),60.40, 16-Jan-2023
1094,Revenue,CAHD,North - Community based support,Other Small Contracts,Bluebird Care (South Gloucestershire),128.35, 16-Jan-2023
1095,Revenue,CAHD,North - Community based support,Other Small Contracts,Bluebird Care (South Gloucestershire),332.20, 16-Jan-2023
1096,Revenue,CAHD,North - Community based support,Other Small Contracts,Bluebird Care (South Gloucestershire),60.40, 16-Jan-2023
1097,Revenue,CAHD,North - Community based support,Other Small Contracts,Bluebird Care (South Gloucestershire),120.80, 16-Jan-2023
1098,Revenue,CAHD,North - Community based support,Other Small Contracts,Bluebird Care (South Gloucestershire),1701.00, 16-Jan-2023
1099,Revenue,CAHD,Central - Commissioned Services,Other Small Contracts,Bluebird Care (South Gloucestershire),135.90, 16-Jan-2023
1100,Revenue,CAHD,Central - Commissioned Services,Other Small Contracts,Bluebird Care (South Gloucestershire),113.25, 16-Jan-2023
1101,Revenue,CAHD,Central - Commissioned Services,Other Small Contracts,Bluebird Care (South Gloucestershire),679.50, 16-Jan-2023
1102,Revenue,CAHD,Central - Commissioned Services,Other Small Contracts,Bluebird Care (South Gloucestershire),135.90, 16-Jan-2023
1103,Revenue,CAHD,Central - Commissioned Services,Other Small Contracts,Bluebird Care (South Gloucestershire),22.65, 16-Jan-2023
1104,Revenue,CAHD,Central - Commissioned Services,Other Small Contracts,Bluebird Care (South Gloucestershire),1789.35, 16-Jan-2023
1105,Revenue,CAHD,Central - Commissioned Services,Other Small Contracts,Bluebird Care (South Gloucestershire),120.80, 16-Jan-2023
1106,Revenue,CAHD,Central - Commissioned Services,Other Small Contracts,Bluebird Care (South Gloucestershire),271.80, 16-Jan-2023
1107,Revenue,CAHD,Central - Commissioned Services,Other Small Contracts,Bluebird Care (South Gloucestershire),22.65, 16-Jan-2023
1108,Revenue,CAHD,Central - Commissioned Services,Other Small Contracts,Bluebird Care (South Gloucestershire),203.85, 16-Jan-2023
1109,Revenue,CAHD,Central - Commissioned Services,Other Small Contracts,Bluebird Care (South Gloucestershire),566.25, 16-Jan-2023
1110,Revenue,CAHD,Central - Commissioned Services,Other Small Contracts,Bluebird Care (South Gloucestershire),158.55, 16-Jan-2023
1111,Revenue,CAHD,Central - Commissioned Services,Other Small Contracts,Bluebird Care (South Gloucestershire),128.35, 16-Jan-2023
1112,Revenue,CAHD,Central - Commissioned Services,Other Small Contracts,Bluebird Care (South Gloucestershire),906.00, 16-Jan-2023
1113,Revenue,CAHD,Central - Commissioned Services,Other Small Contracts,Bluebird Care (South Gloucestershire),45.30, 16-Jan-2023
1114,Revenue,CAHD,Central - Commissioned Services,Other Small Contracts,Bluebird Care (South Gloucestershire),37.75, 16-Jan-2023
1115,Revenue,CAHD,Central - Commissioned Services,Other Small Contracts,Bluebird Care (South Gloucestershire),188.75, 16-Jan-2023
1116,Revenue,CAHD,Central - Commissioned Services,Other Small Contracts,Bluebird Care (South Gloucestershire),1318.80, 16-Jan-2023
1117,Revenue,CAHD,Central - Commissioned Services,Other Small Contracts,Bluebird Care (South Gloucestershire),135.90, 16-Jan-2023
1118,Revenue,CAHD,Central - Commissioned Services,Other Small Contracts,Bluebird Care (South Gloucestershire),339.75, 16-Jan-2023
1119,Revenue,CAHD,Central - Commissioned Services,Other Small Contracts,Bluebird Care (South Gloucestershire),475.65, 16-Jan-2023
1120,Revenue,CAHD,Central - Commissioned Services,Other Small Contracts,Bluebird Care (South Gloucestershire),173.65, 16-Jan-2023
1121,Revenue,CAHD,Central - Commissioned Services,Other Small Contracts,Bluebird Care (South Gloucestershire),619.10, 16-Jan-2023
1122,Revenue,CAHD,Central - Commissioned Services,Other Small Contracts,Bluebird Care (South Gloucestershire),120.80, 16-Jan-2023
1123,Revenue,CAHD,Central - Commissioned Services,Other Small Contracts,Bluebird Care (South Gloucestershire),606.80, 16-Jan-2023
1124,Revenue,CAHD,Central - Commissioned Services,Other Small Contracts,Bluebird Care (South Gloucestershire),98.15, 16-Jan-2023
1125,Revenue,CAHD,Central - Commissioned Services,Other Small Contracts,Bluebird Care (South Gloucestershire),113.25, 16-Jan-2023
1126,Revenue,CAHD,Central - Commissioned Services,Other Small Contracts,Bluebird Care (South Gloucestershire),513.40, 16-Jan-2023
1127,Revenue,CAHD,South - Commissioned Services,Other Small Contracts,Bluebird Care (South Gloucestershire),475.65, 16-Jan-2023
1128,Revenue,CAHD,South - Commissioned Services,Other Small Contracts,Bluebird Care (South Gloucestershire),135.90, 16-Jan-2023
1129,Revenue,CAHD,South - Commissioned Services,Other Small Contracts,Bluebird Care (South Gloucestershire),422.80, 16-Jan-2023
1130,Revenue,CAHD,South - Commissioned Services,Other Small Contracts,Bluebird Care (South Gloucestershire),181.20, 16-Jan-2023
1131,Revenue,CAHD,South - Commissioned Services,Other Small Contracts,Bluebird Care (South Gloucestershire),324.65, 16-Jan-2023
1132,Revenue,CAHD,South - Commissioned Services,Other Small Contracts,Bluebird Care (South Gloucestershire),241.60, 16-Jan-2023
1133,Revenue,CAHD,South - Commissioned Services,Other Small Contracts,Bluebird Care (South Gloucestershire),1318.80, 16-Jan-2023
1134,Revenue,CAHD,South - Commissioned Services,Other Small Contracts,Bluebird Care (South Gloucestershire),60.40, 16-Jan-2023
1135,Revenue,CAHD,South - Commissioned Services,Other Small Contracts,Bluebird Care (South Gloucestershire),60.40, 16-Jan-2023
1136,Revenue,CAHD,South - Commissioned Services,Other Small Contracts,Bluebird Care (South Gloucestershire),98.15, 16-Jan-2023
1137,Revenue,CAHD,South - Commissioned Services,Other Small Contracts,Bluebird Care (South Gloucestershire),354.85, 16-Jan-2023
1138,Revenue,CAHD,North - Community based support,Other Small Contracts,Bluebird Care (South Gloucestershire),338.80, 16-Jan-2023
1139,Revenue,CAHD,North - Community based support,Other Small Contracts,Bluebird Care (South Gloucestershire),151.00, 16-Jan-2023
1140,Revenue,CAHD,North - Community based support,Other Small Contracts,Bluebird Care (South Gloucestershire),52.85, 16-Jan-2023
1141,Revenue,CAHD,North - Community based support,Other Small Contracts,Bluebird Care (South Gloucestershire),60.40, 16-Jan-2023
1142,Revenue,CAHD,North - Community based support,Other Small Contracts,Bluebird Care (South Gloucestershire),1544.47, 16-Jan-2023
1143,Revenue,CAHD,North - Community based support,Other Small Contracts,Bluebird Care (South Gloucestershire),128.35, 16-Jan-2023
1144,Revenue,CAHD,North - Community based support,Other Small Contracts,Bluebird Care (South Gloucestershire),309.55, 16-Jan-2023
1145,Revenue,CAHD,North - Community based support,Other Small Contracts,Bluebird Care (South Gloucestershire),60.40, 16-Jan-2023
1146,Revenue,CAHD,North - Community based support,Other Small Contracts,Bluebird Care (South Gloucestershire),120.80, 16-Jan-2023
1147,Revenue,CAHD,North - Community based support,Other Small Contracts,Bluebird Care (South Gloucestershire),1701.00, 16-Jan-2023
1148,Revenue,CAHD,Central - Commissioned Services,Other Small Contracts,Bluebird Care (South Gloucestershire),155.40, 16-Jan-2023
1149,Revenue,CAHD,Central - Commissioned Services,Other Small Contracts,Bluebird Care (South Gloucestershire),147.63, 16-Jan-2023
1150,Revenue,CAHD,Central - Commissioned Services,Other Small Contracts,Bluebird Care (South Gloucestershire),691.53, 16-Jan-2023
1151,Revenue,CAHD,Central - Commissioned Services,Other Small Contracts,Bluebird Care (South Gloucestershire),132.09, 16-Jan-2023
1152,Revenue,CAHD,Central - Commissioned Services,Other Small Contracts,Bluebird Care (South Gloucestershire),23.31, 16-Jan-2023
1153,Revenue,CAHD,Central - Commissioned Services,Other Small Contracts,Bluebird Care (South Gloucestershire),1958.04, 16-Jan-2023
1154,Revenue,CAHD,Central - Commissioned Services,Other Small Contracts,Bluebird Care (South Gloucestershire),155.40, 16-Jan-2023
1155,Revenue,CAHD,Central - Commissioned Services,Other Small Contracts,Bluebird Care (South Gloucestershire),271.95, 16-Jan-2023
1156,Revenue,CAHD,Central - Commissioned Services,Other Small Contracts,Bluebird Care (South Gloucestershire),31.08, 16-Jan-2023
1157,Revenue,CAHD,Central - Commissioned Services,Other Small Contracts,Bluebird Care (South Gloucestershire),202.02, 16-Jan-2023
1158,Revenue,CAHD,Central - Commissioned Services,Other Small Contracts,Bluebird Care (South Gloucestershire),606.06, 16-Jan-2023
1159,Revenue,CAHD,Central - Commissioned Services,Other Small Contracts,Bluebird Care (South Gloucestershire),163.17, 16-Jan-2023
1160,Revenue,CAHD,Central - Commissioned Services,Other Small Contracts,Bluebird Care (South Gloucestershire),116.55, 16-Jan-2023
1161,Revenue,CAHD,Central - Commissioned Services,Other Small Contracts,Bluebird Care (South Gloucestershire),947.94, 16-Jan-2023
1162,Revenue,CAHD,Central - Commissioned Services,Other Small Contracts,Bluebird Care (South Gloucestershire),46.62, 16-Jan-2023
1163,Revenue,CAHD,Central - Commissioned Services,Other Small Contracts,Bluebird Care (South Gloucestershire),46.62, 16-Jan-2023
1164,Revenue,CAHD,Central - Commissioned Services,Other Small Contracts,Bluebird Care (South Gloucestershire),202.02, 16-Jan-2023
1165,Revenue,CAHD,Central - Commissioned Services,Other Small Contracts,Bluebird Care (South Gloucestershire),1399.44, 16-Jan-2023
1166,Revenue,CAHD,Central - Commissioned Services,Other Small Contracts,Bluebird Care (South Gloucestershire),132.09, 16-Jan-2023
1167,Revenue,CAHD,Central - Commissioned Services,Other Small Contracts,Bluebird Care (South Gloucestershire),326.34, 16-Jan-2023
1168,Revenue,CAHD,Central - Commissioned Services,Other Small Contracts,Bluebird Care (South Gloucestershire),505.05, 16-Jan-2023
1169,Revenue,CAHD,Central - Commissioned Services,Other Small Contracts,Bluebird Care (South Gloucestershire),186.48, 16-Jan-2023
1170,Revenue,CAHD,Central - Commissioned Services,Other Small Contracts,Bluebird Care (South Gloucestershire),637.14, 16-Jan-2023
1171,Revenue,CAHD,Central - Commissioned Services,Other Small Contracts,Bluebird Care (South Gloucestershire),124.32, 16-Jan-2023
1172,Revenue,CAHD,Central - Commissioned Services,Other Small Contracts,Bluebird Care (South Gloucestershire),601.25, 16-Jan-2023
1173,Revenue,CAHD,Central - Commissioned Services,Other Small Contracts,Bluebird Care (South Gloucestershire),93.24, 16-Jan-2023
1174,Revenue,CAHD,Central - Commissioned Services,Other Small Contracts,Bluebird Care (South Gloucestershire),124.32, 16-Jan-2023
1175,Revenue,CAHD,Central - Commissioned Services,Other Small Contracts,Bluebird Care (South Gloucestershire),512.82, 16-Jan-2023
1176,Revenue,CAHD,South - Commissioned Services,Other Small Contracts,Bluebird Care (South Gloucestershire),442.89, 16-Jan-2023
1177,Revenue,CAHD,South - Commissioned Services,Other Small Contracts,Bluebird Care (South Gloucestershire),139.86, 16-Jan-2023
1178,Revenue,CAHD,South - Commissioned Services,Other Small Contracts,Bluebird Care (South Gloucestershire),388.50, 16-Jan-2023
1179,Revenue,CAHD,South - Commissioned Services,Other Small Contracts,Bluebird Care (South Gloucestershire),240.87, 16-Jan-2023
1180,Revenue,CAHD,South - Commissioned Services,Other Small Contracts,Bluebird Care (South Gloucestershire),341.88, 16-Jan-2023
1181,Revenue,CAHD,South - Commissioned Services,Other Small Contracts,Bluebird Care (South Gloucestershire),271.95, 16-Jan-2023
1182,Revenue,CAHD,South - Commissioned Services,Other Small Contracts,Bluebird Care (South Gloucestershire),1399.44, 16-Jan-2023
1183,Revenue,CAHD,South - Commissioned Services,Other Small Contracts,Bluebird Care (South Gloucestershire),62.16, 16-Jan-2023
1184,Revenue,CAHD,South - Commissioned Services,Other Small Contracts,Bluebird Care (South Gloucestershire),69.93, 16-Jan-2023
1185,Revenue,CAHD,South - Commissioned Services,Other Small Contracts,Bluebird Care (South Gloucestershire),77.70, 16-Jan-2023
1186,Revenue,CAHD,South - Commissioned Services,Other Small Contracts,Bluebird Care (South Gloucestershire),62.16, 16-Jan-2023
1187,Revenue,CAHD,South - Commissioned Services,Other Small Contracts,Bluebird Care (South Gloucestershire),380.73, 16-Jan-2023
1188,Revenue,CAHD,North - Community based support,Other Small Contracts,Bluebird Care (South Gloucestershire),341.88, 16-Jan-2023
1189,Revenue,CAHD,North - Community based support,Other Small Contracts,Bluebird Care (South Gloucestershire),202.02, 16-Jan-2023
1190,Revenue,CAHD,North - Community based support,Other Small Contracts,Bluebird Care (South Gloucestershire),62.16, 16-Jan-2023
1191,Revenue,CAHD,North - Community based support,Other Small Contracts,Bluebird Care (South Gloucestershire),54.39, 16-Jan-2023
1192,Revenue,CAHD,North - Community based support,Other Small Contracts,Bluebird Care (South Gloucestershire),1623.72, 16-Jan-2023
1193,Revenue,CAHD,North - Community based support,Other Small Contracts,Bluebird Care (South Gloucestershire),132.09, 16-Jan-2023
1194,Revenue,CAHD,North - Community based support,Other Small Contracts,Bluebird Care (South Gloucestershire),326.34, 16-Jan-2023
1195,Revenue,CAHD,North - Community based support,Other Small Contracts,Bluebird Care (South Gloucestershire),62.16, 16-Jan-2023
1196,Revenue,CAHD,North - Community based support,Other Small Contracts,Bluebird Care (South Gloucestershire),124.32, 16-Jan-2023
1197,Revenue,CAHD,North - Community based support,Other Small Contracts,Bluebird Care (South Gloucestershire),1750.84, 16-Jan-2023
1198,Revenue,CAHD,Central - Commissioned Services,Other Small Contracts,Bluebird Care (South Gloucestershire),163.17, 05-Jan-2023
1199,Revenue,CAHD,Central - Commissioned Services,Other Small Contracts,Bluebird Care (South Gloucestershire),93.24, 05-Jan-2023
1200,Revenue,CAHD,Central - Commissioned Services,Other Small Contracts,Bluebird Care (South Gloucestershire),808.08, 05-Jan-2023
1201,Revenue,CAHD,Central - Commissioned Services,Other Small Contracts,Bluebird Care (South Gloucestershire),139.86, 05-Jan-2023
1202,Revenue,CAHD,Central - Commissioned Services,Other Small Contracts,Bluebird Care (South Gloucestershire),23.31, 05-Jan-2023
1203,Revenue,CAHD,Central - Commissioned Services,Other Small Contracts,Bluebird Care (South Gloucestershire),1825.95, 05-Jan-2023
1204,Revenue,CAHD,Central - Commissioned Services,Other Small Contracts,Bluebird Care (South Gloucestershire),155.40, 05-Jan-2023
1205,Revenue,CAHD,Central - Commissioned Services,Other Small Contracts,Bluebird Care (South Gloucestershire),209.79, 05-Jan-2023
1206,Revenue,CAHD,Central - Commissioned Services,Other Small Contracts,Bluebird Care (South Gloucestershire),163.17, 05-Jan-2023
1207,Revenue,CAHD,Central - Commissioned Services,Other Small Contracts,Bluebird Care (South Gloucestershire),108.78, 05-Jan-2023
1208,Revenue,CAHD,Central - Commissioned Services,Other Small Contracts,Bluebird Care (South Gloucestershire),971.25, 05-Jan-2023
1209,Revenue,CAHD,Central - Commissioned Services,Other Small Contracts,Bluebird Care (South Gloucestershire),46.62, 05-Jan-2023
1210,Revenue,CAHD,Central - Commissioned Services,Other Small Contracts,Bluebird Care (South Gloucestershire),528.36, 05-Jan-2023
1211,Revenue,CAHD,Central - Commissioned Services,Other Small Contracts,Bluebird Care (South Gloucestershire),46.62, 05-Jan-2023
1212,Revenue,CAHD,Central - Commissioned Services,Other Small Contracts,Bluebird Care (South Gloucestershire),202.02, 05-Jan-2023
1213,Revenue,CAHD,Central - Commissioned Services,Other Small Contracts,Bluebird Care (South Gloucestershire),1399.44, 05-Jan-2023
1214,Revenue,CAHD,Central - Commissioned Services,Other Small Contracts,Bluebird Care (South Gloucestershire),139.86, 05-Jan-2023
1215,Revenue,CAHD,Central - Commissioned Services,Other Small Contracts,Bluebird Care (South Gloucestershire),450.66, 05-Jan-2023
1216,Revenue,CAHD,Central - Commissioned Services,Other Small Contracts,Bluebird Care (South Gloucestershire),637.14, 05-Jan-2023
1217,Revenue,CAHD,Central - Commissioned Services,Other Small Contracts,Bluebird Care (South Gloucestershire),647.87, 05-Jan-2023
1218,Revenue,CAHD,Central - Commissioned Services,Other Small Contracts,Bluebird Care (South Gloucestershire),85.47, 05-Jan-2023
1219,Revenue,CAHD,Central - Commissioned Services,Other Small Contracts,Bluebird Care (South Gloucestershire),396.27, 05-Jan-2023
1220,Revenue,CAHD,Central - Commissioned Services,Other Small Contracts,Bluebird Care (South Gloucestershire),372.96, 05-Jan-2023
1221,Revenue,CAHD,South - Commissioned Services,Other Small Contracts,Bluebird Care (South Gloucestershire),473.97, 05-Jan-2023
1222,Revenue,CAHD,South - Commissioned Services,Other Small Contracts,Bluebird Care (South Gloucestershire),303.03, 05-Jan-2023
1223,Revenue,CAHD,South - Commissioned Services,Other Small Contracts,Bluebird Care (South Gloucestershire),590.52, 05-Jan-2023
1224,Revenue,CAHD,South - Commissioned Services,Other Small Contracts,Bluebird Care (South Gloucestershire),248.64, 05-Jan-2023
1225,Revenue,CAHD,South - Commissioned Services,Other Small Contracts,Bluebird Care (South Gloucestershire),256.41, 05-Jan-2023
1226,Revenue,CAHD,South - Commissioned Services,Other Small Contracts,Bluebird Care (South Gloucestershire),1399.44, 05-Jan-2023
1227,Revenue,CAHD,South - Commissioned Services,Other Small Contracts,Bluebird Care (South Gloucestershire),54.39, 05-Jan-2023
1228,Revenue,CAHD,South - Commissioned Services,Other Small Contracts,Bluebird Care (South Gloucestershire),124.32, 05-Jan-2023
1229,Revenue,CAHD,South - Commissioned Services,Other Small Contracts,Bluebird Care (South Gloucestershire),62.16, 05-Jan-2023
1230,Revenue,CAHD,South - Commissioned Services,Other Small Contracts,Bluebird Care (South Gloucestershire),380.73, 05-Jan-2023
1231,Revenue,CAHD,North - Community based support,Other Small Contracts,Bluebird Care (South Gloucestershire),341.88, 05-Jan-2023
1232,Revenue,CAHD,North - Community based support,Other Small Contracts,Bluebird Care (South Gloucestershire),155.40, 05-Jan-2023
1233,Revenue,CAHD,North - Community based support,Other Small Contracts,Bluebird Care (South Gloucestershire),62.16, 05-Jan-2023
1234,Revenue,CAHD,North - Community based support,Other Small Contracts,Bluebird Care (South Gloucestershire),1531.62, 05-Jan-2023
1235,Revenue,CAHD,North - Community based support,Other Small Contracts,Bluebird Care (South Gloucestershire),38.85, 05-Jan-2023
1236,Revenue,CAHD,North - Community based support,Other Small Contracts,Bluebird Care (South Gloucestershire),132.09, 05-Jan-2023
1237,Revenue,CAHD,North - Community based support,Other Small Contracts,Bluebird Care (South Gloucestershire),46.62, 05-Jan-2023
1238,Revenue,CAHD,North - Community based support,Other Small Contracts,Bluebird Care (South Gloucestershire),310.80, 05-Jan-2023
1239,Revenue,CAHD,North - Community based support,Other Small Contracts,Bluebird Care (South Gloucestershire),1776.74, 05-Jan-2023
1240,Revenue,CAHD,North - Community based support,Other Small Contracts,Bluebird Care (South Gloucestershire),854.70, 05-Jan-2023
1241,Revenue,CAHD,North - Community based support,Other Small Contracts,Bluebird Care (South Gloucestershire),93.24, 05-Jan-2023
1242,Revenue,CAHD,Central - Commissioned Services,Other Small Contracts,Bluebird Care (South Gloucestershire),116.55, 09-Jan-2023
1243,Revenue,CAHD,Central - Commissioned Services,Other Small Contracts,Bluebird Care (South Gloucestershire),46.62, 09-Jan-2023
1244,Revenue,CAHD,Central - Commissioned Services,Other Small Contracts,Bluebird Care (South Gloucestershire),738.15, 09-Jan-2023
1245,Revenue,CAHD,Central - Commissioned Services,Other Small Contracts,Bluebird Care (South Gloucestershire),139.86, 09-Jan-2023
1246,Revenue,CAHD,Central - Commissioned Services,Other Small Contracts,Bluebird Care (South Gloucestershire),1857.03, 09-Jan-2023
1247,Revenue,CAHD,Central - Commissioned Services,Other Small Contracts,Bluebird Care (South Gloucestershire),147.63, 09-Jan-2023
1248,Revenue,CAHD,Central - Commissioned Services,Other Small Contracts,Bluebird Care (South Gloucestershire),170.94, 09-Jan-2023
1249,Revenue,CAHD,Central - Commissioned Services,Other Small Contracts,Bluebird Care (South Gloucestershire),163.17, 09-Jan-2023
1250,Revenue,CAHD,Central - Commissioned Services,Other Small Contracts,Bluebird Care (South Gloucestershire),116.55, 09-Jan-2023
1251,Revenue,CAHD,Central - Commissioned Services,Other Small Contracts,Bluebird Care (South Gloucestershire),947.94, 09-Jan-2023
1252,Revenue,CAHD,Central - Commissioned Services,Other Small Contracts,Bluebird Care (South Gloucestershire),46.62, 09-Jan-2023
1253,Revenue,CAHD,Central - Commissioned Services,Other Small Contracts,Bluebird Care (South Gloucestershire),559.44, 09-Jan-2023
1254,Revenue,CAHD,Central - Commissioned Services,Other Small Contracts,Bluebird Care (South Gloucestershire),31.08, 09-Jan-2023
1255,Revenue,CAHD,Central - Commissioned Services,Other Small Contracts,Bluebird Care (South Gloucestershire),202.02, 09-Jan-2023
1256,Revenue,CAHD,Central - Commissioned Services,Other Small Contracts,Bluebird Care (South Gloucestershire),1399.44, 09-Jan-2023
1257,Revenue,CAHD,Central - Commissioned Services,Other Small Contracts,Bluebird Care (South Gloucestershire),108.78, 09-Jan-2023
1258,Revenue,CAHD,Central - Commissioned Services,Other Small Contracts,Bluebird Care (South Gloucestershire),435.12, 09-Jan-2023
1259,Revenue,CAHD,Central - Commissioned Services,Other Small Contracts,Bluebird Care (South Gloucestershire),613.83, 09-Jan-2023
1260,Revenue,CAHD,Central - Commissioned Services,Other Small Contracts,Bluebird Care (South Gloucestershire),655.64, 09-Jan-2023
1261,Revenue,CAHD,Central - Commissioned Services,Other Small Contracts,Bluebird Care (South Gloucestershire),93.24, 09-Jan-2023
1262,Revenue,CAHD,Central - Commissioned Services,Other Small Contracts,Bluebird Care (South Gloucestershire),404.04, 09-Jan-2023
1263,Revenue,CAHD,Central - Commissioned Services,Other Small Contracts,Bluebird Care (South Gloucestershire),365.19, 09-Jan-2023
1264,Revenue,CAHD,South - Commissioned Services,Other Small Contracts,Bluebird Care (South Gloucestershire),473.97, 09-Jan-2023
1265,Revenue,CAHD,South - Commissioned Services,Other Small Contracts,Bluebird Care (South Gloucestershire),310.80, 09-Jan-2023
1266,Revenue,CAHD,South - Commissioned Services,Other Small Contracts,Bluebird Care (South Gloucestershire),466.20, 09-Jan-2023
1267,Revenue,CAHD,South - Commissioned Services,Other Small Contracts,Bluebird Care (South Gloucestershire),240.87, 09-Jan-2023
1268,Revenue,CAHD,South - Commissioned Services,Other Small Contracts,Bluebird Care (South Gloucestershire),256.41, 09-Jan-2023
1269,Revenue,CAHD,South - Commissioned Services,Other Small Contracts,Bluebird Care (South Gloucestershire),1399.44, 09-Jan-2023
1270,Revenue,CAHD,South - Commissioned Services,Other Small Contracts,Bluebird Care (South Gloucestershire),62.16, 09-Jan-2023
1271,Revenue,CAHD,South - Commissioned Services,Other Small Contracts,Bluebird Care (South Gloucestershire),108.78, 09-Jan-2023
1272,Revenue,CAHD,South - Commissioned Services,Other Small Contracts,Bluebird Care (South Gloucestershire),62.16, 09-Jan-2023
1273,Revenue,CAHD,South - Commissioned Services,Other Small Contracts,Bluebird Care (South Gloucestershire),318.57, 09-Jan-2023
1274,Revenue,CAHD,North - Community based support,Other Small Contracts,Bluebird Care (South Gloucestershire),334.11, 09-Jan-2023
1275,Revenue,CAHD,North - Community based support,Other Small Contracts,Bluebird Care (South Gloucestershire),217.56, 09-Jan-2023
1276,Revenue,CAHD,North - Community based support,Other Small Contracts,Bluebird Care (South Gloucestershire),54.39, 09-Jan-2023
1277,Revenue,CAHD,North - Community based support,Other Small Contracts,Bluebird Care (South Gloucestershire),1693.65, 09-Jan-2023
1278,Revenue,CAHD,North - Community based support,Other Small Contracts,Bluebird Care (South Gloucestershire),46.62, 09-Jan-2023
1279,Revenue,CAHD,North - Community based support,Other Small Contracts,Bluebird Care (South Gloucestershire),116.55, 09-Jan-2023
1280,Revenue,CAHD,North - Community based support,Other Small Contracts,Bluebird Care (South Gloucestershire),62.16, 09-Jan-2023
1281,Revenue,CAHD,North - Community based support,Other Small Contracts,Bluebird Care (South Gloucestershire),334.11, 09-Jan-2023
1282,Revenue,CAHD,North - Community based support,Other Small Contracts,Bluebird Care (South Gloucestershire),1250.60, 09-Jan-2023
1283,Revenue,CAHD,North - Community based support,Other Small Contracts,Bluebird Care (South Gloucestershire),924.63, 09-Jan-2023
1284,Revenue,CAHD,North - Community based support,Other Small Contracts,Bluebird Care (South Gloucestershire),62.16, 09-Jan-2023
1285,Revenue,CAHD,Central - Commissioned Services,Other Small Contracts,Bluebird Care (South Gloucestershire),108.78, 16-Jan-2023
1286,Revenue,CAHD,Central - Commissioned Services,Other Small Contracts,Bluebird Care (South Gloucestershire),738.15, 16-Jan-2023
1287,Revenue,CAHD,Central - Commissioned Services,Other Small Contracts,Bluebird Care (South Gloucestershire),139.86, 16-Jan-2023
1288,Revenue,CAHD,Central - Commissioned Services,Other Small Contracts,Bluebird Care (South Gloucestershire),23.31, 16-Jan-2023
1289,Revenue,CAHD,Central - Commissioned Services,Other Small Contracts,Bluebird Care (South Gloucestershire),1818.18, 16-Jan-2023
1290,Revenue,CAHD,Central - Commissioned Services,Other Small Contracts,Bluebird Care (South Gloucestershire),147.63, 16-Jan-2023
1291,Revenue,CAHD,Central - Commissioned Services,Other Small Contracts,Bluebird Care (South Gloucestershire),202.02, 16-Jan-2023
1292,Revenue,CAHD,Central - Commissioned Services,Other Small Contracts,Bluebird Care (South Gloucestershire),163.17, 16-Jan-2023
1293,Revenue,CAHD,Central - Commissioned Services,Other Small Contracts,Bluebird Care (South Gloucestershire),124.32, 16-Jan-2023
1294,Revenue,CAHD,Central - Commissioned Services,Other Small Contracts,Bluebird Care (South Gloucestershire),924.63, 16-Jan-2023
1295,Revenue,CAHD,Central - Commissioned Services,Other Small Contracts,Bluebird Care (South Gloucestershire),31.08, 16-Jan-2023
1296,Revenue,CAHD,Central - Commissioned Services,Other Small Contracts,Bluebird Care (South Gloucestershire),528.36, 16-Jan-2023
1297,Revenue,CAHD,Central - Commissioned Services,Other Small Contracts,Bluebird Care (South Gloucestershire),46.62, 16-Jan-2023
1298,Revenue,CAHD,Central - Commissioned Services,Other Small Contracts,Bluebird Care (South Gloucestershire),202.02, 16-Jan-2023
1299,Revenue,CAHD,Central - Commissioned Services,Other Small Contracts,Bluebird Care (South Gloucestershire),1399.44, 16-Jan-2023
1300,Revenue,CAHD,Central - Commissioned Services,Other Small Contracts,Bluebird Care (South Gloucestershire),435.12, 16-Jan-2023
1301,Revenue,CAHD,Central - Commissioned Services,Other Small Contracts,Bluebird Care (South Gloucestershire),551.67, 16-Jan-2023
1302,Revenue,CAHD,Central - Commissioned Services,Other Small Contracts,Bluebird Care (South Gloucestershire),609.02, 16-Jan-2023
1303,Revenue,CAHD,Central - Commissioned Services,Other Small Contracts,Bluebird Care (South Gloucestershire),93.24, 16-Jan-2023
1304,Revenue,CAHD,Central - Commissioned Services,Other Small Contracts,Bluebird Care (South Gloucestershire),396.27, 16-Jan-2023
1305,Revenue,CAHD,Central - Commissioned Services,Other Small Contracts,Bluebird Care (South Gloucestershire),357.42, 16-Jan-2023
1306,Revenue,CAHD,South - Commissioned Services,Other Small Contracts,Bluebird Care (South Gloucestershire),466.20, 16-Jan-2023
1307,Revenue,CAHD,South - Commissioned Services,Other Small Contracts,Bluebird Care (South Gloucestershire),295.26, 16-Jan-2023
1308,Revenue,CAHD,South - Commissioned Services,Other Small Contracts,Bluebird Care (South Gloucestershire),372.96, 16-Jan-2023
1309,Revenue,CAHD,South - Commissioned Services,Other Small Contracts,Bluebird Care (South Gloucestershire),279.72, 16-Jan-2023
1310,Revenue,CAHD,South - Commissioned Services,Other Small Contracts,Bluebird Care (South Gloucestershire),271.95, 16-Jan-2023
1311,Revenue,CAHD,South - Commissioned Services,Other Small Contracts,Bluebird Care (South Gloucestershire),1399.44, 16-Jan-2023
1312,Revenue,CAHD,South - Commissioned Services,Other Small Contracts,Bluebird Care (South Gloucestershire),62.16, 16-Jan-2023
1313,Revenue,CAHD,South - Commissioned Services,Other Small Contracts,Bluebird Care (South Gloucestershire),116.55, 16-Jan-2023
1314,Revenue,CAHD,South - Commissioned Services,Other Small Contracts,Bluebird Care (South Gloucestershire),62.16, 16-Jan-2023
1315,Revenue,CAHD,South - Commissioned Services,Other Small Contracts,Bluebird Care (South Gloucestershire),380.73, 16-Jan-2023
1316,Revenue,CAHD,North - Community based support,Other Small Contracts,Bluebird Care (South Gloucestershire),271.95, 16-Jan-2023
1317,Revenue,CAHD,North - Community based support,Other Small Contracts,Bluebird Care (South Gloucestershire),116.55, 16-Jan-2023
1318,Revenue,CAHD,North - Community based support,Other Small Contracts,Bluebird Care (South Gloucestershire),132.09, 16-Jan-2023
1319,Revenue,CAHD,North - Community based support,Other Small Contracts,Bluebird Care (South Gloucestershire),1685.88, 16-Jan-2023
1320,Revenue,CAHD,North - Community based support,Other Small Contracts,Bluebird Care (South Gloucestershire),132.09, 16-Jan-2023
1321,Revenue,CAHD,North - Community based support,Other Small Contracts,Bluebird Care (South Gloucestershire),46.62, 16-Jan-2023
1322,Revenue,CAHD,North - Community based support,Other Small Contracts,Bluebird Care (South Gloucestershire),334.11, 16-Jan-2023
1323,Revenue,CAHD,North - Community based support,Other Small Contracts,Bluebird Care (South Gloucestershire),1250.60, 16-Jan-2023
1324,Revenue,CAHD,North - Community based support,Other Small Contracts,Bluebird Care (South Gloucestershire),955.71, 16-Jan-2023
1325,Revenue,CAHD,North - Community based support,Other Small Contracts,Bluebird Care (South Gloucestershire),62.16, 16-Jan-2023
1326,Revenue,CAHD,Central - Commissioned Services,Other Small Contracts,Bluebird Care (South Gloucestershire),139.86, 27-Jan-2023
1327,Revenue,CAHD,Central - Commissioned Services,Other Small Contracts,Bluebird Care (South Gloucestershire),116.55, 27-Jan-2023
1328,Revenue,CAHD,Central - Commissioned Services,Other Small Contracts,Bluebird Care (South Gloucestershire),1017.87, 27-Jan-2023
1329,Revenue,CAHD,Central - Commissioned Services,Other Small Contracts,Bluebird Care (South Gloucestershire),139.86, 27-Jan-2023
1330,Revenue,CAHD,Central - Commissioned Services,Other Small Contracts,Bluebird Care (South Gloucestershire),31.08, 27-Jan-2023
1331,Revenue,CAHD,Central - Commissioned Services,Other Small Contracts,Bluebird Care (South Gloucestershire),1849.26, 27-Jan-2023
1332,Revenue,CAHD,Central - Commissioned Services,Other Small Contracts,Bluebird Care (South Gloucestershire),132.09, 27-Jan-2023
1333,Revenue,CAHD,Central - Commissioned Services,Other Small Contracts,Bluebird Care (South Gloucestershire),178.71, 27-Jan-2023
1334,Revenue,CAHD,Central - Commissioned Services,Other Small Contracts,Bluebird Care (South Gloucestershire),139.86, 27-Jan-2023
1335,Revenue,CAHD,Central - Commissioned Services,Other Small Contracts,Bluebird Care (South Gloucestershire),124.32, 27-Jan-2023
1336,Revenue,CAHD,Central - Commissioned Services,Other Small Contracts,Bluebird Care (South Gloucestershire),940.17, 27-Jan-2023
1337,Revenue,CAHD,Central - Commissioned Services,Other Small Contracts,Bluebird Care (South Gloucestershire),31.08, 27-Jan-2023
1338,Revenue,CAHD,Central - Commissioned Services,Other Small Contracts,Bluebird Care (South Gloucestershire),466.20, 27-Jan-2023
1339,Revenue,CAHD,Central - Commissioned Services,Other Small Contracts,Bluebird Care (South Gloucestershire),31.08, 27-Jan-2023
1340,Revenue,CAHD,Central - Commissioned Services,Other Small Contracts,Bluebird Care (South Gloucestershire),202.02, 27-Jan-2023
1341,Revenue,CAHD,Central - Commissioned Services,Other Small Contracts,Bluebird Care (South Gloucestershire),1399.44, 27-Jan-2023
1342,Revenue,CAHD,Central - Commissioned Services,Other Small Contracts,Bluebird Care (South Gloucestershire),132.09, 27-Jan-2023
1343,Revenue,CAHD,Central - Commissioned Services,Other Small Contracts,Bluebird Care (South Gloucestershire),435.12, 27-Jan-2023
1344,Revenue,CAHD,Central - Commissioned Services,Other Small Contracts,Bluebird Care (South Gloucestershire),613.83, 27-Jan-2023
1345,Revenue,CAHD,Central - Commissioned Services,Other Small Contracts,Bluebird Care (South Gloucestershire),647.87, 27-Jan-2023
1346,Revenue,CAHD,Central - Commissioned Services,Other Small Contracts,Bluebird Care (South Gloucestershire),85.47, 27-Jan-2023
1347,Revenue,CAHD,Central - Commissioned Services,Other Small Contracts,Bluebird Care (South Gloucestershire),404.04, 27-Jan-2023
1348,Revenue,CAHD,Central - Commissioned Services,Other Small Contracts,Bluebird Care (South Gloucestershire),341.88, 27-Jan-2023
1349,Revenue,CAHD,South - Commissioned Services,Other Small Contracts,Bluebird Care (South Gloucestershire),473.97, 27-Jan-2023
1350,Revenue,CAHD,South - Commissioned Services,Other Small Contracts,Bluebird Care (South Gloucestershire),264.18, 27-Jan-2023
1351,Revenue,CAHD,South - Commissioned Services,Other Small Contracts,Bluebird Care (South Gloucestershire),528.36, 27-Jan-2023
1352,Revenue,CAHD,South - Commissioned Services,Other Small Contracts,Bluebird Care (South Gloucestershire),271.95, 27-Jan-2023
1353,Revenue,CAHD,South - Commissioned Services,Other Small Contracts,Bluebird Care (South Gloucestershire),279.72, 27-Jan-2023
1354,Revenue,CAHD,South - Commissioned Services,Other Small Contracts,Bluebird Care (South Gloucestershire),1399.44, 27-Jan-2023
1355,Revenue,CAHD,South - Commissioned Services,Other Small Contracts,Bluebird Care (South Gloucestershire),62.16, 27-Jan-2023
1356,Revenue,CAHD,South - Commissioned Services,Other Small Contracts,Bluebird Care (South Gloucestershire),108.78, 27-Jan-2023
1357,Revenue,CAHD,South - Commissioned Services,Other Small Contracts,Bluebird Care (South Gloucestershire),46.62, 27-Jan-2023
1358,Revenue,CAHD,South - Commissioned Services,Other Small Contracts,Bluebird Care (South Gloucestershire),380.73, 27-Jan-2023
1359,Revenue,CAHD,North - Community based support,Other Small Contracts,Bluebird Care (South Gloucestershire),334.11, 27-Jan-2023
1360,Revenue,CAHD,North - Community based support,Other Small Contracts,Bluebird Care (South Gloucestershire),194.25, 27-Jan-2023
1361,Revenue,CAHD,North - Community based support,Other Small Contracts,Bluebird Care (South Gloucestershire),147.63, 27-Jan-2023
1362,Revenue,CAHD,North - Community based support,Other Small Contracts,Bluebird Care (South Gloucestershire),1701.42, 27-Jan-2023
1363,Revenue,CAHD,North - Community based support,Other Small Contracts,Bluebird Care (South Gloucestershire),23.31, 27-Jan-2023
1364,Revenue,CAHD,North - Community based support,Other Small Contracts,Bluebird Care (South Gloucestershire),132.09, 27-Jan-2023
1365,Revenue,CAHD,North - Community based support,Other Small Contracts,Bluebird Care (South Gloucestershire),124.32, 27-Jan-2023
1366,Revenue,CAHD,North - Community based support,Other Small Contracts,Bluebird Care (South Gloucestershire),341.88, 27-Jan-2023
1367,Revenue,CAHD,North - Community based support,Other Small Contracts,Bluebird Care (South Gloucestershire),1750.84, 27-Jan-2023
1368,Revenue,CAHD,North - Community based support,Other Small Contracts,Bluebird Care (South Gloucestershire),909.09, 27-Jan-2023
1369,Revenue,CAHD,North - Community based support,Other Small Contracts,Bluebird Care (South Gloucestershire),93.24, 27-Jan-2023
1370,Revenue,CAHD,Central - Commissioned Services,Other Small Contracts,Bluebird Care (South Gloucestershire),139.86, 27-Jan-2023
1371,Revenue,CAHD,Central - Commissioned Services,Other Small Contracts,Bluebird Care (South Gloucestershire),69.93, 27-Jan-2023
1372,Revenue,CAHD,Central - Commissioned Services,Other Small Contracts,Bluebird Care (South Gloucestershire),777.00, 27-Jan-2023
1373,Revenue,CAHD,Central - Commissioned Services,Other Small Contracts,Bluebird Care (South Gloucestershire),139.86, 27-Jan-2023
1374,Revenue,CAHD,Central - Commissioned Services,Other Small Contracts,Bluebird Care (South Gloucestershire),23.31, 27-Jan-2023
1375,Revenue,CAHD,Central - Commissioned Services,Other Small Contracts,Bluebird Care (South Gloucestershire),1857.03, 27-Jan-2023
1376,Revenue,CAHD,Central - Commissioned Services,Other Small Contracts,Bluebird Care (South Gloucestershire),155.40, 27-Jan-2023
1377,Revenue,CAHD,Central - Commissioned Services,Other Small Contracts,Bluebird Care (South Gloucestershire),202.02, 27-Jan-2023
1378,Revenue,CAHD,Central - Commissioned Services,Other Small Contracts,Bluebird Care (South Gloucestershire),163.17, 27-Jan-2023
1379,Revenue,CAHD,Central - Commissioned Services,Other Small Contracts,Bluebird Care (South Gloucestershire),124.32, 27-Jan-2023
1380,Revenue,CAHD,Central - Commissioned Services,Other Small Contracts,Bluebird Care (South Gloucestershire),947.94, 27-Jan-2023
1381,Revenue,CAHD,Central - Commissioned Services,Other Small Contracts,Bluebird Care (South Gloucestershire),46.62, 27-Jan-2023
1382,Revenue,CAHD,Central - Commissioned Services,Other Small Contracts,Bluebird Care (South Gloucestershire),536.13, 27-Jan-2023
1383,Revenue,CAHD,Central - Commissioned Services,Other Small Contracts,Bluebird Care (South Gloucestershire),46.62, 27-Jan-2023
1384,Revenue,CAHD,Central - Commissioned Services,Other Small Contracts,Bluebird Care (South Gloucestershire),194.25, 27-Jan-2023
1385,Revenue,CAHD,Central - Commissioned Services,Other Small Contracts,Bluebird Care (South Gloucestershire),1399.44, 27-Jan-2023
1386,Revenue,CAHD,Central - Commissioned Services,Other Small Contracts,Bluebird Care (South Gloucestershire),101.01, 27-Jan-2023
1387,Revenue,CAHD,Central - Commissioned Services,Other Small Contracts,Bluebird Care (South Gloucestershire),435.12, 27-Jan-2023
1388,Revenue,CAHD,Central - Commissioned Services,Other Small Contracts,Bluebird Care (South Gloucestershire),644.91, 27-Jan-2023
1389,Revenue,CAHD,Central - Commissioned Services,Other Small Contracts,Bluebird Care (South Gloucestershire),655.64, 27-Jan-2023
1390,Revenue,CAHD,Central - Commissioned Services,Other Small Contracts,Bluebird Care (South Gloucestershire),62.16, 27-Jan-2023
1391,Revenue,CAHD,Central - Commissioned Services,Other Small Contracts,Bluebird Care (South Gloucestershire),380.73, 27-Jan-2023
1392,Revenue,CAHD,Central - Commissioned Services,Other Small Contracts,Bluebird Care (South Gloucestershire),365.19, 27-Jan-2023
1393,Revenue,CAHD,South - Commissioned Services,Other Small Contracts,Bluebird Care (South Gloucestershire),473.97, 27-Jan-2023
1394,Revenue,CAHD,South - Commissioned Services,Other Small Contracts,Bluebird Care (South Gloucestershire),310.80, 27-Jan-2023
1395,Revenue,CAHD,South - Commissioned Services,Other Small Contracts,Bluebird Care (South Gloucestershire),512.82, 27-Jan-2023
1396,Revenue,CAHD,South - Commissioned Services,Other Small Contracts,Bluebird Care (South Gloucestershire),271.95, 27-Jan-2023
1397,Revenue,CAHD,South - Commissioned Services,Other Small Contracts,Bluebird Care (South Gloucestershire),264.18, 27-Jan-2023
1398,Revenue,CAHD,South - Commissioned Services,Other Small Contracts,Bluebird Care (South Gloucestershire),1399.44, 27-Jan-2023
1399,Revenue,CAHD,South - Commissioned Services,Other Small Contracts,Bluebird Care (South Gloucestershire),62.16, 27-Jan-2023
1400,Revenue,CAHD,South - Commissioned Services,Other Small Contracts,Bluebird Care (South Gloucestershire),62.16, 27-Jan-2023
1401,Revenue,CAHD,South - Commissioned Services,Other Small Contracts,Bluebird Care (South Gloucestershire),31.08, 27-Jan-2023
1402,Revenue,CAHD,South - Commissioned Services,Other Small Contracts,Bluebird Care (South Gloucestershire),372.96, 27-Jan-2023
1403,Revenue,CAHD,North - Community based support,Other Small Contracts,Bluebird Care (South Gloucestershire),341.88, 27-Jan-2023
1404,Revenue,CAHD,North - Community based support,Other Small Contracts,Bluebird Care (South Gloucestershire),163.17, 27-Jan-2023
1405,Revenue,CAHD,North - Community based support,Other Small Contracts,Bluebird Care (South Gloucestershire),163.17, 27-Jan-2023
1406,Revenue,CAHD,North - Community based support,Other Small Contracts,Bluebird Care (South Gloucestershire),1654.80, 27-Jan-2023
1407,Revenue,CAHD,North - Community based support,Other Small Contracts,Bluebird Care (South Gloucestershire),23.31, 27-Jan-2023
1408,Revenue,CAHD,North - Community based support,Other Small Contracts,Bluebird Care (South Gloucestershire),132.09, 27-Jan-2023
1409,Revenue,CAHD,North - Community based support,Other Small Contracts,Bluebird Care (South Gloucestershire),357.42, 27-Jan-2023
1410,Revenue,CAHD,North - Community based support,Other Small Contracts,Bluebird Care (South Gloucestershire),1750.84, 27-Jan-2023
1411,Revenue,CAHD,North - Community based support,Other Small Contracts,Bluebird Care (South Gloucestershire),963.48, 27-Jan-2023
1412,Revenue,CAHD,North - Community based support,Other Small Contracts,Bluebird Care (South Gloucestershire),62.16, 27-Jan-2023
1413,Revenue,CAHD,CSC - Asylum Seekers - Unaccompanied,Independent Living,Blueline Healthcare Solutions Ltd T/A Blueline Car,4207.00, 27-Jan-2023
1414,Revenue,CAHD,CSC - Asylum Seekers - Unaccompanied,Independent Living,Blueline Healthcare Solutions Ltd T/A Blueline Car,4207.00, 27-Jan-2023
1415,Revenue,CAHD,CSC - Asylum Seekers - Unaccompanied,Independent Living,Blueline Healthcare Solutions Ltd T/A Blueline Car,4207.00, 27-Jan-2023
1416,Revenue,CAHD,CSC - Asylum Seekers - Unaccompanied,Independent Living,Blueline Healthcare Solutions Ltd T/A Blueline Car,4207.00, 27-Jan-2023
1417,Revenue,CAHD,CSC - Asylum Seekers - Unaccompanied,Independent Living,Blueline Healthcare Solutions Ltd T/A Blueline Car,4207.00, 27-Jan-2023
1418,Revenue,CAHD,CSC - Asylum Seekers - Unaccompanied,Independent Living,Blueline Healthcare Solutions Ltd T/A Blueline Car,4207.00, 27-Jan-2023
1419,Revenue,CAHD,CSC - Asylum Seekers - Unaccompanied,Independent Living,Blueline Healthcare Solutions Ltd T/A Blueline Car,4207.00, 27-Jan-2023
1420,Revenue,CAHD,D2A spend on behalf of NHS,Publicity & Promotions,Boots UK Limited,2500.00, 27-Jan-2023
1421,Revenue,CAHD,Drugs Alcohol and Sexual Health,Other Small Contracts,Boots UK Ltd,621.86, 20-Jan-2023
1422,Revenue,CAHD,Drugs Alcohol and Sexual Health,Other Small Contracts,Boots UK Ltd,582.50, 20-Jan-2023
1423,Revenue,CAHD,The Skills Hub,Computer Equipment - Purchase,Box Ltd,1599.00, 04-Jan-2023
1424,Revenue,CAHD,North - Community based support,Permanent Residential,Bradbury House,6768.60, 10-Jan-2023
1425,Revenue,CAHD,S28A cases,Fees & Charges Income - General,Bradbury House,-438.80, 10-Jan-2023
1426,Revenue,CAHD,Central - Commissioned Services,Permanent Residential,Bradbury House,11342.80, 10-Jan-2023
1427,Revenue,CAHD,North - S117,Permanent Residential,Bradbury House,14640.32, 10-Jan-2023
1428,Revenue,CAHD,Cardio Vascular Disease - Risks,Other Small Contracts,Bradley Stoke Surgery,1909.00, 24-Jan-2023
1429,Revenue,CAHD,Psychology Traded,Premises Hire,Bradley Stoke Town Council,825.50, 03-Jan-2023
1430,Revenue,CAHD,Alexandra Way,"Provisions (Food, etc)",Brake Bros,812.43, 20-Jan-2023
1431,Revenue,CAHD,Alexandra Way,"Provisions (Food, etc)",Brake Bros,530.14, 20-Jan-2023
1432,Revenue,CAHD,Alexandra Way,"Provisions (Food, etc)",Brake Bros,554.86, 20-Jan-2023
1433,Revenue,CAHD,CSC - Residential Placements,Permanent Residential,Branas ISAF Ltd,52721.42, 11-Jan-2023
1434,Revenue,CAHD,Social Lettings Agency,Rent,Individual,822.73, 25-Jan-2023
1435,Revenue,CAHD,Social Lettings Agency,Fees & Charges Income - General,Individual,-102.80, 25-Jan-2023
1436,Revenue,CAHD,Social Lettings Agency,Rent,Individual,947.40, 06-Jan-2023
1437,Revenue,CAHD,Social Lettings Agency,Fees & Charges Income - General,Individual,-75.80, 06-Jan-2023
1438,Revenue,CAHD,Placements OLA Special Schools and RB,Other L.A.s - General,Briarwood School,2774.72, 20-Jan-2023
1439,Revenue,CAHD,Placements OLA Special Schools and RB,Other L.A.s - General,Briarwood School,1981.43, 20-Jan-2023
1440,Revenue,CAHD,Placements OLA Special Schools and RB,Other L.A.s - General,Briarwood School,792.40, 20-Jan-2023
1441,Revenue,CAHD,North - Community based support,Permanent Residential,Bridge House Care Home,3286.00, 10-Jan-2023
1442,Revenue,CAHD,North - Community based support,Permanent Residential,Bridge House Care Home,3440.00, 10-Jan-2023
1443,Revenue,CAHD,North - Community based support,Permanent Residential,Bridge House Care Home,3088.32, 10-Jan-2023
1444,Revenue,CAHD,North - Community based support,Permanent Nursing,Bridge House Care Home,3360.00, 10-Jan-2023
1445,Revenue,CAHD,North - Community based support,Fees & Charges Income - General,Bridge House Care Home,-627.80, 10-Jan-2023
1446,Revenue,CAHD,North - Community based support,Fees & Charges Income - General,Bridge House Care Home,-650.88, 10-Jan-2023
1447,Revenue,CAHD,North - Community based support,Fees & Charges Income - General,Bridge House Care Home,-651.64, 10-Jan-2023
1448,Revenue,CAHD,North - Community based support,Fees & Charges Income - General,Bridge House Care Home,-1679.52, 10-Jan-2023
1449,Revenue,CAHD,North - Community based support,Day Care / Social Activities,Bridge House Care Home,720.00, 10-Jan-2023
1450,Revenue,CAHD,North - Community based support,Permanent Residential,Bridgwater Court Care Home,10773.64, 10-Jan-2023
1451,Revenue,CAHD,Schools Specific Grant Income,Other Public Bodies,Brinkworth Earl Danby?s,550.00, 12-Jan-2023
1452,Revenue,CAHD,Community Support - North,Preventative Assistance,Bristol Ambulance EMS Limited,749.00, 12-Jan-2023
1453,Revenue,CAHD,Statemented Support Payments to OLAs,Other L.A.s - General,Bristol Cathedral Choir School,942.58, 20-Jan-2023
1454,Revenue,CAHD,Statemented Support Payments to OLAs,Other L.A.s - General,Bristol Cathedral Choir School,880.08, 20-Jan-2023
1455,Revenue,CAHD,Statemented Support Payments to OLAs,Other L.A.s - General,Bristol Cathedral Choir School,978.57, 20-Jan-2023
1456,Revenue,CAHD,ADPH Sector Led Improvements,Other Public Bodies,Bristol City Council,5000.00, 09-Jan-2023
1457,Revenue,CAHD,Statemented Support Payments to OLAs,Other L.A.s - General,Bristol City Council Schools General,897.42, 20-Jan-2023
1458,Revenue,CAHD,Schools Specific Grant Income,Other Public Bodies,Bristol City Council Schools General,550.00, 12-Jan-2023
1459,Revenue,CAHD,North Hub Offices,"Holidays, Outings & Visits",Bristol Clifton & West of England Zoological,504.00, 13-Jan-2023
1460,Revenue,CAHD,Children Centres - North Locality,Other Supplies & Services,Bristol Creative Therapy Centre C.I.C,585.00, 31-Jan-2023
1461,Revenue,CAHD,Post 16 High Needs Placements,Other Private Contractors,Bristol Plastering Academy Ltd,4935.00, 12-Jan-2023
1462,Revenue,CAHD,Other Alternative Provision Services,Other Private Contractors,Bristol Tuition Limited,640.00, 11-Jan-2023
1463,Revenue,CAHD,Statemented Support Payments to OLAs,Other L.A.s - General,Broadlands Academy,835.17, 20-Jan-2023
1464,Revenue,CAHD,North - Community based support,Permanent Residential,Brockhills Farm,3200.00, 10-Jan-2023
1465,Revenue,CAHD,North - Community based support,Fees & Charges Income - General,Brockhills Farm,-658.96, 10-Jan-2023
1466,Revenue,CAHD,Supporting People Programme,Grants to Voluntary Bodies,Bromford  :  Merlin Housing Society,2824.17, 04-Jan-2023
1467,Revenue,CAHD,Supporting People Programme,Grants to Voluntary Bodies,Bromford  :  Merlin Housing Society,23628.83, 04-Jan-2023
1468,Revenue,CAHD,Supporting People Programme,Grants to Voluntary Bodies,Bromford  :  Merlin Housing Society,1146.92, 04-Jan-2023
1469,Revenue,CAHD,Pathway 1 - Re-Ablement Home Care,Other Small Contracts,Brunelcare,522.16, 04-Jan-2023
1470,Revenue,CAHD,Central - Commissioned Services,Other Small Contracts,Brunelcare,96.80, 05-Jan-2023
1471,Revenue,CAHD,Central - Commissioned Services,Other Small Contracts,Brunelcare,205.70, 05-Jan-2023
1472,Revenue,CAHD,Central - Commissioned Services,Other Small Contracts,Brunelcare,332.75, 05-Jan-2023
1473,Revenue,CAHD,South - Commissioned Services,Other Small Contracts,Brunelcare,405.35, 05-Jan-2023
1474,Revenue,CAHD,South - Commissioned Services,Other Small Contracts,Brunelcare,121.00, 05-Jan-2023
1475,Revenue,CAHD,South - Commissioned Services,Other Small Contracts,Brunelcare,344.85, 05-Jan-2023
1476,Revenue,CAHD,South - Commissioned Services,Other Small Contracts,Brunelcare,356.95, 05-Jan-2023
1477,Revenue,CAHD,South - Commissioned Services,Other Small Contracts,Brunelcare,768.35, 05-Jan-2023
1478,Revenue,CAHD,South - Commissioned Services,Other Small Contracts,Brunelcare,423.50, 05-Jan-2023
1479,Revenue,CAHD,South - Commissioned Services,Other Small Contracts,Brunelcare,254.10, 05-Jan-2023
1480,Revenue,CAHD,South - Commissioned Services,Other Small Contracts,Brunelcare,1669.80, 05-Jan-2023
1481,Revenue,CAHD,South - Commissioned Services,Other Small Contracts,Brunelcare,296.45, 05-Jan-2023
1482,Revenue,CAHD,South - Commissioned Services,Other Small Contracts,Brunelcare,568.70, 05-Jan-2023
1483,Revenue,CAHD,South - Commissioned Services,Other Small Contracts,Brunelcare,205.70, 05-Jan-2023
1484,Revenue,CAHD,South - Commissioned Services,Other Small Contracts,Brunelcare,108.90, 05-Jan-2023
1485,Revenue,CAHD,South - Commissioned Services,Other Small Contracts,Brunelcare,254.10, 05-Jan-2023
1486,Revenue,CAHD,South - Commissioned Services,Other Small Contracts,Brunelcare,417.45, 05-Jan-2023
1487,Revenue,CAHD,South - Commissioned Services,Other Small Contracts,Brunelcare,175.45, 05-Jan-2023
1488,Revenue,CAHD,South - Commissioned Services,Other Small Contracts,Brunelcare,242.00, 05-Jan-2023
1489,Revenue,CAHD,South - Commissioned Services,Other Small Contracts,Brunelcare,1881.55, 05-Jan-2023
1490,Revenue,CAHD,South - Commissioned Services,Other Small Contracts,Brunelcare,1034.55, 05-Jan-2023
1491,Revenue,CAHD,South - Commissioned Services,Other Small Contracts,Brunelcare,48.40, 05-Jan-2023
1492,Revenue,CAHD,South - Commissioned Services,Other Small Contracts,Brunelcare,405.35, 05-Jan-2023
1493,Revenue,CAHD,South - Commissioned Services,Other Small Contracts,Brunelcare,471.90, 05-Jan-2023
1494,Revenue,CAHD,South - Commissioned Services,Other Small Contracts,Brunelcare,496.10, 05-Jan-2023
1495,Revenue,CAHD,South - Commissioned Services,Other Small Contracts,Brunelcare,115.30, 05-Jan-2023
1496,Revenue,CAHD,South - Commissioned Services,Other Small Contracts,Brunelcare,121.00, 05-Jan-2023
1497,Revenue,CAHD,South - Commissioned Services,Other Small Contracts,Brunelcare,732.05, 05-Jan-2023
1498,Revenue,CAHD,South - Commissioned Services,Other Small Contracts,Brunelcare,96.80, 05-Jan-2023
1499,Revenue,CAHD,South - Commissioned Services,Other Small Contracts,Brunelcare,169.40, 05-Jan-2023
1500,Revenue,CAHD,South - Commissioned Services,Other Small Contracts,Brunelcare,804.65, 05-Jan-2023
1501,Revenue,CAHD,South - Commissioned Services,Other Small Contracts,Brunelcare,260.15, 05-Jan-2023
1502,Revenue,CAHD,South - Commissioned Services,Other Small Contracts,Brunelcare,344.85, 05-Jan-2023
1503,Revenue,CAHD,South - Commissioned Services,Other Small Contracts,Brunelcare,272.25, 05-Jan-2023
1504,Revenue,CAHD,South - Commissioned Services,Other Small Contracts,Brunelcare,78.65, 05-Jan-2023
1505,Revenue,CAHD,South - Commissioned Services,Other Small Contracts,Brunelcare,139.15, 05-Jan-2023
1506,Revenue,CAHD,South - Commissioned Services,Other Small Contracts,Brunelcare,302.50, 05-Jan-2023
1507,Revenue,CAHD,South - Commissioned Services,Other Small Contracts,Brunelcare,133.10, 05-Jan-2023
1508,Revenue,CAHD,South - Commissioned Services,Other Small Contracts,Brunelcare,260.15, 05-Jan-2023
1509,Revenue,CAHD,South - Commissioned Services,Other Small Contracts,Brunelcare,338.80, 05-Jan-2023
1510,Revenue,CAHD,South - Commissioned Services,Other Small Contracts,Brunelcare,193.60, 05-Jan-2023
1511,Revenue,CAHD,South - Commissioned Services,Other Small Contracts,Brunelcare,96.80, 05-Jan-2023
1512,Revenue,CAHD,South - Commissioned Services,Other Small Contracts,Brunelcare,526.35, 05-Jan-2023
1513,Revenue,CAHD,South - Commissioned Services,Other Small Contracts,Brunelcare,248.05, 05-Jan-2023
1514,Revenue,CAHD,South - Commissioned Services,Other Small Contracts,Brunelcare,193.60, 05-Jan-2023
1515,Revenue,CAHD,South - Commissioned Services,Other Small Contracts,Brunelcare,514.25, 05-Jan-2023
1516,Revenue,CAHD,South - Commissioned Services,Other Small Contracts,Brunelcare,411.40, 05-Jan-2023
1517,Revenue,CAHD,South - Commissioned Services,Other Small Contracts,Brunelcare,496.10, 05-Jan-2023
1518,Revenue,CAHD,South - Commissioned Services,Other Small Contracts,Brunelcare,429.55, 05-Jan-2023
1519,Revenue,CAHD,South - Commissioned Services,Other Small Contracts,Brunelcare,490.05, 05-Jan-2023
1520,Revenue,CAHD,South - Commissioned Services,Other Small Contracts,Brunelcare,356.95, 05-Jan-2023
1521,Revenue,CAHD,South - Commissioned Services,Other Small Contracts,Brunelcare,774.40, 05-Jan-2023
1522,Revenue,CAHD,South - Commissioned Services,Other Small Contracts,Brunelcare,671.55, 05-Jan-2023
1523,Revenue,CAHD,South - Commissioned Services,Other Small Contracts,Brunelcare,726.00, 05-Jan-2023
1524,Revenue,CAHD,South - Commissioned Services,Other Small Contracts,Brunelcare,338.80, 05-Jan-2023
1525,Revenue,CAHD,South - Commissioned Services,Other Small Contracts,Brunelcare,399.30, 05-Jan-2023
1526,Revenue,CAHD,South - Commissioned Services,Other Small Contracts,Brunelcare,127.05, 05-Jan-2023
1527,Revenue,CAHD,South - Commissioned Services,Other Small Contracts,Brunelcare,48.40, 05-Jan-2023
1528,Revenue,CAHD,South - Commissioned Services,Mentoring,Brunelcare,145.20, 05-Jan-2023
1529,Revenue,CAHD,South - Commissioned Services,Mentoring,Brunelcare,24.20, 05-Jan-2023
1530,Revenue,CAHD,South - Commissioned Services,Mentoring,Brunelcare,127.05, 05-Jan-2023
1531,Revenue,CAHD,South - Commissioned Services,Mentoring,Brunelcare,90.75, 05-Jan-2023
1532,Revenue,CAHD,South - Commissioned Services,Mentoring,Brunelcare,96.80, 05-Jan-2023
1533,Revenue,CAHD,South - Commissioned Services,Mentoring,Brunelcare,139.15, 05-Jan-2023
1534,Revenue,CAHD,South - Commissioned Services,Mentoring,Brunelcare,42.35, 05-Jan-2023
1535,Revenue,CAHD,North - Community based support,Other Small Contracts,Brunelcare,822.80, 05-Jan-2023
1536,Revenue,CAHD,Central - Commissioned Services,Other Small Contracts,Brunelcare,96.80, 23-Jan-2023
1537,Revenue,CAHD,South - Commissioned Services,Other Small Contracts,Brunelcare,181.50, 23-Jan-2023
1538,Revenue,CAHD,South - Commissioned Services,Other Small Contracts,Brunelcare,48.40, 23-Jan-2023
1539,Revenue,CAHD,South - Commissioned Services,Other Small Contracts,Brunelcare,169.40, 23-Jan-2023
1540,Revenue,CAHD,South - Commissioned Services,Other Small Contracts,Brunelcare,387.20, 23-Jan-2023
1541,Revenue,CAHD,South - Commissioned Services,Other Small Contracts,Brunelcare,205.70, 23-Jan-2023
1542,Revenue,CAHD,South - Commissioned Services,Other Small Contracts,Brunelcare,127.05, 23-Jan-2023
1543,Revenue,CAHD,South - Commissioned Services,Other Small Contracts,Brunelcare,822.80, 23-Jan-2023
1544,Revenue,CAHD,South - Commissioned Services,Other Small Contracts,Brunelcare,139.15, 23-Jan-2023
1545,Revenue,CAHD,South - Commissioned Services,Other Small Contracts,Brunelcare,399.30, 23-Jan-2023
1546,Revenue,CAHD,South - Commissioned Services,Other Small Contracts,Brunelcare,102.85, 23-Jan-2023
1547,Revenue,CAHD,South - Commissioned Services,Other Small Contracts,Brunelcare,72.60, 23-Jan-2023
1548,Revenue,CAHD,South - Commissioned Services,Other Small Contracts,Brunelcare,127.05, 23-Jan-2023
1549,Revenue,CAHD,South - Commissioned Services,Other Small Contracts,Brunelcare,235.95, 23-Jan-2023
1550,Revenue,CAHD,South - Commissioned Services,Other Small Contracts,Brunelcare,84.70, 23-Jan-2023
1551,Revenue,CAHD,South - Commissioned Services,Other Small Contracts,Brunelcare,889.35, 23-Jan-2023
1552,Revenue,CAHD,South - Commissioned Services,Other Small Contracts,Brunelcare,508.20, 23-Jan-2023
1553,Revenue,CAHD,South - Commissioned Services,Other Small Contracts,Brunelcare,205.70, 23-Jan-2023
1554,Revenue,CAHD,South - Commissioned Services,Other Small Contracts,Brunelcare,217.80, 23-Jan-2023
1555,Revenue,CAHD,South - Commissioned Services,Other Small Contracts,Brunelcare,217.80, 23-Jan-2023
1556,Revenue,CAHD,South - Commissioned Services,Other Small Contracts,Brunelcare,51.25, 23-Jan-2023
1557,Revenue,CAHD,South - Commissioned Services,Other Small Contracts,Brunelcare,24.20, 23-Jan-2023
1558,Revenue,CAHD,South - Commissioned Services,Other Small Contracts,Brunelcare,320.65, 23-Jan-2023
1559,Revenue,CAHD,South - Commissioned Services,Other Small Contracts,Brunelcare,48.40, 23-Jan-2023
1560,Revenue,CAHD,South - Commissioned Services,Other Small Contracts,Brunelcare,90.75, 23-Jan-2023
1561,Revenue,CAHD,South - Commissioned Services,Other Small Contracts,Brunelcare,399.30, 23-Jan-2023
1562,Revenue,CAHD,South - Commissioned Services,Other Small Contracts,Brunelcare,108.90, 23-Jan-2023
1563,Revenue,CAHD,South - Commissioned Services,Other Small Contracts,Brunelcare,175.45, 23-Jan-2023
1564,Revenue,CAHD,South - Commissioned Services,Other Small Contracts,Brunelcare,157.30, 23-Jan-2023
1565,Revenue,CAHD,South - Commissioned Services,Other Small Contracts,Brunelcare,36.30, 23-Jan-2023
1566,Revenue,CAHD,South - Commissioned Services,Other Small Contracts,Brunelcare,72.60, 23-Jan-2023
1567,Revenue,CAHD,South - Commissioned Services,Other Small Contracts,Brunelcare,139.15, 23-Jan-2023
1568,Revenue,CAHD,South - Commissioned Services,Other Small Contracts,Brunelcare,60.50, 23-Jan-2023
1569,Revenue,CAHD,South - Commissioned Services,Other Small Contracts,Brunelcare,121.00, 23-Jan-2023
1570,Revenue,CAHD,South - Commissioned Services,Other Small Contracts,Brunelcare,157.30, 23-Jan-2023
1571,Revenue,CAHD,South - Commissioned Services,Other Small Contracts,Brunelcare,121.00, 23-Jan-2023
1572,Revenue,CAHD,South - Commissioned Services,Other Small Contracts,Brunelcare,48.40, 23-Jan-2023
1573,Revenue,CAHD,South - Commissioned Services,Other Small Contracts,Brunelcare,248.05, 23-Jan-2023
1574,Revenue,CAHD,South - Commissioned Services,Other Small Contracts,Brunelcare,169.40, 23-Jan-2023
1575,Revenue,CAHD,South - Commissioned Services,Other Small Contracts,Brunelcare,108.90, 23-Jan-2023
1576,Revenue,CAHD,South - Commissioned Services,Other Small Contracts,Brunelcare,266.20, 23-Jan-2023
1577,Revenue,CAHD,South - Commissioned Services,Other Small Contracts,Brunelcare,211.75, 23-Jan-2023
1578,Revenue,CAHD,South - Commissioned Services,Other Small Contracts,Brunelcare,217.80, 23-Jan-2023
1579,Revenue,CAHD,South - Commissioned Services,Other Small Contracts,Brunelcare,205.70, 23-Jan-2023
1580,Revenue,CAHD,South - Commissioned Services,Other Small Contracts,Brunelcare,205.70, 23-Jan-2023
1581,Revenue,CAHD,South - Commissioned Services,Other Small Contracts,Brunelcare,127.05, 23-Jan-2023
1582,Revenue,CAHD,South - Commissioned Services,Other Small Contracts,Brunelcare,381.15, 23-Jan-2023
1583,Revenue,CAHD,South - Commissioned Services,Other Small Contracts,Brunelcare,284.35, 23-Jan-2023
1584,Revenue,CAHD,South - Commissioned Services,Other Small Contracts,Brunelcare,157.30, 23-Jan-2023
1585,Revenue,CAHD,South - Commissioned Services,Other Small Contracts,Brunelcare,84.70, 23-Jan-2023
1586,Revenue,CAHD,South - Commissioned Services,Mentoring,Brunelcare,90.75, 23-Jan-2023
1587,Revenue,CAHD,South - Commissioned Services,Mentoring,Brunelcare,24.20, 23-Jan-2023
1588,Revenue,CAHD,South - Commissioned Services,Mentoring,Brunelcare,66.55, 23-Jan-2023
1589,Revenue,CAHD,South - Commissioned Services,Mentoring,Brunelcare,48.40, 23-Jan-2023
1590,Revenue,CAHD,South - Commissioned Services,Mentoring,Brunelcare,48.40, 23-Jan-2023
1591,Revenue,CAHD,South - Commissioned Services,Mentoring,Brunelcare,72.60, 23-Jan-2023
1592,Revenue,CAHD,North - Community based support,Other Small Contracts,Brunelcare,417.45, 23-Jan-2023
1593,Revenue,CAHD,CSC - Residential Placements,Permanent Residential,Bryn Melyn Care LTD,96450.00, 23-Jan-2023
1594,Revenue,CAHD,CSC - Asylum Seekers - Unaccompanied,Furniture & Fittings Loose,BS5 Flooring,930.00, 03-Jan-2023
1595,Revenue,CAHD,North - S117,Permanent Residential,Buckland Care,3600.00, 10-Jan-2023
1596,Revenue,CAHD,Social Lettings Agency,Rent,Individual,947.40, 13-Jan-2023
1597,Revenue,CAHD,Social Lettings Agency,Fees & Charges Income - General,Individual,-94.74, 13-Jan-2023
1598,Revenue,CAHD,Troubled Families Attachment Fee Phase 2,Intra Directorate Recharges,Cabot Learning Federation,500.00, 27-Jan-2023
1599,Revenue,CAHD,Statemented Support Academies,Other Public Bodies,Cabot Learning Federation,896.50, 20-Jan-2023
1600,Revenue,CAHD,Statemented Support Academies,Other Public Bodies,Cabot Learning Federation,896.50, 20-Jan-2023
1601,Revenue,CAHD,Statemented Support Academies,Other Public Bodies,Cabot Learning Federation,1012.67, 20-Jan-2023
1602,Revenue,CAHD,Statemented Support Academies,Other Public Bodies,Cabot Learning Federation,740.00, 20-Jan-2023
1603,Revenue,CAHD,Statemented Support Academies,Other Public Bodies,Cabot Learning Federation,740.00, 20-Jan-2023
1604,Revenue,CAHD,Statemented Support Academies,Other Public Bodies,Cabot Learning Federation,740.00, 20-Jan-2023
1605,Revenue,CAHD,Statemented Support Academies,Other Public Bodies,Cabot Learning Federation,740.00, 20-Jan-2023
1606,Revenue,CAHD,Statemented Support Academies,Other Public Bodies,Cabot Learning Federation,740.00, 20-Jan-2023
1607,Revenue,CAHD,Statemented Support Academies,Other Public Bodies,Cabot Learning Federation,740.00, 20-Jan-2023
1608,Revenue,CAHD,Statemented Support Academies,Other Public Bodies,Cabot Learning Federation,896.50, 20-Jan-2023
1609,Revenue,CAHD,Statemented Support Academies,Other Public Bodies,Cabot Learning Federation,740.00, 20-Jan-2023
1610,Revenue,CAHD,Statemented Support Academies,Other Public Bodies,Cabot Learning Federation,740.00, 20-Jan-2023
1611,Revenue,CAHD,Academy Resource Base Funding,Other Public Bodies,Cabot Learning Federation,5095.92, 23-Jan-2023
1612,Revenue,CAHD,Academy Resource Base Funding,Other Public Bodies,Cabot Learning Federation,1186.24, 23-Jan-2023
1613,Revenue,CAHD,Academy Resource Base Funding,Other Public Bodies,Cabot Learning Federation,949.04, 23-Jan-2023
1614,Revenue,CAHD,Academy Resource Base Funding,Other Public Bodies,Cabot Learning Federation,535.33, 23-Jan-2023
1615,Revenue,CAHD,Academy Resource Base Funding,Other Public Bodies,Cabot Learning Federation,949.04, 23-Jan-2023
1616,Revenue,CAHD,Academy Resource Base Funding,Other Public Bodies,Cabot Learning Federation,535.33, 23-Jan-2023
1617,Revenue,CAHD,Academy Resource Base Funding,Other Public Bodies,Cabot Learning Federation,949.04, 23-Jan-2023
1618,Revenue,CAHD,Academy Resource Base Funding,Other Public Bodies,Cabot Learning Federation,949.04, 23-Jan-2023
1619,Revenue,CAHD,Academy Resource Base Funding,Other Public Bodies,Cabot Learning Federation,1186.24, 23-Jan-2023
1620,Revenue,CAHD,Academy Resource Base Funding,Other Public Bodies,Cabot Learning Federation,535.33, 23-Jan-2023
1621,Revenue,CAHD,Academy Resource Base Funding,Other Public Bodies,Cabot Learning Federation,1186.24, 23-Jan-2023
1622,Revenue,CAHD,Academy Resource Base Funding,Other Public Bodies,Cabot Learning Federation,949.04, 23-Jan-2023
1623,Revenue,CAHD,Academy Resource Base Funding,Other Public Bodies,Cabot Learning Federation,949.04, 23-Jan-2023
1624,Revenue,CAHD,Academy Resource Base Funding,Other Public Bodies,Cabot Learning Federation,535.33, 23-Jan-2023
1625,Revenue,CAHD,Academy Resource Base Funding,Other Public Bodies,Cabot Learning Federation,1186.24, 23-Jan-2023
1626,Revenue,CAHD,Academy Resource Base Funding,Other Public Bodies,Cabot Learning Federation,1186.24, 23-Jan-2023
1627,Revenue,CAHD,Academy Resource Base Funding,Other Public Bodies,Cabot Learning Federation,949.04, 23-Jan-2023
1628,Revenue,CAHD,Academy Resource Base Funding,Other Public Bodies,Cabot Learning Federation,949.04, 23-Jan-2023
1629,Revenue,CAHD,Academy Resource Base Funding,Other Public Bodies,Cabot Learning Federation,949.04, 23-Jan-2023
1630,Revenue,CAHD,Academy Resource Base Funding,Other Public Bodies,Cabot Learning Federation,535.33, 23-Jan-2023
1631,Revenue,CAHD,Academy Resource Base Funding,Other Public Bodies,Cabot Learning Federation,1186.24, 23-Jan-2023
1632,Revenue,CAHD,Academy Resource Base Funding,Other Public Bodies,Cabot Learning Federation,949.04, 23-Jan-2023
1633,Revenue,CAHD,Academy Resource Base Funding,Other Public Bodies,Cabot Learning Federation,1186.24, 23-Jan-2023
1634,Revenue,CAHD,Academy Resource Base Funding,Other Public Bodies,Cabot Learning Federation,949.04, 23-Jan-2023
1635,Revenue,CAHD,Academy Resource Base Funding,Other Public Bodies,Cabot Learning Federation,949.04, 23-Jan-2023
1636,Revenue,CAHD,Academy Resource Base Funding,Other Public Bodies,Cabot Learning Federation,949.04, 23-Jan-2023
1637,Revenue,CAHD,Academy Resource Base Funding,Other Public Bodies,Cabot Learning Federation,14184.34, 23-Jan-2023
1638,Revenue,CAHD,Homes For Ukraine School Support,Other Public Bodies,Cabot Learning Federation,578.13, 17-Jan-2023
1639,Revenue,CAHD,Statemented Support Payments to OLAs,Other L.A.s - General,Cabot Learning Federation,561.13, 20-Jan-2023
1640,Revenue,CAHD,Statemented Support Payments to OLAs,Other L.A.s - General,Cabot Learning Federation,1944.17, 20-Jan-2023
1641,Revenue,CAHD,Statemented Support Academies,Other Public Bodies,Cabot Learning Federation,896.50, 20-Jan-2023
1642,Revenue,CAHD,Statemented Support Academies,Other Public Bodies,Cabot Learning Federation,740.00, 20-Jan-2023
1643,Revenue,CAHD,Statemented Support Academies,Other Public Bodies,Cabot Learning Federation,896.50, 20-Jan-2023
1644,Revenue,CAHD,Schools Specific Grant Income,Other Public Bodies,Cabot Learning Federation,3258.00, 27-Jan-2023
1645,Revenue,CAHD,Statemented Support Academies,Other Public Bodies,Cabot Learning Federation,740.00, 20-Jan-2023
1646,Revenue,CAHD,Statemented Support Academies,Other Public Bodies,Cabot Learning Federation,896.50, 20-Jan-2023
1647,Revenue,CAHD,Statemented Support Academies,Other Public Bodies,Cabot Learning Federation,740.00, 20-Jan-2023
1648,Revenue,CAHD,Statemented Support Academies,Other Public Bodies,Cabot Learning Federation,896.50, 20-Jan-2023
1649,Revenue,CAHD,Statemented Support Academies,Other Public Bodies,Cabot Learning Federation,740.00, 20-Jan-2023
1650,Revenue,CAHD,Statemented Support Academies,Other Public Bodies,Cabot Learning Federation,740.00, 20-Jan-2023
1651,Revenue,CAHD,Statemented Support Payments to OLAs,Other L.A.s - General,Cabot Learning Federation,1062.33, 20-Jan-2023
1652,Revenue,CAHD,Statemented Support Payments to OLAs,Other L.A.s - General,Cabot Learning Federation,740.00, 20-Jan-2023
1653,Revenue,CAHD,Statemented Support Payments to OLAs,Other L.A.s - General,Cabot Learning Federation,809.75, 20-Jan-2023
1654,Revenue,CAHD,Statemented Support Payments to OLAs,Other L.A.s - General,Cabot Learning Federation,5985.00, 20-Jan-2023
1655,Revenue,CAHD,Statemented Support Academies,Other Public Bodies,Cabot Learning Federation,740.00, 20-Jan-2023
1656,Revenue,CAHD,Statemented Support Academies,Other Public Bodies,Cabot Learning Federation,740.00, 20-Jan-2023
1657,Revenue,CAHD,Statemented Support Academies,Other Public Bodies,Cabot Learning Federation,740.00, 20-Jan-2023
1658,Revenue,CAHD,Statemented Support Payments to OLAs,Other L.A.s - General,Cabot Learning Federation,665.33, 20-Jan-2023
1659,Revenue,CAHD,Central - Commissioned Services,Permanent Nursing,Caernarvon House,4163.24, 10-Jan-2023
1660,Revenue,CAHD,Central - Commissioned Services,Fees & Charges Income - General,Caernarvon House,0.00, 10-Jan-2023
1661,Revenue,CAHD,South - Commissioned Services,Permanent Residential,Caernarvon House,2725.99, 10-Jan-2023
1662,Revenue,CAHD,South - Commissioned Services,Permanent Nursing,Caernarvon House,5000.00, 10-Jan-2023
1663,Revenue,CAHD,South - Commissioned Services,Permanent Nursing,Caernarvon House,5114.28, 10-Jan-2023
1664,Revenue,CAHD,South - Commissioned Services,Permanent Nursing,Caernarvon House,5516.00, 10-Jan-2023
1665,Revenue,CAHD,South - Commissioned Services,Permanent Nursing,Caernarvon House,5516.00, 10-Jan-2023
1666,Revenue,CAHD,South - Commissioned Services,Permanent Nursing,Caernarvon House,3079.88, 10-Jan-2023
1667,Revenue,CAHD,South - Commissioned Services,Fees & Charges Income - General,Caernarvon House,-1267.84, 10-Jan-2023
1668,Revenue,CAHD,South - Commissioned Services,Fees & Charges Income - General,Caernarvon House,-603.48, 10-Jan-2023
1669,Revenue,CAHD,South - Commissioned Services,Fees & Charges Income - General,Caernarvon House,-1348.80, 10-Jan-2023
1670,Revenue,CAHD,South - Commissioned Services,Fees & Charges Income - General,Caernarvon House,-773.60, 10-Jan-2023
1671,Revenue,CAHD,North - Community based support,Permanent Nursing,Caernarvon House,5516.00, 10-Jan-2023
1672,Revenue,CAHD,North - Community based support,Permanent Nursing,Caernarvon House,4901.16, 10-Jan-2023
1673,Revenue,CAHD,North - Community based support,Permanent Nursing,Caernarvon House,3474.32, 10-Jan-2023
1674,Revenue,CAHD,North - Community based support,Fees & Charges Income - General,Caernarvon House,-627.80, 10-Jan-2023
1675,Revenue,CAHD,North - Community based support,Fees & Charges Income - General,Caernarvon House,-627.80, 10-Jan-2023
1676,Revenue,CAHD,North - Community based support,Fees & Charges Income - General,Caernarvon House,-1036.92, 10-Jan-2023
1677,Revenue,CAHD,South - S117,Permanent Nursing,Caernarvon House,5114.28, 10-Jan-2023
1678,Revenue,CAHD,Post 16 High Needs Placements,Other Private Contractors,Cambian Whinfell School Limited,5941.00, 06-Jan-2023
1679,Revenue,CAHD,Central - Commissioned Services,Respite Planned - Residential,Campania Care Home,3800.00, 10-Jan-2023
1680,Revenue,CAHD,Post 16 High Needs Placements,Other Private Contractors,Candle Ltd,8478.90, 13-Jan-2023
1681,Revenue,CAHD,Post 16 High Needs Placements,Other Private Contractors,Candle Ltd,12710.90, 12-Jan-2023
1682,Revenue,CAHD,MH Purchasing - Younger,Permanent Residential,Canonbury Residential Home,3400.00, 10-Jan-2023
1683,Revenue,CAHD,CSC - Residential Placements,Permanent Residential,Carbrey Group Ltd,27928.57, 11-Jan-2023
1684,Revenue,CAHD,Central - Commissioned Services,Other Small Contracts,Care 1st Homecare,6502.18, 23-Jan-2023
1685,Revenue,CAHD,South - Commissioned Services,Other Small Contracts,Care 1st Homecare,577.70, 23-Jan-2023
1686,Revenue,CAHD,South - Commissioned Services,Other Small Contracts,Care 1st Homecare,2136.40, 23-Jan-2023
1687,Revenue,CAHD,South - Commissioned Services,Other Small Contracts,Care 1st Homecare,1482.40, 23-Jan-2023
1688,Revenue,CAHD,South - Commissioned Services,Other Small Contracts,Care 1st Homecare,283.40, 23-Jan-2023
1689,Revenue,CAHD,South - Commissioned Services,Other Small Contracts,Care 1st Homecare,981.00, 23-Jan-2023
1690,Revenue,CAHD,North - Community based support,Other Small Contracts,Care 1st Homecare,3057.45, 23-Jan-2023
1691,Revenue,CAHD,North - Community based support,Other Small Contracts,Care 1st Homecare,3151.38, 23-Jan-2023
1692,Revenue,CAHD,North - Community based support,Other Small Contracts,Care 1st Homecare,1852.17, 23-Jan-2023
1693,Revenue,CAHD,Central - Commissioned Services,Other Small Contracts,Care 1st Homecare,3224.58, 27-Jan-2023
1694,Revenue,CAHD,South - Commissioned Services,Other Small Contracts,Care 1st Homecare,370.60, 27-Jan-2023
1695,Revenue,CAHD,South - Commissioned Services,Other Small Contracts,Care 1st Homecare,991.90, 27-Jan-2023
1696,Revenue,CAHD,South - Commissioned Services,Other Small Contracts,Care 1st Homecare,741.20, 27-Jan-2023
1697,Revenue,CAHD,South - Commissioned Services,Other Small Contracts,Care 1st Homecare,359.70, 27-Jan-2023
1698,Revenue,CAHD,South - Commissioned Services,Other Small Contracts,Care 1st Homecare,686.70, 27-Jan-2023
1699,Revenue,CAHD,North - Community based support,Other Small Contracts,Care 1st Homecare,1526.00, 27-Jan-2023
1700,Revenue,CAHD,North - Community based support,Other Small Contracts,Care 1st Homecare,1581.14, 27-Jan-2023
1701,Revenue,CAHD,North - Community based support,Other Small Contracts,Care 1st Homecare,2527.86, 27-Jan-2023
1702,Revenue,CAHD,Central - Commissioned Services,Other Small Contracts,Care 1st Homecare,3263.14, 05-Jan-2023
1703,Revenue,CAHD,North - Community based support,Other Small Contracts,Care 1st Homecare,1526.00, 05-Jan-2023
1704,Revenue,CAHD,North - Community based support,Other Small Contracts,Care 1st Homecare,1592.04, 05-Jan-2023
1705,Revenue,CAHD,North - Community based support,Respite Care,Care Horizons,0.00, 10-Jan-2023
1706,Revenue,CAHD,North - Community based support,Respite Care,Care Horizons,0.00, 10-Jan-2023
1707,Revenue,CAHD,North - Community based support,Supported Living,Care Horizons,5727.08, 10-Jan-2023
1708,Revenue,CAHD,North - Community based support,Supported Living,Care Horizons,5727.08, 10-Jan-2023
1709,Revenue,CAHD,Central - Commissioned Services,Other Small Contracts,Care Horizons,768.96, 05-Jan-2023
1710,Revenue,CAHD,Central - Commissioned Services,Other Small Contracts,Care Horizons,299.04, 05-Jan-2023
1711,Revenue,CAHD,Central - Commissioned Services,Other Small Contracts,Care Horizons,6980.70, 05-Jan-2023
1712,Revenue,CAHD,Central - Commissioned Services,Other Small Contracts,Care Horizons,341.76, 05-Jan-2023
1713,Revenue,CAHD,Central - Commissioned Services,Other Small Contracts,Care Horizons,170.88, 05-Jan-2023
1714,Revenue,CAHD,Central - Commissioned Services,Other Small Contracts,Care Horizons,341.76, 05-Jan-2023
1715,Revenue,CAHD,Central - Commissioned Services,Other Small Contracts,Care Horizons,165.54, 05-Jan-2023
1716,Revenue,CAHD,Central - Commissioned Services,Mentoring,Care Horizons,256.32, 05-Jan-2023
1717,Revenue,CAHD,South - Commissioned Services,Other Small Contracts,Care Horizons,801.00, 05-Jan-2023
1718,Revenue,CAHD,South - Commissioned Services,Other Small Contracts,Care Horizons,267.00, 05-Jan-2023
1719,Revenue,CAHD,South - Commissioned Services,Mentoring,Care Horizons,341.76, 05-Jan-2023
1720,Revenue,CAHD,North - Community based support,Other Small Contracts,Care Horizons,523.32, 05-Jan-2023
1721,Revenue,CAHD,North - Community based support,Other Small Contracts,Care Horizons,427.20, 05-Jan-2023
1722,Revenue,CAHD,North - Community based support,Other Small Contracts,Care Horizons,726.24, 05-Jan-2023
1723,Revenue,CAHD,North - Community based support,Other Small Contracts,Care Horizons,5958.40, 05-Jan-2023
